{"text_format":"1","workbook":"xlsx","n_sheets":8,"sheets":["Sablon","Program","Katılım","On_Eleme","Eleme","Ana Tablo","16DE","SIRALAMA"],"not_rendered":{"charts":0,"images":8,"macros":1,"external_links":1,"defined_names":2,"comments":0,"pivot_tables":0},"unopened":[],"bounds":{"document_bytes":16777216,"sheet_cells":100000,"rows_first":2000,"rows_last":500,"rows_between":2000,"halvings":0,"cell_chars":16384,"cell_head_chars":4096},"cells_cut":0,"cells_raw":0,"read":"whole","date_system":"1900"}

{"sheet":"Sablon","index":0,"n_rows":385,"n_cols":125,"rows_kept":385,"cut":false,"hidden":false,"merged":[[1,31,1,34],[1,1,1,4],[1,7,1,10],[1,13,1,16],[1,19,1,22],[1,25,1,28]]}
[null,"Template",null,null,null,null,null,null,null,null,null,null,null,null,null,null,null,null,null,null,null,null,null,null,null,null,null,null,null,null,null,null,null,null,null,null,null,null,null,null,null,null,null,null,null,null,null,null,null,null,null,null,null,null,null,null,null,null,null,null,null,null,null,null,null,null,null,null,null,null,null,null,null,null,null,null,"Y","S","B","Q",null,"Y","S","B","Q",null,"Y","S","B","Q",null,"Y","S","B","Q",null,"Y","S","B","Q",null,"Y","S","B","Q",null,null,null,null,null,256,128,64,32,16,8,null,null,null,256,128,64,32,16,8]
[null,256,null,null,null,null,null,128,null,null,null,null,null,64,null,null,null,null,null,32,null,null,null,null,null,16,null,null,null,null,null,8,null,null,null,null,null,null,null,null,null,null,null,null,null,null,null,null,null,null,null,null,null,null,null,null,null,null,null,null,null,null,null,null,null,null,null,null,null,null,null,null,null,null,null,null,null,1,null,null,1,null,1,0,0,1,null,1,0," ",1,null,1,0,0,1,null,1,0,0,1,null,1,0,0,1,null,null,null,1,null,84,38,19,9,6,null,null,"E1",171,75,22,14,5,3]
[null,"Y","S","B","Q",null,null,"Y","S","B","Q",null,null,"Y","S","B","Q",null,null,"Y",8,"B","Q",null,null,"Y","S","B","Q",null,null,"Y","S","B","Q",null,null,null,null,null,null,null,null,null,null,null,null,null,null,null,null,null,null,null,null,null,null,null,null,null,null,null,null,null,null,null,null,null,null,null,null,null,null,null,null,null,null,null,null,null,null,null,null,null,null,null,null,null,null,null,null,null,null,null,null,null,null,null,null,null,null,null,null,null,null,null,null,null,null,null,null,105,65,33,17,9,null,null,"E2",229,76,21,12,6,4]
[null,1,1,null,null,1,null,1,1,null,null,1,null,1,1,null," ",1,null,1,1,null,null,1,null,1,1,null,null,1,null,1,1,null,null,1,null,null,null,null,null,null,null,null,null,null,null,null,null,null,null,null,null,null,null,null,null,null,null,null,null,null,null,null,null,null,null,null,null,null,null,null,null,null,null,null,null,129,999,"",256,null,65,1,"E64",999,null,33,1,"E32",64,null,17,1,"E16",32,null,9,1,"E8",16,null,5,1,"E4",8,null,null,null,null,null,null,null,null,null,null,null,null,"E3",87,74,23,10,7,2]
[null,2,129,999,null,256,null,2,65,1,64,999,null,2,33,1,32,64,null,2,17,1,16,32,null,2,9,1,8,16,null,2,5,1,4,8,null,null,null,null,null,null,null,null,null,null,null,null,null,null,null,null,null,null,null,null,null,null,null,null,null,null,null,null,null,null,null,null,null,null,null,null,null,null,null,null,null,129,999,"",128,null,65,33,"E32",999,null,33,17,"E16",48,null,17,9,"E8",16,null,9,5,"E4",12,null,5,3,"E2",5,null,null,null,2,null,61,37,20,10,5,null,null,"E4",169,73,24,9,8,1]
[null,3,129,999,null,128,null,3,65,33,32,999,null,3,33,17,16,48,null,3,17,9,8,16,null,3,9,5,4,12,null,3,5,3,2,5,null,null,null,null,null,null,null,null,null,null,null,null,null,null,null,null,null,null,null,null,null,null,null,null,null,null,null,null,null,null,null,null,null,null,null,null,null,null,null,null,null,null,null,"",null,null,null,null,"",null,null,null,null,"",null,null,null,null,"",null,null,null,null,"",null,null,null,null,null,null,null,null,null,null,null,106,66,34,18,10,null,null,"E5",83,78,19,11,3]
[null,4,65,999,null,129,null,4,33,null,null,999,null,4,17,null," ",32,null,4,9,null,null,17,null,4,5,null,null,8,null,4,3,null,null,4,null,null,null,null,null,null,null,null,null,null,null,null,null,null,null,null,null,null,null,null,null,null,null,null,null,null,null,null,null,null,null,null,null,null,null,null,null,null,null,null,null,65,999,"",129,null,33,0,"",999,null,17,0,"",32,null,9,0,"",17,null,5,0,"",8,null,3,0,0,4,null,null,null,null,null,null,null,null,null,null,null,null,"E6",173,77,20,13,4]
[null,5,65,999,null,65,null,5,33,null,null,41,null,5,17,null," ",17,null,5,9,null,null,9,null,5,5,null,null,6,null,5,3,null,null,3,null,null,null,null,null,null,null,null,null,null,null,null,null,null,null,null,null,null,null,null,null,null,null,null,null,null,null,null,null,null,null,null,null,null,null,null,null,null,null,null,null,65,999,"",65,null,33,0,"",41,null,17,0,"",17,null,9,0,"",9,null,5,0,"",6,null,3,0,0,3,null,null,null,3,null,93,39,18,11,7,null,null,"E7",175,79,18,15,2]
[null,6,129,999,null,192,null,6,65,49,16,42,null,6,33,25,8,33,null,6,17,13,4,24,null,6,9,7,2,10,null,6,5,null,1,6,null,null,null,null,null,null,null,null,null,null,null,null,null,null,null,null,null,null,null,null,null,null,null,null,null,null,null,null,null,null,null,null,null,null,null,null,null,null,null,null,null,null,null,"",null,null,null,null,"",null,null,null,null,"",null,null,null,null,"",null,null,null,null,"",null,null,null,null,null,null,null,null,null,null,null,107,67,35,19,11,null,null,"E8",81,80,17,16,1]
[null,7,129,999,null,64,null,7,65,17,48,43,null,7,33,9,24,49,null,7,17,5,12,25,null,7,9,3,6,14,null,7,5,2,3,7,null,null,null,null,null,null,null,null,null,null,null,null,null,null,null,null,null,null,null,null,null,null,null,null,null,null,null,null,null,null,null,null,null,null,null,null,null,null,null,null,null,129,999,"",192,null,65,49,"E16",42,null,33,25,"E8",33,null,17,13,"E4",24,null,9,7,"E2",10,null,5,0,"E1",6,null,null,null,null,null,null,null,null,null,null,null,null,"E9",91,27,27,6]
[null,8,64,999,null,193,null,8,17,null,null,32,null,8,9," "," ",16,null,8,5,null,null,8,null,8,3,null,null,4,null,8,2,null,null,2,null,null,null,null,null,null,null,null,null,null,null,null,null,null,null,null,null,null,null,null,null,null,null,null,null,null,null,null,null,null,null,null,null,null,null,null,null,null,null,null,null,129,999,"",64,null,65,17,"E48",43,null,33,9,"E24",49,null,17,5,"E12",25,null,9,3,"E6",14,null,5,2,"E3",7,null,null,null,4,null,52,40,17,12,8,null,null,"E10",165,28,28,5]
[null,9,49,null,null,33,null,9,17,null,null,17,null,9,9,null," ",9,null,9,5,null,null,5,null,9,3,null,null,3,null,null,null,null,null,null,null,null,null,null,null,null,null,null,null,null,null,null,null,null,null,null,null,null,null,null,null,null,null,null,null,null,null,null,null,null,null,null,null,null,null,null,null,null,null,null,null,null,null,"",null,null,null,null,"",null,null,null,null,"",null,null,null,null,"",null,null,null,null,"",null,null,null,null,null,null,null,null,null,null,null,108,68,36,20,12,null,null,"E11",167,26,26,7]
[null,10,129,49,null,224,null,10,65,25,40,44,null,10,33,13,20,56,null,10,17,7,10,28,null,10,9,4,5,13,null,null,null,null,null,null,null,null,null,null,null,null,null,null,null,null,null,null,null,null,null,null,null,null,null,null,null,null,null,null,null,null,null,null,null,null,null,null,null,null,null,null,null,null,null,null,null,64,999,"",193,null,17,0,"",32,null,9," ","",16,null,5,0,"",8,null,3,0,"",4,null,2,0,0,2,null,null,null,null,null,null,null,null,null,null,null,null,"E12",109,25,25,8]
[null,11,129,null,null,96,null,11,65,57,8,45,null,11,33,29,4,40,null,11,17,15,2,21,null,11,9,null,1,9,null,null,null,null,null,null,null,null,null,null,null,null,null,null,null,null,null,null,null,null,null,null,null,null,null,null,null,null,null,null,null,null,null,null,null,null,null,null,null,null,null,null,null,null,null,null,null,49,null,"",33,null,17,0,"",17,null,9,0,"",9,null,5,0,"",5,null,3,0,"",3,null,null,null,null,null,null,null,null,5,null,77,35,22,13,null,null,null,"E13",163,30,30,3]
[null,12,65,null,null,161,null,12,33,null,null,33,null,12,17,null," ",24,null,12,9,null,null,12,null,12,5,null,null,5,null,"Y","Fikstür yerleri",null,null,null,null,null,null,null,null,null,null,null,null,null,null,null,null,null,null,null,null,null,null,null,null,null,null,null,null,null,null,null,null,null,null,null,null,null,null,null,null,null,null,null,null,null,null,"",null,null,null,null,"",null,null,null,null,"",null,null,null,null,"",null,null,null,null,"",null,null,null,null,null,null,null,null,null,null,null,109,69,37,21,null,null,null,"E14",93,29,29,4]
[null,13,65,null,null,97,null,13,33,null,null,46,null,13,17,null," ",25,null,13,9,null,null,13,null,13,5,null,null,7,null,"S","Derece yerleri",null,null,null,null,null,null,null,null,null,null,null,null,null,null,null,null,null,null,null,null,null,null,null,null,null,null,null,null,null,null,null,null,null,null,null,null,null,null,null,null,null,null,null,null,129,49,"",224,null,65,25,"E40",44,null,33,13,"E20",56,null,17,7,"E10",28,null,9,4,"E5",13,null,null,null,null,null,null,null,null,null,null,null,null,null,null,null,null,null,"E15",95,31,31,2]
[null,14,129,null,null,160,null,14,65,41,24,47,null,14,33,21,12,41,null,14,17,11,6,20,null,14,9,6,3,11,null,"B","Bay yerleri",null,null,null,null,null,null,null,null,null,null,null,null,null,null,null,null,null,null,null,null,null,null,null,null,null,null,null,null,null,null,null,null,null,null,null,null,null,null,null,null,null,null,null,null,129,null,"",96,null,65,57,"E8",45,null,33,29,"E4",40,null,17,15,"E2",20,null,9,0,"E1",9,null,null,null,null,null,null,null,null,6,null,68,36,21,14,null,null,null,"E16",85,32,32,1]
[null,15,129,32,29,32,null,15,65,9,56,48,null,15,33,5,28,57,null,15,17,3,14,29,null,15,9,2,7,15,null,"Q","Ön Eleme yeri",null,null,null,null,null,null,null,null,null,null,null,null,null,null,null,null,null,null,null,null,null,null,null,null,null,null,null,null,null,null,null,null,null,null,null,null,null,null,null,null,null,null,null,null,null,null,"",null,null,null,null,"",null,null,null,null,"",null,null,null,null,"",null,null,null,null,"",null,null,null,null,null,null,null,null,null,null,null,110,70,38,22,null,null,null,"E17",75,22,11]
[null,16,32,null,null,225,null,16,9,null,null,16,null,16,5," "," ",8,null,16,3,null,null,4,null,16,2,null,null,2,null,null,null,null,null,null,null,null,null,null,null,null,null,null,null,null,null,null,null,null,null,null,null,null,null,null,null,null,null,null,null,null,null,null,null,null,null,null,null,null,null,null,null,null,null,null,null,65,null,"",161,null,33,0,"",33,null,17,0,"",24,null,9,0,"",12,null,5,0,"",5,null,null,null,null,null,null,null,null,null,null,null,null,null,null,null,null,null,"E18",181,21,12]
[null,17,17,null,null,17,null,17,9,null,null,9,null,17,5,null," ",5,null,17,3,null,null,3,null,null,null,null,null,null,null,null,null,null,null,null,null,null,null,null,null,null,null,null,null,null,null,null,null,null,null,null,null,null,null,null,null,null,null,null,null,null,null,null,null,null,null,null,null,null,null,null,null,null,null,null,null,65,null,"",97,null,33,0,"",46,null,17,0,"",25,null,9,0,"",13,null,5,0,"",7,null,null,null,null,null,null,null,null,7,null,100,34,23,15,null,null,null,"E19",183,23,10]
[null,18,129,17,null,240,null,18,65,13,52,49,null,18,33,7,26,60,null,18,17,4,13,30,null,null,null,null,null,null,null,null,null,null,null,null,null,null,null,null,null,null,null,null,null,null,null,null,null,null,null,null,null,null,null,null,null,null,null,null,null,null,null,null,null,null,null,null,null,null,null,null,null,null,null,null,null,null,null,"",null,null,null,null,"",null,null,null,null,"",null,null,null,null,"",null,null,null,null,"",null,null,null,null,null,null,null,null,null,null,null,111,71,39,23,null,null,null,"E20",73,24,9]
[null,19,129,null,null,112,null,19,65,45,20,50,null,19,33,23,10,44,null,19,17,12,5,22,null,null,null,null,null,null,null,null,null,null,null,null,null,null,null,null,null,null,null,null,null,null,null,null,null,null,null,null,null,null,null,null,null,null,null,null,null,null,null,null,null,null,null,null,null,null,null,null,null,null,null,null,null,129,null,"",160,null,65,41,"E24",47,null,33,21,"E12",41,null,17,11,"E6",21,null,9,6,"E3",11,null,null,null,null,null,null,null,null,null,null,null,null,null,null,null,null,null,"E21",179,19,14]
[null,20,65,null,null,145,null,20,33,null,null,51,null,20,17,null," ",28,null,20,9,null,null,11,null,null,null,null,null,null,null,null,null,null,null,null,null,null,null,null,null,null,null,null,null,null,null,null,null,null,null,null,null,null,null,null,null,null,null,null,null,null,null,null,null,null,null,null,null,null,null,null,null,null,null,null,null,129,32,"E29",32,null,65,9,"E56",48,null,33,5,"E28",57,null,17,3,"E14",29,null,9,2,"E7",15,null,null,null,null,null,null,null,null,8,null,45,33,24,16,null,null,null,"E22",77,20,13]
[null,21,65,null,null,81,null,21,33,null,null,40,null,21,17,null," ",21,null,21,9,null,null,14,null,null,null,null,null,null,null,null,null,null,null,null,null,null,null,null,null,null,null,null,null,null,null,null,null,null,null,null,null,null,null,null,null,null,null,null,null,null,null,null,null,null,null,null,null,null,null,null,null,null,null,null,null,null,null,"",null,null,null,null,"",null,null,null,null,"",null,null,null,null,"",null,null,null,null,null,null,null,null,null,null,null,null,null,null,null,null,112,72,40,24,null,null,null,"E23",79,18,15]
[null,22,129,null,8,176,null,22,65,61,4,52,null,22,33,31,2,37,null,22,17,null,1,19,null,null,null,null,null,null,null,null,null,null,null,null,null,null,null,null,null,null,null,null,null,null,null,null,null,null,null,null,null,null,null,null,null,null,null,null,null,null,null,null,null,null,null,null,null,null,null,null,null,null,null,null,null,32,null,"",225,null,9,0,"",16,null,5," ","",8,null,3,0,"",4,null,2,0,0,2,null,null,null,null,null,null,null,null,null,null,null,null,null,null,null,null,null,"E24",177,17,16]
[null,23,129,48,null,48,null,23,65,29,36,53,null,23,33,15,18,53,null,23,17,8,9,27,null,null,null,null,null,null,null,null,null,null,null,null,null,null,null,null,null,null,null,null,null,null,null,null,null,null,null,null,null,null,null,null,null,null,null,null,null,null,null,null,null,null,null,null,null,null,null,null,null,null,null,null,null,17,null,"",17,null,9,0,"",9,null,5,0,"",5,null,3,0,"",3,null,null,null,null,null,null,null,null,null,null,null,null,null,9,null,87,43,27,null,null,null,null,"E25",103,70,6]
[null,24,48,null,null,209,null,24,17,null,null,24,null,24,9," "," ",12,null,24,5,null,null,6,null,null,null,null,null,null,null,null,null,null,null,null,null,null,null,null,null,null,null,null,null,null,null,null,null,null,null,null,null,null,null,null,null,null,null,null,null,null,null,null,null,null,null,null,null,null,null,null,null,null,null,null,null,null,null,"",null,null,null,null,"",null,null,null,null,"",null,null,null,null,"",null,null,null,null,null,null,null,null,null,null,null,null,null,null,null,null,113,73,41,null,null,null,null,"E26",89,69,5]
[null,25,33,null,null,49,null,25,17,null,null,25,null,25,9,null," ",13,null,25,5,null,null,7,null,null,null,null,null,null,null,null,null,null,null,null,null,null,null,null,null,null,null,null,null,null,null,null,null,null,null,null,null,null,null,null,null,null,null,null,null,null,null,null,null,null,null,null,null,null,null,null,null,null,null,null,null,129,17,"",240,null,65,13,"E52",49,null,33,7,"E26",60,null,17,4,"E13",30,null,null,null,null,null,null,null,null,null,null,null,null,null,null,null,null,null,null,null,null,null,null,"E27",141,71,7]
[null,26,129,33,null,208,null,26,65,21,44,54,null,26,33,11,22,52,null,26,17,6,11,26,null,null,null,null,null,null,null,null,null,null,null,null,null,null,null,null,null,null,null,null,null,null,null,null,null,null,null,null,null,null,null,null,null,null,null,null,null,null,null,null,null,null,null,null,null,null,null,null,null,null,null,null,null,129,null,"",112,null,65,45,"E20",50,null,33,23,"E10",44,null,17,12,"E5",22,null,null,null,null,null,null,null,null,null,null,null,null,null,10,null,58,44,28,null,null,null,null,"E28",227,72,8]
[null,27,129,null,24,80,null,27,65,53,12,55,null,27,33,27,6,36,null,27,17,14,3,18,null,null,null,null,null,null,null,null,null,null,null,null,null,null,null,null,null,null,null,null,null,null,null,null,null,null,null,null,null,null,null,null,null,null,null,null,null,null,null,null,null,null,null,null,null,null,null,null,null,null,null,null,null,null,null,"",null,null,null,null,"",null,null,null,null,"",null,null,null,null,"",null,null,null,null,null,null,null,null,null,null,null,null,null,null,null,null,114,74,42,null,null,null,null,"E29",225,67,3]
[null,28,65,null,null,177,null,28,33,null,null,56,null,28,17,null," ",20,null,28,9,null,null,10,null,null,null,null,null,null,null,null,null,null,null,null,null,null,null,null,null,null,null,null,null,null,null,null,null,null,null,null,null,null,null,null,null,null,null,null,null,null,null,null,null,null,null,null,null,null,null,null,null,null,null,null,null,65,null,"",145,null,33,0,"",51,null,17,0,"",28,null,9,0,"",11,null,null,null,null,null,null,null,null,null,null,null,null,null,null,null,null,null,null,null,null,null,null,"E30",21,68,4]
[null,29,65,null,null,113,null,29,33,null,null,999,null,29,17,null," ",29,null,29,9,null,null,15,null,null,null,null,null,null,null,null,null,null,null,null,null,null,null,null,null,null,null,null,null,null,null,null,null,null,null,null,null,null,null,null,null,null,null,null,null,null,null,null,null,null,null,null,null,null,null,null,null,null,null,null,null,65,null,"",81,null,33,0,"",40,null,17,0,"",21,null,9,0,"",14,null,null,null,null,null,null,null,null,null,null,null,null,null,11,null,90,42,26,null,null,null,null,"E31",115,66,2]
[null,30,129,null,null,144,null,30,65,37,28,999,null,30,33,19,14,45,null,30,17,10,7,23,null,null,null,null,null,null,null,null,null,null,null,null,null,null,null,null,null,null,null,null,null,null,null,null,null,null,null,null,null,null,null,null,null,null,null,null,null,null,null,null,null,null,null,null,null,null,null,null,null,null,null,null,null,null,null,"",null,null,null,null,"",null,null,null,null,"",null,null,null,null,"",null,null,null,null,null,null,null,null,null,null,null,null,null,null,null,null,115,75,43,null,null,null,null,"E32",143,65,1]
[null,31,129,16,null,16,null,31,65,5,60,999,null,31,33,3,30,61,null,31,17,2,15,31,null,null,null,null,null,null,null,null,null,null,null,null,null,null,null,null,null,null,null,null,null,null,null,null,null,null,null,null,null,null,null,null,null,null,null,null,null,null,null,null,null,null,null,null,null,null,null,null,null,null,null,null,null,129,null,"E8",176,null,65,61,"E4",52,null,33,31,"E2",37,null,17,0,"E1",19,null,null,null,null,null,null,null,null,null,null,null,null,null,null,null,null,null,null,null,null,null,null,"E33",null,11]
[null,32,16,null,null,241,null,32,5,null,null,8,null,32,3," "," ",4,null,32,2,null,null,2,null,null,null,null,null,null,null,null,null,null,null,null,null,null,null,null,null,null,null,null,null,null,null,null,null,null,null,null,null,null,null,null,null,null,null,null,null,null,null,null,null,null,null,null,null,null,null,null,null,null,null,null,null,129,48,"",48,null,65,29,"E36",53,null,33,15,"E18",53,null,17,8,"E9",27,null,null,null,null,null,null,null,null,null,null,null,null,null,12,null,55,41,25,null,null,null,null,"E34",null,12]
[null,33,9,null,null,9,null,33,5,null,null,5,null,33,3,null," ",3,null,null,null,null,null,null,null,null,null,null,null,null,null,null,null,null,null,null,null,null,null,null,null,null,null,null,null,null,null,null,null,null,null,null,null,null,null,null,null,null,null,null,null,null,null,null,null,null,null,null,null,null,null,null,null,null,null,null,null,null,null,"",null,null,null,null,"",null,null,null,null,"",null,null,null,null,"",null,null,null,null,null,null,null,null,null,null,null,null,null,null,null,null,116,76,44,null,null,null,null,"E35",null,10]
[null,34,129,9,null,248,null,34,65,7,58,999,null,34,33,4,29,62,null,null,null,null,null,null,null,null,null,null,null,null,null,null,null,null,null,null,null,null,null,null,null,null,null,null,null,null,null,null,null,null,null,null,null,null,null,null,null,null,null,null,null,null,null,null,null,null,null,null,null,null,null,null,null,null,null,null,null,48,null,"",209,null,17,0,"",24,null,9," ","",12,null,5,0,"",6,null,null,null,null,null,null,null,null,null,null,null,null,null,null,null,null,null,null,null,null,null,null,"E36",null,9]
[null,35,129,null,null,120,null,35,65,39,26,999,null,35,33,20,13,46,null,null,null,null,null,null,null,null,null,null,null,null,null,null,null,null,null,null,null,null,null,null,null,null,null,null,null,null,null,null,null,null,null,null,null,null,null,null,null,null,null,null,null,null,null,null,null,null,null,null,null,null,null,null,null,null,null,null,null,33,null,"",49,null,17,0,"",25,null,9,0,"",13,null,5,0,"",7,null,null,null,null,null,null,null,null,null,null,null,null,null,13,null,74,46,30,null,null,null,null,"E37",null,14]
[null,36,65,null,null,137,null,36,33,null,null,999,null,36,17,null," ",30,null,null,null,null,null,null,null,null,null,null,null,null,null,null,null,null,null,null,null,null,null,null,null,null,null,null,null,null,null,null,null,null,null,null,null,null,null,null,null,null,null,null,null,null,null,null,null,null,null,null,null,null,null,null,null,null,null,null,null,null,null,"",null,null,null,null,"",null,null,null,null,"",null,null,null,null,"",null,null,null,null,null,null,null,null,null,null,null,null,null,null,null,null,117,77,45,null,null,null,null,"E38",null,13]
[null,37,65,null,null,73,null,37,33,null,null,57,null,37,17,null," ",19,null,null,null,null,null,null,null,null,null,null,null,null,null,null,null,null,null,null,null,null,null,null,null,null,null,null,null,null,null,null,null,null,null,null,null,null,null,null,null,null,null,null,null,null,null,null,null,null,null,null,null,null,null,null,null,null,null,null,null,129,33,"",208,null,65,21,"E44",54,null,33,11,"E22",52,null,17,6,"E11",26,null,null,null,null,null,null,null,null,null,null,null,null,null,null,null,null,null,null,null,null,null,null,"E39",null,15]
[null,38,129,null,20,184,null,38,65,55,10,58,null,38,33,28,5,35,null,null,null,null,null,null,null,null,null,null,null,null,null,null,null,null,null,null,null,null,null,null,null,null,null,null,null,null,null,null,null,null,null,null,null,null,null,null,null,null,null,null,null,null,null,null,null,null,null,null,null,null,null,null,null,null,null,null,null,129,null,"E24",80,null,65,53,"E12",55,null,33,27,"E6",36,null,17,14,"E3",18,null,null,null,null,null,null,null,null,null,null,null,null,null,14,null,71,45,29,null,null,null,null,"E40",null,16]
[null,39,129,40,null,56,null,39,65,23,42,59,null,39,33,12,21,51,null,null,null,null,null,null,null,null,null,null,null,null,null,null,null,null,null,null,null,null,null,null,null,null,null,null,null,null,null,null,null,null,null,null,null,null,null,null,null,null,null,null,null,null,null,null,null,null,null,null,null,null,null,null,null,null,null,null,null,null,null,"",null,null,null,null,"",null,null,null,null,"",null,null,null,null,"",null,null,null,null,null,null,null,null,null,null,null,null,null,null,null,null,118,78,46,null,null,null,null,"E41",null,91]
[null,40,40,null,null,201,null,40,17,null,null,28,null,40,9," "," ",14,null,null,null,null,null,null,null,null,null,null,null,null,null,null,null,null,null,null,null,null,null,null,null,null,null,null,null,null,null,null,null,null,null,null,null,null,null,null,null,null,null,null,null,null,null,null,null,null,null,null,null,null,null,null,null,null,null,null,null,65,null,"",177,null,33,0,"",56,null,17,0,"",20,null,9,0,"",10,null,null,null,null,null,null,null,null,null,null,null,null,null,null,null,null,null,null,null,null,null,null,"E42",null,92]
[null,41,41,null,null,41,null,41,17,null,null,21,null,41,9,null," ",11,null,null,null,null,null,null,null,null,null,null,null,null,null,null,null,null,null,null,null,null,null,null,null,null,null,null,null,null,null,null,null,null,null,null,null,null,null,null,null,null,null,null,null,null,null,null,null,null,null,null,null,null,null,null,null,null,null,null,null,65,null,"",113,null,33,0,"",999,null,17,0,"",29,null,9,0,"",15,null,null,null,null,null,null,null,null,null,null,null,null,null,15,null,103,47,31,null,null,null,null,"E43",null,90]
[null,42,129,41,null,216,null,42,65,31,34,60,null,42,33,16,17,54,null,null,null,null,null,null,null,null,null,null,null,null,null,null,null,null,null,null,null,null,null,null,null,null,null,null,null,null,null,null,null,null,null,null,null,null,null,null,null,null,null,null,null,null,null,null,null,null,null,null,null,null,null,null,null,null,null,null,null,null,null,"",null,null,null,null,"",null,null,null,null,"",null,null,null,null,"",null,null,null,null,null,null,null,null,null,null,null,null,null,null,null,null,119,79,47,null,null,null,null,"E44",null,89]
[null,43,129,null,4,88,null,43,65,63,2,61,null,43,33,null,1,38,null,null,null,null,null,null,null,null,null,null,null,null,null,null,null,null,null,null,null,null,null,null,null,null,null,null,null,null,null,null,null,null,null,null,null,null,null,null,null,null,null,null,null,null,null,null,null,null,null,null,null,null,null,null,null,null,null,null,null,129,null,"",144,null,65,37,"E28",999,null,33,19,"E14",45,null,17,10,"E7",23,null,null,null,null,null,null,null,null,null,null,null,null,null,null,null,null,null,null,null,null,null,null,"E45",null,94]
[null,44,65,null,null,169,null,44,33,null,null,37,null,44,17,null," ",22,null,null,null,null,null,null,null,null,null,null,null,null,null,null,null,null,null,null,null,null,null,null,null,null,null,null,null,null,null,null,null,null,null,null,null,null,null,null,null,null,null,null,null,null,null,null,null,null,null,null,null,null,null,null,null,null,null,null,null,129,16,"",16,null,65,5,"E60",999,null,33,3,"E30",61,null,17,2,"E15",31,null,null,null,null,null,null,null,null,null,null,null,null,null,16,null,42,48,32,null,null,null,null,"E46",null,93]
[null,45,65,null,null,105,null,45,33,null,null,62,null,45,17,null," ",27,null,null,null,null,null,null,null,null,null,null,null,null,null,null,null,null,null,null,null,null,null,null,null,null,null,null,null,null,null,null,null,null,null,null,null,null,null,null,null,null,null,null,null,null,null,null,null,null,null,null,null,null,null,null,null,null,null,null,null,null,null,"",null,null,null,null,"",null,null,null,null,"",null,null,null,null,null,null,null,null,null,null,null,null,null,null,null,null,null,null,null,null,null,120,80,48,null,null,null,null,"E47",null,95]
[null,46,129,null,null,152,null,46,65,47,18,63,null,46,33,24,9,43,null,null,null,null,null,null,null,null,null,null,null,null,null,null,null,null,null,null,null,null,null,null,null,null,null,null,null,null,null,null,null,null,null,null,null,null,null,null,null,null,null,null,null,null,null,null,null,null,null,null,null,null,null,null,null,null,null,null,null,16,null,"",241,null,5,0,"",8,null,3," ","",4,null,2,0,0,2,null,null,null,null,null,null,null,null,null,null,null,null,null,null,null,null,null,null,null,null,null,null,"E48",null,96]
[null,47,129,24,null,24,null,47,65,15,50,64,null,47,33,8,25,59,null,null,null,null,null,null,null,null,null,null,null,null,null,null,null,null,null,null,null,null,null,null,null,null,null,null,null,null,null,null,null,null,null,null,null,null,null,null,null,null,null,null,null,null,null,null,null,null,null,null,null,null,null,null,null,null,null,null,null,9,null,"",9,null,5,0,"",5,null,3,0,"",3,null,null,null,null,null,null,null,null,null,null,null,null,null,null,null,null,null,null,17,null,82,54,null,null,null,null,null,"E49",null,86]
[null,48,24,null,null,233,null,48,9,null,null,12,null,48,5," "," ",6,null,null,null,null,null,null,null,null,null,null,null,null,null,null,null,null,null,null,null,null,null,null,null,null,null,null,null,null,null,null,null,null,null,null,null,null,null,null,null,null,null,null,null,null,null,null,null,null,null,null,null,null,null,null,null,null,null,null,null,null,null,"",null,null,null,null,"",null,null,null,null,"",null,null,null,null,null,null,null,null,null,null,null,null,null,null,null,null,null,null,null,null,null,121,81,null,null,null,null,null,"E50",null,85]
[null,49,25,null,null,25,null,49,9,null,null,13,null,49,5,null," ",7,null,null,null,null,null,null,null,null,null,null,null,null,null,null,null,null,null,null,null,null,null,null,null,null,null,null,null,null,null,null,null,null,null,null,null,null,null,null,null,null,null,null,null,null,null,null,null,null,null,null,null,null,null,null,null,null,null,null,null,129,9,"",248,null,65,7,"E58",999,null,33,4,"E29",62,null,null,null,null,null,null,null,null,null,null,null,null,null,null,null,null,null,null,null,null,null,null,null,null,null,null,null,"E51",null,87]
[null,50,129,25,null,232,null,50,65,11,54,65,null,50,33,6,27,58,null,null,null,null,null,null,null,null,null,null,null,null,null,null,null,null,null,null,null,null,null,null,null,null,null,null,null,null,null,null,null,null,null,null,null,null,null,null,null,null,null,null,null,null,null,null,null,null,null,null,null,null,null,null,null,null,null,null,null,129,null,"",120,null,65,39,"E26",999,null,33,20,"E13",46,null,null,null,null,null,null,null,null,null,null,null,null,null,null,null,null,null,null,18,null,63,53,null,null,null,null,null,"E52",null,88]
[null,51,129,null,null,104,null,51,65,43,22,66,null,51,33,22,11,42,null,null,null,null,null,null,null,null,null,null,null,null,null,null,null,null,null,null,null,null,null,null,null,null,null,null,null,null,null,null,null,null,null,null,null,null,null,null,null,null,null,null,null,null,null,null,null,null,null,null,null,null,null,null,null,null,null,null,null,null,null,"",null,null,null,null,"",null,null,null,null,"",null,null,null,null,null,null,null,null,null,null,null,null,null,null,null,null,null,null,null,null,null,122,82,null,null,null,null,null,"E53",null,83]
[null,52,65,null,null,153,null,52,33,null,null,67,null,52,17,null," ",26,null,null,null,null,null,null,null,null,null,null,null,null,null,null,null,null,null,null,null,null,null,null,null,null,null,null,null,null,null,null,null,null,null,null,null,null,null,null,null,null,null,null,null,null,null,null,null,null,null,null,null,null,null,null,null,null,null,null,null,65,null,"",137,null,33,0,"",999,null,17,0,"",30,null,null,null,null,null,null,null,null,null,null,null,null,null,null,null,null,null,null,null,null,null,null,null,null,null,null,null,"E54",null,84]
[null,53,65,null,null,89,null,53,33,null,null,36,null,53,17,null," ",23,null,null,null,null,null,null,null,null,null,null,null,null,null,null,null,null,null,null,null,null,null,null,null,null,null,null,null,null,null,null,null,null,null,null,null,null,null,null,null,null,null,null,null,null,null,null,null,null,null,null,null,null,null,null,null,null,null,null,null,65,null,"",73,null,33,0,"",57,null,17,0,"",19,null,null,null,null,null,null,null,null,null,null,null,null,null,null,null,null,null,null,19,null,95,55,null,null,null,null,null,"E55",null,82]
[null,54,129,null,26,168,null,54,65,59,6,68,null,54,33,14,3,39,null,null,null,null,null,null,null,null,null,null,null,null,null,null,null,null,null,null,null,null,null,null,null,null,null,null,null,null,null,null,null,null,null,null,null,null,null,null,null,null,null,null,null,null,null,null,null,null,null,null,null,null,null,null,null,null,null,null,null,null,null,"",null,null,null,null,"",null,null,null,null,"",null,null,null,null,null,null,null,null,null,null,null,null,null,null,null,null,null,null,null,null,null,123,83,null,null,null,null,null,"E56",null,81]
[null,55,129,56,null,40,null,55,65,27,38,69,null,55,33,8,19,55,null,null,null,null,null,null,null,null,null,null,null,null,null,null,null,null,null,null,null,null,null,null,null,null,null,null,null,null,null,null,null,null,null,null,null,null,null,null,null,null,null,null,null,null,null,null,null,null,null,null,null,null,null,null,null,null,null,null,null,129,null,"E20",184,null,65,55,"E10",58,null,33,28,"E5",35,null,null,null,null,null,null,null,null,null,null,null,null,null,null,null,null,null,null,null,null,null,null,null,null,null,null,null,"E57",null,6]
[null,56,56,null,null,217,null,56,17,null,null,20,null,56,9," "," ",10,null,null,null,null,null,null,null,null,null,null,null,null,null,null,null,null,null,null,null,null,null,null,null,null,null,null,null,null,null,null,null,null,null,null,null,null,null,null,null,null,null,null,null,null,null,null,null,null,null,null,null,null,null,null,null,null,null,null,null,129,40,"",56,null,65,23,"E42",59,null,33,12,"E21",51,null,null,null,null,null,null,null,null,null,null,null,null,null,null,null,null,null,null,20,null,50,56,null,null,null,null,null,"E58",null,5]
[null,57,57,999,null,57,null,57,17,null,null,29,null,57,9,null," ",15,null,null,null,null,null,null,null,null,null,null,null,null,null,null,null,null,null,null,null,null,null,null,null,null,null,null,null,null,null,null,null,null,null,null,null,null,null,null,null,null,null,null,null,null,null,null,null,null,null,null,null,null,null,null,null,null,null,null,null,null,null,"",null,null,null,null,"",null,null,null,null,"",null,null,null,null,null,null,null,null,null,null,null,null,null,null,null,null,null,null,null,null,null,124,84,null,null,null,null,null,"E59",null,7]
[null,58,129,999,null,200,null,58,65,19,46,70,null,58,33,10,23,50,null,null,null,null,null,null,null,null,null,null,null,null,null,null,null,null,null,null,null,null,null,null,null,null,null,null,null,null,null,null,null,null,null,null,null,null,null,null,null,null,null,null,null,null,null,null,null,null,null,null,null,null,null,null,null,null,null,null,null,40,null,"",201,null,17,0,"",28,null,9," ","",14,null,null,null,null,null,null,null,null,null,null,null,null,null,null,null,null,null,null,null,null,null,null,null,null,null,null,null,"E60",null,8]
[null,59,129,999,null,72,null,59,65,51,14,71,null,59,33,26,7,34,null,null,null,null,null,null,null,null,null,null,null,null,null,null,null,null,null,null,null,null,null,null,null,null,null,null,null,null,null,null,null,null,null,null,null,null,null,null,null,null,null,null,null,null,null,null,null,null,null,null,null,null,null,null,null,null,null,null,null,41,null,"",41,null,17,0,"",21,null,9,0,"",11,null,null,null,null,null,null,null,null,null,null,null,null,null,null,null,null,null,null,21,null,79,51,null,null,null,null,null,"E61",null,3]
[null,60,65,999,null,185,null,60,33,null,null,72,null,60,17,null," ",18,null,null,null,null,null,null,null,null,null,null,null,null,null,null,null,null,null,null,null,null,null,null,null,null,null,null,null,null,null,null,null,null,null,null,null,null,null,null,null,null,null,null,null,null,null,null,null,null,null,null,null,null,null,null,null,null,null,null,null,null,null,"",null,null,null,null,"",null,null,null,null,"",null,null,null,null,null,null,null,null,null,null,null,null,null,null,null,null,null,null,null,null,null,125,85,null,null,null,null,null,"E62",null,4]
[null,61,65,999,null,121,null,61,33,null,null,999,null,61,17,null," ",31,null,null,null,null,null,null,null,null,null,null,null,null,null,null,null,null,null,null,null,null,null,null,null,null,null,null,null,null,null,null,null,null,null,null,null,null,null,null,null,null,null,null,null,null,null,null,null,null,null,null,null,null,null,null,null,null,null,null,null,129,41,"",216,null,65,31,"E34",60,null,33,16,"E17",54,null,null,null,null,null,null,null,null,null,null,null,null,null,null,null,null,null,null,null,null,null,null,null,null,null,null,null,"E63",null,2]
[null,62,129,999,null,136,null,62,65,35,30,999,null,62,33,18,15,47,null,null,null,null,null,null,null,null,null,null,null,null,null,null,null,null,null,null,null,null,null,null,null,null,null,null,null,null,null,null,null,null,null,null,null,null,null,null,null,null,null,null,null,null,null,null,null,null,null,null,null,null,null,null,null,null,null,null,null,129,null,"E4",88,null,65,63,"E2",61,null,33,0,"E1",38,null,null,null,null,null,null,null,null,null,null,null,null,null,null,null,null,null,null,22,null,66,52,null,null,null,null,null,"E64",null,1]
[null,63,129,999,null,249,null,63,65,3,62,999,null,63,33,2,31,63,null,null,null,null,null,null,null,null,null,null,null,null,null,null,null,null,null,null,null,null,null,null,null,null,null,null,null,null,null,null,null,null,null,null,null,null,null,null,null,null,null,null,null,null,null,null,null,null,null,null,null,null,null,null,null,null,null,null,null,null,null,"",null,null,null,null,"",null,null,null,null,"",null,null,null,null,null,null,null,null,null,null,null,null,null,null,null,null,null,null,null,null,null,126,86]
[null,64,8,null,null,8,null,64,3,null,null,4,null,64,2," "," ",2,null,null,null,null,null,null,null,null,null,null,null,null,null,null,null,null,null,null,null,null,null,null,null,null,null,null,null,null,null,null,null,null,null,null,null,null,null,null,null,null,null,null,null,null,null,null,null,null,null,null,null,null,null,null,null,null,null,null,null,65,null,"",169,null,33,0,"",37,null,17,0,"",22]
[null,65,5,null,null,5,null,65,3,null,null,3,null,null,null,null,null,null,null,null,null,null,null,null,null,null,null,null,null,null,null,null,null,null,null,null,null,null,null,null,null,null,null,null,null,null,null,null,null,null,null,null,null,null,null,null,null,null,null,null,null,null,null,null,null,null,null,null,null,null,null,null,null,null,null,null,null,65,null,"",105,null,33,0,"",62,null,17,0,"",27,null,null,null,null,null,null,null,null,null,null,null,null,null,null,null,null,null,null,23,null,98,50]
[null,66,129,999,null,252,null,66,65,4,61,999,null,null,null,null,null,null,null,null,null,null,null,null,null,null,null,null,null,null,null,null,null,null,null,null,null,null,null,null,null,null,null,null,null,null,null,null,null,null,null,null,null,null,null,null,null,null,null,null,null,null,null,null,null,null,null,null,null,null,null,null,null,null,null,null,null,null,null,"",null,null,null,null,"",null,null,null,null,"",null,null,null,null,null,null,null,null,null,null,null,null,null,null,null,null,null,null,null,null,null,127,87]
[null,67,129,999,null,124,null,67,65,36,29,999,null,null,null,null,null,null,null,null,null,null,null,null,null,null,null,null,null,null,null,null,null,null,null,null,null,null,null,null,null,null,null,null,null,null,null,null,null,null,null,null,null,null,null,null,null,null,null,null,null,null,null,null,null,null,null,null,null,null,null,null,null,null,null,null,null,129,null,"",152,null,65,47,"E18",63,null,33,24,"E9",43]
[null,68,65,999,null,133,null,68,33,null,null,999,null,null,null,null,null,null,null,null,null,null,null,null,null,null,null,null,null,null,null,null,null,null,null,null,null,null,null,null,null,null,null,null,null,null,null,null,null,null,null,null,null,null,null,null,null,null,null,null,null,null,null,null,null,null,null,null,null,null,null,null,null,null,null,null,null,129,24,"",24,null,65,15,"E50",64,null,33,8,"E25",59,null,null,null,null,null,null,null,null,null,null,null,null,null,null,null,null,null,null,24,null,47,49]
[null,69,65,999,null,69,null,69,33,null,null,73,null,null,null,null,null,null,null,null,null,null,null,null,null,null,null,null,null,null,null,null,null,null,null,null,null,null,null,null,null,null,null,null,null,null,null,null,null,null,null,null,null,null,null,null,null,null,null,null,null,null,null,null,null,null,null,null,null,null,null,null,null,null,null,null,null,null,null,"",null,null,null,null,"",null,null,null,null,"",null,null,null,null,null,null,null,null,null,null,null,null,null,null,null,null,null,null,null,null,null,128,88]
[null,70,129,999,null,188,null,70,65,52,13,74,null,null,null,null,null,null,null,null,null,null,null,null,null,null,null,null,null,null,null,null,null,null,null,null,null,null,null,null,null,null,null,null,null,null,null,null,null,null,null,null,null,null,null,null,null,null,null,null,null,null,null,null,null,null,null,null,null,null,null,null,null,null,null,null,null,24,null,"",233,null,9,0,"",12,null,5," ","",6]
[null,71,129,999,null,60,null,71,65,20,45,75,null,null,null,null,null,null,null,null,null,null,null,null,null,null,null,null,null,null,null,null,null,null,null,null,null,null,null,null,null,null,null,null,null,null,null,null,null,null,null,null,null,null,null,null,null,null,null,null,null,null,null,null,null,null,null,null,null,null,null,null,null,null,null,null,null,25,null,"",25,null,9,0,"",13,null,5,0,"",7,null,null,null,null,null,null,null,null,null,null,null,null,null,null,null,null,null,null,25,null,102]
[null,72,60,999,null,197,null,72,17,null,null,30,null,null,null,null,null,null,null,null,null,null,null,null,null,null,null,null,null,null,null,null,null,null,null,null,null,null,null,null,null,null,null,null,null,null,null,null,null,null,null,null,null,null,null,null,null,null,null,null,null,null,null,null,null,null,null,null,null,null,null,null,null,null,null,null,null,null,null,"",null,null,null,null,"",null,null,null,null,"",null,null,null,null,null,null,null,null,null,null,null,null,null,null,null,null,null,null,null,null,null,137]
[null,73,53,null,null,37,null,73,17,null,null,19,null,null,null,null,null,null,null,null,null,null,null,null,null,null,null,null,null,null,null,null,null,null,null,null,null,null,null,null,null,null,null,null,null,null,null,null,null,null,null,null,null,null,null,null,null,null,null,null,null,null,null,null,null,null,null,null,null,null,null,null,null,null,null,null,null,129,25,"",232,null,65,11,"E54",65,null,33,6,"E27",58]
[null,74,129,53,null,220,null,74,65,28,37,76,null,null,null,null,null,null,null,null,null,null,null,null,null,null,null,null,null,null,null,null,null,null,null,null,null,null,null,null,null,null,null,null,null,null,null,null,null,null,null,null,null,null,null,null,null,null,null,null,null,null,null,null,null,null,null,null,null,null,null,null,null,null,null,null,null,129,null,"",104,null,65,43,"E22",66,null,33,22,"E11",42,null,null,null,null,null,null,null,null,null,null,null,null,null,null,null,null,null,null,26,null,64]
[null,75,129,null,10,92,null,75,65,60,5,77,null,null,null,null,null,null,null,null,null,null,null,null,null,null,null,null,null,null,null,null,null,null,null,null,null,null,null,null,null,null,null,null,null,null,null,null,null,null,null,null,null,null,null,null,null,null,null,null,null,null,null,null,null,null,null,null,null,null,null,null,null,null,null,null,null,null,null,"",null,null,null,null,"",null,null,null,null,"",null,null,null,null,null,null,null,null,null,null,null,null,null,null,null,null,null,null,null,null,null,138]
[null,76,65,null,null,165,null,76,33,null,null,35,null,null,null,null,null,null,null,null,null,null,null,null,null,null,null,null,null,null,null,null,null,null,null,null,null,null,null,null,null,null,null,null,null,null,null,null,null,null,null,null,null,null,null,null,null,null,null,null,null,null,null,null,null,null,null,null,null,null,null,null,null,null,null,null,null,65,null,"",153,null,33,0,"",67,null,17,0,"",26]
[null,77,65,null,null,101,null,77,33,null,null,78,null,null,null,null,null,null,null,null,null,null,null,null,null,null,null,null,null,null,null,null,null,null,null,null,null,null,null,null,null,null,null,null,null,null,null,null,null,null,null,null,null,null,null,null,null,null,null,null,null,null,null,null,null,null,null,null,null,null,null,null,null,null,null,null,null,65,null,"",89,null,33,0,"",36,null,17,0,"",23,null,null,null,null,null,null,null,null,null,null,null,null,null,null,null,null,null,null,27,null,59]
[null,78,129,null,null,156,null,78,65,44,21,79,null,null,null,null,null,null,null,null,null,null,null,null,null,null,null,null,null,null,null,null,null,null,null,null,null,null,null,null,null,null,null,null,null,null,null,null,null,null,null,null,null,null,null,null,null,null,null,null,null,null,null,null,null,null,null,null,null,null,null,null,null,null,null,null,null,null,null,"",null,null,null,null,"",null,null,null,null,"",null,null,null,null,null,null,null,null,null,null,null,null,null,null,null,null,null,null,null,null,null,139]
[null,79,129,28,2,28,null,79,65,12,53,80,null,null,null,null,null,null,null,null,null,null,null,null,null,null,null,null,null,null,null,null,null,null,null,null,null,null,null,null,null,null,null,null,null,null,null,null,null,null,null,null,null,null,null,null,null,null,null,null,null,null,null,null,null,null,null,null,null,null,null,null,null,null,null,null,null,129,null,"E26",168,null,65,59,"E6",68,null,33,14,"E3",39]
[null,80,28,null,null,229,null,80,9,null,null,14,null,null,null,null,null,null,null,null,null,null,null,null,null,null,null,null,null,null,null,null,null,null,null,null,null,null,null,null,null,null,null,null,null,null,null,null,null,null,null,null,null,null,null,null,null,null,null,null,null,null,null,null,null,null,null,null,null,null,null,null,null,null,null,null,null,129,56,"",40,null,65,27,"E38",69,null,33,8,"E19",55,null,null,null,null,null,null,null,null,null,null,null,null,null,null,null,null,null,null,28,null,75]
[null,81,21,null,null,21,null,81,9,null,null,11,null,null,null,null,null,null,null,null,null,null,null,null,null,null,null,null,null,null,null,null,null,null,null,null,null,null,null,null,null,null,null,null,null,null,null,null,null,null,null,null,null,null,null,null,null,null,null,null,null,null,null,null,null,null,null,null,null,null,null,null,null,null,null,null,null,null,null,"",null,null,null,null,"",null,null,null,null,"",null,null,null,null,null,null,null,null,null,null,null,null,null,null,null,null,null,null,null,null,null,140]
[null,82,129,21,30,236,null,82,65,16,49,81,null,null,null,null,null,null,null,null,null,null,null,null,null,null,null,null,null,null,null,null,null,null,null,null,null,null,null,null,null,null,null,null,null,null,null,null,null,null,null,null,null,null,null,null,null,null,null,null,null,null,null,null,null,null,null,null,null,null,null,null,null,null,null,null,null,56,null,"",217,null,17,0,"",20,null,9," ","",10]
[null,83,129,null,null,108,null,83,65,48,17,82,null,null,null,null,null,null,null,null,null,null,null,null,null,null,null,null,null,null,null,null,null,null,null,null,null,null,null,null,null,null,null,null,null,null,null,null,null,null,null,null,null,null,null,null,null,null,null,null,null,null,null,null,null,null,null,null,null,null,null,null,null,null,null,null,null,57,999,"",57,null,17,0,"",29,null,9,0,"",15,null,null,null,null,null,null,null,null,null,null,null,null,null,null,null,null,null,null,29,null,48]
[null,84,65,null,null,149,null,84,33,null,null,83,null,null,null,null,null,null,null,null,null,null,null,null,null,null,null,null,null,null,null,null,null,null,null,null,null,null,null,null,null,null,null,null,null,null,null,null,null,null,null,null,null,null,null,null,null,null,null,null,null,null,null,null,null,null,null,null,null,null,null,null,null,null,null,null,null,null,null,"",null,null,null,null,"",null,null,null,null,"",null,null,null,null,null,null,null,null,null,null,null,null,null,null,null,null,null,null,null,null,null,141]
[null,85,65,null,null,85,null,85,33,null,null,38,null,null,null,null,null,null,null,null,null,null,null,null,null,null,null,null,null,null,null,null,null,null,null,null,null,null,null,null,null,null,null,null,null,null,null,null,null,null,null,null,null,null,null,null,null,null,null,null,null,null,null,null,null,null,null,null,null,null,null,null,null,null,null,null,null,129,999,"",200,null,65,19,"E46",70,null,33,10,"E23",50]
[null,86,129,null,16,172,null,86,65,64,1,84,null,null,null,null,null,null,null,null,null,null,null,null,null,null,null,null,null,null,null,null,null,null,null,null,null,null,null,null,null,null,null,null,null,null,null,null,null,null,null,null,null,null,null,null,null,null,null,null,null,null,null,null,null,null,null,null,null,null,null,null,null,null,null,null,null,129,999,"",72,null,65,51,"E14",71,null,33,26,"E7",34,null,null,null,null,null,null,null,null,null,null,null,null,null,null,null,null,null,null,30,null,49]
[null,87,129,44,null,44,null,87,65,32,33,85,null,null,null,null,null,null,null,null,null,null,null,null,null,null,null,null,null,null,null,null,null,null,null,null,null,null,null,null,null,null,null,null,null,null,null,null,null,null,null,null,null,null,null,null,null,null,null,null,null,null,null,null,null,null,null,null,null,null,null,null,null,null,null,null,null,null,null,"",null,null,null,null,"",null,null,null,null,"",null,null,null,null,null,null,null,null,null,null,null,null,null,null,null,null,null,null,null,null,null,142]
[null,88,44,null,null,213,null,88,17,null,null,22,null,null,null,null,null,null,null,null,null,null,null,null,null,null,null,null,null,null,null,null,null,null,null,null,null,null,null,null,null,null,null,null,null,null,null,null,null,null,null,null,null,null,null,null,null,null,null,null,null,null,null,null,null,null,null,null,null,null,null,null,null,null,null,null,null,65,999,"",185,null,33,0,"",72,null,17,0,"",18]
[null,89,37,null,null,53,null,89,17,null,null,27,null,null,null,null,null,null,null,null,null,null,null,null,null,null,null,null,null,null,null,null,null,null,null,null,null,null,null,null,null,null,null,null,null,null,null,null,null,null,null,null,null,null,null,null,null,null,null,null,null,null,null,null,null,null,null,null,null,null,null,null,null,null,null,null,null,65,999,"",121,null,33,0,"",999,null,17,0,"",31,null,null,null,null,null,null,null,null,null,null,null,null,null,null,null,null,null,null,31,null,53]
[null,90,129,37,null,204,null,90,65,24,41,86,null,null,null,null,null,null,null,null,null,null,null,null,null,null,null,null,null,null,null,null,null,null,null,null,null,null,null,null,null,null,null,null,null,null,null,null,null,null,null,null,null,null,null,null,null,null,null,null,null,null,null,null,null,null,null,null,null,null,null,null,null,null,null,null,null,null,null,"",null,null,null,null,"",null,null,null,null,"",null,null,null,null,null,null,null,null,null,null,null,null,null,null,null,null,null,null,null,null,null,143]
[null,91,129,null,18,76,null,91,65,56,9,87,null,null,null,null,null,null,null,null,null,null,null,null,null,null,null,null,null,null,null,null,null,null,null,null,null,null,null,null,null,null,null,null,null,null,null,null,null,null,null,null,null,null,null,null,null,null,null,null,null,null,null,null,null,null,null,null,null,null,null,null,null,null,null,null,null,129,999,"",136,null,65,35,"E30",999,null,33,18,"E15",47]
[null,92,65,null,null,181,null,92,33,null,null,88,null,null,null,null,null,null,null,null,null,null,null,null,null,null,null,null,null,null,null,null,null,null,null,null,null,null,null,null,null,null,null,null,null,null,null,null,null,null,null,null,null,null,null,null,null,null,null,null,null,null,null,null,null,null,null,null,null,null,null,null,null,null,null,null,null,129,999,"",249,null,65,3,"E62",999,null,33,2,"E31",63,null,null,null,null,null,null,null,null,null,null,null,null,null,null,null,null,null,null,32,null,70]
[null,93,65,null,null,117,null,93,33,null,null,999,null,null,null,null,null,null,null,null,null,null,null,null,null,null,null,null,null,null,null,null,null,null,null,null,null,null,null,null,null,null,null,null,null,null,null,null,null,null,null,null,null,null,null,null,null,null,null,null,null,null,null,null,null,null,null,null,null,null,null,null,null,null,null,null,null,null,null,"",null,null,null,null,"",null,null,null,null,null,null,null,null,null,null,null,null,null,null,null,null,null,null,null,null,null,null,null,null,null,null,144]
[null,94,129,null,null,140,null,94,65,40,25,999,null,null,null,null,null,null,null,null,null,null,null,null,null,null,null,null,null,null,null,null,null,null,null,null,null,null,null,null,null,null,null,null,null,null,null,null,null,null,null,null,null,null,null,null,null,null,null,null,null,null,null,null,null,null,null,null,null,null,null,null,null,null,null,null,null,8,null,"",8,null,3,0,"",4,null,2," "," ",2]
[null,95,129,12,null,12,null,95,65,8,57,999,null,null,null,null,null,null,null,null,null,null,null,null,null,null,null,null,null,null,null,null,null,null,null,null,null,null,null,null,null,null,null,null,null,null,null,null,null,null,null,null,null,null,null,null,null,null,null,null,null,null,null,null,null,null,null,null,null,null,null,null,null,null,null,null,null,5,null,"",5,null,3,0,"",3,null,null,null,null,null,null,null,null,null,null,null,null,null,null,null,null,null,null,null,null,null,null,null,33,null,86]
[null,96,12,null,null,245,null,96,5,null,null,6,null,null,null,null,null,null,null,null,null,null,null,null,null,null,null,null,null,null,null,null,null,null,null,null,null,null,null,null,null,null,null,null,null,null,null,null,null,null,null,null,null,null,null,null,null,null,null,null,null,null,null,null,null,null,null,null,null,null,null,null,null,null,null,null,null,null,null,"",null,null,null,null,"",null,null,null,null,null,null,null,null,null,null,null,null,null,null,null,null,null,null,null,null,null,null,null,null,null,null,145]
[null,97,13,null,null,13,null,97,5,null,null,7,null,null,null,null,null,null,null,null,null,null,null,null,null,null,null,null,null,null,null,null,null,null,null,null,null,null,null,null,null,null,null,null,null,null,null,null,null,null,null,null,null,null,null,null,null,null,null,null,null,null,null,null,null,null,null,null,null,null,null,null,null,null,null,null,null,129,999,"",252,null,65,4,"E61",999]
[null,98,129,13,null,244,null,98,65,6,59,999,null,null,null,null,null,null,null,null,null,null,null,null,null,null,null,null,null,null,null,null,null,null,null,null,null,null,null,null,null,null,null,null,null,null,null,null,null,null,null,null,null,null,null,null,null,null,null,null,null,null,null,null,null,null,null,null,null,null,null,null,null,null,null,null,null,129,999,"",124,null,65,36,"E29",999,null,null,null,null,null,null,null,null,null,null,null,null,null,null,null,null,null,null,null,null,null,null,null,34,null,85]
[null,99,129,null,27,116,null,99,65,38,27,999,null,null,null,null,null,null,null,null,null,null,null,null,null,null,null,null,null,null,null,null,null,null,null,null,null,null,null,null,null,null,null,null,null,null,null,null,null,null,null,null,null,null,null,null,null,null,null,null,null,null,null,null,null,null,null,null,null,null,null,null,null,null,null,null,null,null,null,"",null,null,null,null,"",null,null,null,null,null,null,null,null,null,null,null,null,null,null,null,null,null,null,null,null,null,null,null,null,null,null,146]
[null,100,65,null,null,141,null,100,33,null,null,999,null,null,null,null,null,null,null,null,null,null,null,null,null,null,null,null,null,null,null,null,null,null,null,null,null,null,null,null,null,null,null,null,null,null,null,null,null,null,null,null,null,null,null,null,null,null,null,null,null,null,null,null,null,null,null,null,null,null,null,null,null,null,null,null,null,65,999,"",133,null,33,0,"",999]
[null,101,65,null,null,77,null,101,33,null,null,89,null,null,null,null,null,null,null,null,null,null,null,null,null,null,null,null,null,null,null,null,null,null,null,null,null,null,null,null,null,null,null,null,null,null,null,null,null,null,null,null,null,null,null,null,null,null,null,null,null,null,null,null,null,null,null,null,null,null,null,null,null,null,null,null,null,65,999,"",69,null,33,0,"",73,null,null,null,null,null,null,null,null,null,null,null,null,null,null,null,null,null,null,null,null,null,null,null,35,null,96]
[null,102,129,null,22,180,null,102,65,54,11,90,null,null,null,null,null,null,null,null,null,null,null,null,null,null,null,null,null,null,null,null,null,null,null,null,null,null,null,null,null,null,null,null,null,null,null,null,null,null,null,null,null,null,null,null,null,null,null,null,null,null,null,null,null,null,null,null,null,null,null,null,null,null,null,null,null,null,null,"",null,null,null,null,"",null,null,null,null,null,null,null,null,null,null,null,null,null,null,null,null,null,null,null,null,null,null,null,null,null,null,147]
[null,103,129,36,null,52,null,103,65,22,43,91,null,null,null,null,null,null,null,null,null,null,null,null,null,null,null,null,null,null,null,null,null,null,null,null,null,null,null,null,null,null,null,null,null,null,null,null,null,null,null,null,null,null,null,null,null,null,null,null,null,null,null,null,null,null,null,null,null,null,null,null,null,null,null,null,null,129,999,"",188,null,65,52,"E13",74]
[null,104,36,null,null,205,null,104,17,null,null,26,null,null,null,null,null,null,null,null,null,null,null,null,null,null,null,null,null,null,null,null,null,null,null,null,null,null,null,null,null,null,null,null,null,null,null,null,null,null,null,null,null,null,null,null,null,null,null,null,null,null,null,null,null,null,null,null,null,null,null,null,null,null,null,null,null,129,999,"",60,null,65,20,"E45",75,null,null,null,null,null,null,null,null,null,null,null,null,null,null,null,null,null,null,null,null,null,null,null,36,null,92]
[null,105,45,null,null,45,null,105,17,null,null,23,null,null,null,null,null,null,null,null,null,null,null,null,null,null,null,null,null,null,null,null,null,null,null,null,null,null,null,null,null,null,null,null,null,null,null,null,null,null,null,null,null,null,null,null,null,null,null,null,null,null,null,null,null,null,null,null,null,null,null,null,null,null,null,null,null,null,null,"",null,null,null,null,"",null,null,null,null,null,null,null,null,null,null,null,null,null,null,null,null,null,null,null,null,null,null,null,null,null,null,148]
[null,106,129,45,null,212,null,106,65,30,35,92,null,null,null,null,null,null,null,null,null,null,null,null,null,null,null,null,null,null,null,null,null,null,null,null,null,null,null,null,null,null,null,null,null,null,null,null,null,null,null,null,null,null,null,null,null,null,null,null,null,null,null,null,null,null,null,null,null,null,null,null,null,null,null,null,null,60,999,"",197,null,17,0,"",30]
[null,107,129,null,6,84,null,107,65,62,3,93,null,null,null,null,null,null,null,null,null,null,null,null,null,null,null,null,null,null,null,null,null,null,null,null,null,null,null,null,null,null,null,null,null,null,null,null,null,null,null,null,null,null,null,null,null,null,null,null,null,null,null,null,null,null,null,null,null,null,null,null,null,null,null,null,null,53,null,"",37,null,17,0,"",19,null,null,null,null,null,null,null,null,null,null,null,null,null,null,null,null,null,null,null,null,null,null,null,37,null,44]
[null,108,65,null,null,173,null,108,33,null,null,39,null,null,null,null,null,null,null,null,null,null,null,null,null,null,null,null,null,null,null,null,null,null,null,null,null,null,null,null,null,null,null,null,null,null,null,null,null,null,null,null,null,null,null,null,null,null,null,null,null,null,null,null,null,null,null,null,null,null,null,null,null,null,null,null,null,null,null,"",null,null,null,null,"",null,null,null,null,null,null,null,null,null,null,null,null,null,null,null,null,null,null,null,null,null,null,null,null,null,null,149]
[null,109,65,null,null,109,null,109,33,null,null,94,null,null,null,null,null,null,null,null,null,null,null,null,null,null,null,null,null,null,null,null,null,null,null,null,null,null,null,null,null,null,null,null,null,null,null,null,null,null,null,null,null,null,null,null,null,null,null,null,null,null,null,null,null,null,null,null,null,null,null,null,null,null,null,null,null,129,53,"",220,null,65,28,"E37",76]
[null,110,129,null,12,148,null,110,65,46,19,95,null,null,null,null,null,null,null,null,null,null,null,null,null,null,null,null,null,null,null,null,null,null,null,null,null,null,null,null,null,null,null,null,null,null,null,null,null,null,null,null,null,null,null,null,null,null,null,null,null,null,null,null,null,null,null,null,null,null,null,null,null,null,null,null,null,129,null,"E10",92,null,65,60,"E5",77,null,null,null,null,null,null,null,null,null,null,null,null,null,null,null,null,null,null,null,null,null,null,null,38,null,69]
[null,111,129,20,null,20,null,111,65,14,51,96,null,null,null,null,null,null,null,null,null,null,null,null,null,null,null,null,null,null,null,null,null,null,null,null,null,null,null,null,null,null,null,null,null,null,null,null,null,null,null,null,null,null,null,null,null,null,null,null,null,null,null,null,null,null,null,null,null,null,null,null,null,null,null,null,null,null,null,"",null,null,null,null,"",null,null,null,null,null,null,null,null,null,null,null,null,null,null,null,null,null,null,null,null,null,null,null,null,null,null,150]
[null,112,20,null,null,237,null,112,9,null,null,10,null,null,null,null,null,null,null,null,null,null,null,null,null,null,null,null,null,null,null,null,null,null,null,null,null,null,null,null,null,null,null,null,null,null,null,null,null,null,null,null,null,null,null,null,null,null,null,null,null,null,null,null,null,null,null,null,null,null,null,null,null,null,null,null,null,65,null,"",165,null,33,0,"",35]
[null,113,29,null,null,29,null,113,9,null,null,15,null,null,null,null,null,null,null,null,null,null,null,null,null,null,null,null,null,null,null,null,null,null,null,null,null,null,null,null,null,null,null,null,null,null,null,null,null,null,null,null,null,null,null,null,null,null,null,null,null,null,null,null,null,null,null,null,null,null,null,null,null,null,null,null,null,65,null,"",101,null,33,0,"",78,null,null,null,null,null,null,null,null,null,null,null,null,null,null,null,null,null,null,null,null,null,null,null,39,null,101]
[null,114,129,29,null,228,null,114,65,10,55,97,null,null,null,null,null,null,null,null,null,null,null,null,null,null,null,null,null,null,null,null,null,null,null,null,null,null,null,null,null,null,null,null,null,null,null,null,null,null,null,null,null,null,null,null,null,null,null,null,null,null,null,null,null,null,null,null,null,null,null,null,null,null,null,null,null,null,null,"",null,null,null,null,"",null,null,null,null,null,null,null,null,null,null,null,null,null,null,null,null,null,null,null,null,null,null,null,null,null,null,151]
[null,115,129,null,null,100,null,115,65,42,23,98,null,null,null,null,null,null,null,null,null,null,null,null,null,null,null,null,null,null,null,null,null,null,null,null,null,null,null,null,null,null,null,null,null,null,null,null,null,null,null,null,null,null,null,null,null,null,null,null,null,null,null,null,null,null,null,null,null,null,null,null,null,null,null,null,null,129,null,"",156,null,65,44,"E21",79]
[null,116,65,null,null,157,null,116,33,null,null,99,null,null,null,null,null,null,null,null,null,null,null,null,null,null,null,null,null,null,null,null,null,null,null,null,null,null,null,null,null,null,null,null,null,null,null,null,null,null,null,null,null,null,null,null,null,null,null,null,null,null,null,null,null,null,null,null,null,null,null,null,null,null,null,null,null,129,28,"E2",28,null,65,12,"E53",80,null,null,null,null,null,null,null,null,null,null,null,null,null,null,null,null,null,null,null,null,null,null,null,40,null,81]
[null,117,65,null,null,93,null,117,33,null,null,34,null,null,null,null,null,null,null,null,null,null,null,null,null,null,null,null,null,null,null,null,null,null,null,null,null,null,null,null,null,null,null,null,null,null,null,null,null,null,null,null,null,null,null,null,null,null,null,null,null,null,null,null,null,null,null,null,null,null,null,null,null,null,null,null,null,null,null,"",null,null,null,null,"",null,null,null,null,null,null,null,null,null,null,null,null,null,null,null,null,null,null,null,null,null,null,null,null,null,null,152]
[null,118,129,null,14,164,null,118,65,58,7,100,null,null,null,null,null,null,null,null,null,null,null,null,null,null,null,null,null,null,null,null,null,null,null,null,null,null,null,null,null,null,null,null,null,null,null,null,null,null,null,null,null,null,null,null,null,null,null,null,null,null,null,null,null,null,null,null,null,null,null,null,null,null,null,null,null,28,null,"",229,null,9,0,"",14]
[null,119,129,52,null,36,null,119,65,26,39,101,null,null,null,null,null,null,null,null,null,null,null,null,null,null,null,null,null,null,null,null,null,null,null,null,null,null,null,null,null,null,null,null,null,null,null,null,null,null,null,null,null,null,null,null,null,null,null,null,null,null,null,null,null,null,null,null,null,null,null,null,null,null,null,null,null,21,null,"",21,null,9,0,"",11,null,null,null,null,null,null,null,null,null,null,null,null,null,null,null,null,null,null,null,null,null,null,null,41,null,41]
[null,120,52,null,null,221,null,120,17,null,null,18,null,null,null,null,null,null,null,null,null,null,null,null,null,null,null,null,null,null,null,null,null,null,null,null,null,null,null,null,null,null,null,null,null,null,null,null,null,null,null,null,null,null,null,null,null,null,null,null,null,null,null,null,null,null,null,null,null,null,null,null,null,null,null,null,null,null,null,"",null,null,null,null,"",null,null,null,null,null,null,null,null,null,null,null,null,null,null,null,null,null,null,null,null,null,null,null,null,null,null,153]
[null,121,61,999,null,61,null,121,17,null,null,31,null,null,null,null,null,null,null,null,null,null,null,null,null,null,null,null,null,null,null,null,null,null,null,null,null,null,null,null,null,null,null,null,null,null,null,null,null,null,null,null,null,null,null,null,null,null,null,null,null,null,null,null,null,null,null,null,null,null,null,null,null,null,null,null,null,129,21,"E30",236,null,65,16,"E49",81]
[null,122,129,999,null,196,null,122,65,18,47,102,null,null,null,null,null,null,null,null,null,null,null,null,null,null,null,null,null,null,null,null,null,null,null,null,null,null,null,null,null,null,null,null,null,null,null,null,null,null,null,null,null,null,null,null,null,null,null,null,null,null,null,null,null,null,null,null,null,null,null,null,null,null,null,null,null,129,null,"",108,null,65,48,"E17",82,null,null,null,null,null,null,null,null,null,null,null,null,null,null,null,null,null,null,null,null,null,null,null,42,null,99]
[null,123,129,999,null,68,null,123,65,50,15,103,null,null,null,null,null,null,null,null,null,null,null,null,null,null,null,null,null,null,null,null,null,null,null,null,null,null,null,null,null,null,null,null,null,null,null,null,null,null,null,null,null,null,null,null,null,null,null,null,null,null,null,null,null,null,null,null,null,null,null,null,null,null,null,null,null,null,null,"",null,null,null,null,"",null,null,null,null,null,null,null,null,null,null,null,null,null,null,null,null,null,null,null,null,null,null,null,null,null,null,154]
[null,124,65,999,null,189,null,124,33,null,null,104,null,null,null,null,null,null,null,null,null,null,null,null,null,null,null,null,null,null,null,null,null,null,null,null,null,null,null,null,null,null,null,null,null,null,null,null,null,null,null,null,null,null,null,null,null,null,null,null,null,null,null,null,null,null,null,null,null,null,null,null,null,null,null,null,null,65,null,"",149,null,33,0,"",83]
[null,125,65,999,null,125,null,125,33,null,null,999,null,null,null,null,null,null,null,null,null,null,null,null,null,null,null,null,null,null,null,null,null,null,null,null,null,null,null,null,null,null,null,null,null,null,null,null,null,null,null,null,null,null,null,null,null,null,null,null,null,null,null,null,null,null,null,null,null,null,null,null,null,null,null,null,null,65,null,"",85,null,33,0,"",38,null,null,null,null,null,null,null,null,null,null,null,null,null,null,null,null,null,null,null,null,null,null,null,43,null,78]
[null,126,129,999,null,132,null,126,65,34,31,999,null,null,null,null,null,null,null,null,null,null,null,null,null,null,null,null,null,null,null,null,null,null,null,null,null,null,null,null,null,null,null,null,null,null,null,null,null,null,null,null,null,null,null,null,null,null,null,null,null,null,null,null,null,null,null,null,null,null,null,null,null,null,null,null,null,null,null,"",null,null,null,null,"",null,null,null,null,null,null,null,null,null,null,null,null,null,null,null,null,null,null,null,null,null,null,null,null,null,null,155]
[null,127,129,999,null,253,null,127,65,2,63,999,null,null,null,null,null,null,null,null,null,null,null,null,null,null,null,null,null,null,null,null,null,null,null,null,null,null,null,null,null,null,null,null,null,null,null,null,null,null,null,null,null,null,null,null,null,null,null,null,null,null,null,null,null,null,null,null,null,null,null,null,null,null,null,null,null,129,null,"E16",172,null,65,64,"E1",84]
[null,128,4,null,null,4,null,128,2,null,null,2,null,null,null,null,null,null,null,null,null,null,null,null,null,null,null,null,null,null,null,null,null,null,null,null,null,null,null,null,null,null,null,null,null,null,null,null,null,null,null,null,null,null,null,null,null,null,null,null,null,null,null,null,null,null,null,null,null,null,null,null,null,null,null,null,null,129,44,"",44,null,65,32,"E33",85,null,null,null,null,null,null,null,null,null,null,null,null,null,null,null,null,null,null,null,null,null,null,null,44,null,57]
[null,129,3,null,null,3,null,null,null,null,null,null,null,null,null,null,null,null,null,null,null,null,null,null,null,null,null,null,null,null,null,null,null,null,null,null,null,null,null,null,null,null,null,null,null,null,null,null,null,null,null,null,null,null,null,null,null,null,null,null,null,null,null,null,null,null,null,null,null,null,null,null,null,null,null,null,null,null,null,"",null,null,null,null,"",null,null,null,null,null,null,null,null,null,null,null,null,null,null,null,null,null,null,null,null,null,null,null,null,null,null,156]
[null,130,129,999,null,254,null,null,null,null,null,null,null,null,null,null,null,null,null,null,null,null,null,null,null,null,null,null,null,null,null,null,null,null,null,null,null,null,null,null,null,null,null,null,null,null,null,null,null,null,null,null,null,null,null,null,null,null,null,null,null,null,null,null,null,null,null,null,null,null,null,null,null,null,null,null,null,44,null,"",213,null,17,0,"",22]
[null,131,129,999,null,126,null,null,null,null,null,null,null,null,null,null,null,null,null,null,null,null,null,null,null,null,null,null,null,null,null,null,null,null,null,null,null,null,null,null,null,null,null,null,null,null,null,null,null,null,null,null,null,null,null,null,null,null,null,null,null,null,null,null,null,null,null,null,null,null,null,null,null,null,null,null,null,37,null,"",53,null,17,0,"",27,null,null,null,null,null,null,null,null,null,null,null,null,null,null,null,null,null,null,null,null,null,null,null,45,null,73]
[null,132,65,999,null,131,null,null,null,null,null,null,null,null,null,null,null,null,null,null,null,null,null,null,null,null,null,null,null,null,null,null,null,null,null,null,null,null,null,null,null,null,null,null,null,null,null,null,null,null,null,null,null,null,null,null,null,null,null,null,null,null,null,null,null,null,null,null,null,null,null,null,null,null,null,null,null,null,null,"",null,null,null,null,"",null,null,null,null,null,null,null,null,null,null,null,null,null,null,null,null,null,null,null,null,null,null,null,null,null,null,157]
[null,133,65,999,null,67,null,null,null,null,null,null,null,null,null,null,null,null,null,null,null,null,null,null,null,null,null,null,null,null,null,null,null,null,null,null,null,null,null,null,null,null,null,null,null,null,null,null,null,null,null,null,null,null,null,null,null,null,null,null,null,null,null,null,null,null,null,null,null,null,null,null,null,null,null,null,null,129,37,"",204,null,65,24,"E41",86]
[null,134,129,999,null,190,null,null,null,null,null,null,null,null,null,null,null,null,null,null,null,null,null,null,null,null,null,null,null,null,null,null,null,null,null,null,null,null,null,null,null,null,null,null,null,null,null,null,null,null,null,null,null,null,null,null,null,null,null,null,null,null,null,null,null,null,null,null,null,null,null,null,null,null,null,null,null,129,null,"E18",76,null,65,56,"E9",87,null,null,null,null,null,null,null,null,null,null,null,null,null,null,null,null,null,null,null,null,null,null,null,46,null,37]
[null,135,129,999,null,62,null,null,null,null,null,null,null,null,null,null,null,null,null,null,null,null,null,null,null,null,null,null,null,null,null,null,null,null,null,null,null,null,null,null,null,null,null,null,null,null,null,null,null,null,null,null,null,null,null,null,null,null,null,null,null,null,null,null,null,null,null,null,null,null,null,null,null,null,null,null,null,null,null,"",null,null,null,null,"",null,null,null,null,null,null,null,null,null,null,null,null,null,null,null,null,null,null,null,null,null,null,null,null,null,null,158]
[null,136,62,999,null,195,null,null,null,null,null,null,null,null,null,null,null,null,null,null,null,null,null,null,null,null,null,null,null,null,null,null,null,null,null,null,null,null,null,null,null,null,null,null,null,null,null,null,null,null,null,null,null,null,null,null,null,null,null,null,null,null,null,null,null,null,null,null,null,null,null,null,null,null,null,null,null,65,null,"",181,null,33,0,"",88]
[null,137,51,null,null,35,null,null,null,null,null,null,null,null,null,null,null,null,null,null,null,null,null,null,null,null,null,null,null,null,null,null,null,null,null,null,null,null,null,null,null,null,null,null,null,null,null,null,null,null,null,null,null,null,null,null,null,null,null,null,null,null,null,null,null,null,null,null,null,null,null,null,null,null,null,null,null,65,null,"",117,null,33,0,"",999,null,null,null,null,null,null,null,null,null,null,null,null,null,null,null,null,null,null,null,null,null,null,null,47,null,51]
[null,138,129,51,null,222,null,null,null,null,null,null,null,null,null,null,null,null,null,null,null,null,null,null,null,null,null,null,null,null,null,null,null,null,null,null,null,null,null,null,null,null,null,null,null,null,null,null,null,null,null,null,null,null,null,null,null,null,null,null,null,null,null,null,null,null,null,null,null,null,null,null,null,null,null,null,null,null,null,"",null,null,null,null,"",null,null,null,null,null,null,null,null,null,null,null,null,null,null,null,null,null,null,null,null,null,null,null,null,null,null,159]
[null,139,129,null,13,94,null,null,null,null,null,null,null,null,null,null,null,null,null,null,null,null,null,null,null,null,null,null,null,null,null,null,null,null,null,null,null,null,null,null,null,null,null,null,null,null,null,null,null,null,null,null,null,null,null,null,null,null,null,null,null,null,null,null,null,null,null,null,null,null,null,null,null,null,null,null,null,129,null,"",140,null,65,40,"E25",999]
[null,140,65,null,null,163,null,null,null,null,null,null,null,null,null,null,null,null,null,null,null,null,null,null,null,null,null,null,null,null,null,null,null,null,null,null,null,null,null,null,null,null,null,null,null,null,null,null,null,null,null,null,null,null,null,null,null,null,null,null,null,null,null,null,null,null,null,null,null,null,null,null,null,null,null,null,null,129,12,"",12,null,65,8,"E57",999,null,null,null,null,null,null,null,null,null,null,null,null,null,null,null,null,null,null,null,null,null,null,null,48,null,56]
[null,141,65,null,null,99,null,null,null,null,null,null,null,null,null,null,null,null,null,null,null,null,null,null,null,null,null,null,null,null,null,null,null,null,null,null,null,null,null,null,null,null,null,null,null,null,null,null,null,null,null,null,null,null,null,null,null,null,null,null,null,null,null,null,null,null,null,null,null,null,null,null,null,null,null,null,null,null,null,"",null,null,null,null,"",null,null,null,null,null,null,null,null,null,null,null,null,null,null,null,null,null,null,null,null,null,null,null,null,null,null,160]
[null,142,129,null,null,158,null,null,null,null,null,null,null,null,null,null,null,null,null,null,null,null,null,null,null,null,null,null,null,null,null,null,null,null,null,null,null,null,null,null,null,null,null,null,null,null,null,null,null,null,null,null,null,null,null,null,null,null,null,null,null,null,null,null,null,null,null,null,null,null,null,null,null,null,null,null,null,12,null,"",245,null,5,0,"",6]
[null,143,129,30,28,30,null,null,null,null,null,null,null,null,null,null,null,null,null,null,null,null,null,null,null,null,null,null,null,null,null,null,null,null,null,null,null,null,null,null,null,null,null,null,null,null,null,null,null,null,null,null,null,null,null,null,null,null,null,null,null,null,null,null,null,null,null,null,null,null,null,null,null,null,null,null,null,13,null,"",13,null,5,0,"",7,null,null,null,null,null,null,null,null,null,null,null,null,null,null,null,null,null,null,null,null,null,null,null,49]
[null,144,30,null,null,227,null,null,null,null,null,null,null,null,null,null,null,null,null,null,null,null,null,null,null,null,null,null,null,null,null,null,null,null,null,null,null,null,null,null,null,null,null,null,null,null,null,null,null,null,null,null,null,null,null,null,null,null,null,null,null,null,null,null,null,null,null,null,null,null,null,null,null,null,null,null,null,null,null,"",null,null,null,null,""]
[null,145,19,null,null,19,null,null,null,null,null,null,null,null,null,null,null,null,null,null,null,null,null,null,null,null,null,null,null,null,null,null,null,null,null,null,null,null,null,null,null,null,null,null,null,null,null,null,null,null,null,null,null,null,null,null,null,null,null,null,null,null,null,null,null,null,null,null,null,null,null,null,null,null,null,null,null,129,13,"",244,null,65,6,"E59",999]
[null,146,129,19,null,238,null,null,null,null,null,null,null,null,null,null,null,null,null,null,null,null,null,null,null,null,null,null,null,null,null,null,null,null,null,null,null,null,null,null,null,null,null,null,null,null,null,null,null,null,null,null,null,null,null,null,null,null,null,null,null,null,null,null,null,null,null,null,null,null,null,null,null,null,null,null,null,129,null,"E27",116,null,65,38,"E27",999,null,null,null,null,null,null,null,null,null,null,null,null,null,null,null,null,null,null,null,null,null,null,null,50]
[null,147,129,null,null,110,null,null,null,null,null,null,null,null,null,null,null,null,null,null,null,null,null,null,null,null,null,null,null,null,null,null,null,null,null,null,null,null,null,null,null,null,null,null,null,null,null,null,null,null,null,null,null,null,null,null,null,null,null,null,null,null,null,null,null,null,null,null,null,null,null,null,null,null,null,null,null,null,null,"",null,null,null,null,""]
[null,148,65,null,null,147,null,null,null,null,null,null,null,null,null,null,null,null,null,null,null,null,null,null,null,null,null,null,null,null,null,null,null,null,null,null,null,null,null,null,null,null,null,null,null,null,null,null,null,null,null,null,null,null,null,null,null,null,null,null,null,null,null,null,null,null,null,null,null,null,null,null,null,null,null,null,null,65,null,"",141,null,33,0,"",999]
[null,149,65,null,null,83,null,null,null,null,null,null,null,null,null,null,null,null,null,null,null,null,null,null,null,null,null,null,null,null,null,null,null,null,null,null,null,null,null,null,null,null,null,null,null,null,null,null,null,null,null,null,null,null,null,null,null,null,null,null,null,null,null,null,null,null,null,null,null,null,null,null,null,null,null,null,null,65,null,"",77,null,33,0,"",89,null,null,null,null,null,null,null,null,null,null,null,null,null,null,null,null,null,null,null,null,null,null,null,51]
[null,150,129,null,5,174,null,null,null,null,null,null,null,null,null,null,null,null,null,null,null,null,null,null,null,null,null,null,null,null,null,null,null,null,null,null,null,null,null,null,null,null,null,null,null,null,null,null,null,null,null,null,null,null,null,null,null,null,null,null,null,null,null,null,null,null,null,null,null,null,null,null,null,null,null,null,null,null,null,"",null,null,null,null,""]
[null,151,129,46,null,46,null,null,null,null,null,null,null,null,null,null,null,null,null,null,null,null,null,null,null,null,null,null,null,null,null,null,null,null,null,null,null,null,null,null,null,null,null,null,null,null,null,null,null,null,null,null,null,null,null,null,null,null,null,null,null,null,null,null,null,null,null,null,null,null,null,null,null,null,null,null,null,129,null,"E22",180,null,65,54,"E11",90]
[null,152,46,null,null,211,null,null,null,null,null,null,null,null,null,null,null,null,null,null,null,null,null,null,null,null,null,null,null,null,null,null,null,null,null,null,null,null,null,null,null,null,null,null,null,null,null,null,null,null,null,null,null,null,null,null,null,null,null,null,null,null,null,null,null,null,null,null,null,null,null,null,null,null,null,null,null,129,36,"",52,null,65,22,"E43",91,null,null,null,null,null,null,null,null,null,null,null,null,null,null,null,null,null,null,null,null,null,null,null,52]
[null,153,35,null,null,51,null,null,null,null,null,null,null,null,null,null,null,null,null,null,null,null,null,null,null,null,null,null,null,null,null,null,null,null,null,null,null,null,null,null,null,null,null,null,null,null,null,null,null,null,null,null,null,null,null,null,null,null,null,null,null,null,null,null,null,null,null,null,null,null,null,null,null,null,null,null,null,null,null,"",null,null,null,null,""]
[null,154,129,35,null,206,null,null,null,null,null,null,null,null,null,null,null,null,null,null,null,null,null,null,null,null,null,null,null,null,null,null,null,null,null,null,null,null,null,null,null,null,null,null,null,null,null,null,null,null,null,null,null,null,null,null,null,null,null,null,null,null,null,null,null,null,null,null,null,null,null,null,null,null,null,null,null,36,null,"",205,null,17,0,"",26]
[null,155,129,null,21,78,null,null,null,null,null,null,null,null,null,null,null,null,null,null,null,null,null,null,null,null,null,null,null,null,null,null,null,null,null,null,null,null,null,null,null,null,null,null,null,null,null,null,null,null,null,null,null,null,null,null,null,null,null,null,null,null,null,null,null,null,null,null,null,null,null,null,null,null,null,null,null,45,null,"",45,null,17,0,"",23,null,null,null,null,null,null,null,null,null,null,null,null,null,null,null,null,null,null,null,null,null,null,null,53]
[null,156,65,null,null,179,null,null,null,null,null,null,null,null,null,null,null,null,null,null,null,null,null,null,null,null,null,null,null,null,null,null,null,null,null,null,null,null,null,null,null,null,null,null,null,null,null,null,null,null,null,null,null,null,null,null,null,null,null,null,null,null,null,null,null,null,null,null,null,null,null,null,null,null,null,null,null,null,null,"",null,null,null,null,""]
[null,157,65,null,null,115,null,null,null,null,null,null,null,null,null,null,null,null,null,null,null,null,null,null,null,null,null,null,null,null,null,null,null,null,null,null,null,null,null,null,null,null,null,null,null,null,null,null,null,null,null,null,null,null,null,null,null,null,null,null,null,null,null,null,null,null,null,null,null,null,null,null,null,null,null,null,null,129,45,"",212,null,65,30,"E35",92]
[null,158,129,null,31,142,null,null,null,null,null,null,null,null,null,null,null,null,null,null,null,null,null,null,null,null,null,null,null,null,null,null,null,null,null,null,null,null,null,null,null,null,null,null,null,null,null,null,null,null,null,null,null,null,null,null,null,null,null,null,null,null,null,null,null,null,null,null,null,null,null,null,null,null,null,null,null,129,null,"E6",84,null,65,62,"E3",93,null,null,null,null,null,null,null,null,null,null,null,null,null,null,null,null,null,null,null,null,null,null,null,54]
[null,159,129,14,null,14,null,null,null,null,null,null,null,null,null,null,null,null,null,null,null,null,null,null,null,null,null,null,null,null,null,null,null,null,null,null,null,null,null,null,null,null,null,null,null,null,null,null,null,null,null,null,null,null,null,null,null,null,null,null,null,null,null,null,null,null,null,null,null,null,null,null,null,null,null,null,null,null,null,"",null,null,null,null,""]
[null,160,14,null,null,243,null,null,null,null,null,null,null,null,null,null,null,null,null,null,null,null,null,null,null,null,null,null,null,null,null,null,null,null,null,null,null,null,null,null,null,null,null,null,null,null,null,null,null,null,null,null,null,null,null,null,null,null,null,null,null,null,null,null,null,null,null,null,null,null,null,null,null,null,null,null,null,65,null,"",173,null,33,0,"",39]
[null,161,11,null,null,11,null,null,null,null,null,null,null,null,null,null,null,null,null,null,null,null,null,null,null,null,null,null,null,null,null,null,null,null,null,null,null,null,null,null,null,null,null,null,null,null,null,null,null,null,null,null,null,null,null,null,null,null,null,null,null,null,null,null,null,null,null,null,null,null,null,null,null,null,null,null,null,65,null,"",109,null,33,0,"",94,null,null,null,null,null,null,null,null,null,null,null,null,null,null,null,null,null,null,null,null,null,null,null,55]
[null,162,129,11,null,246,null,null,null,null,null,null,null,null,null,null,null,null,null,null,null,null,null,null,null,null,null,null,null,null,null,null,null,null,null,null,null,null,null,null,null,null,null,null,null,null,null,null,null,null,null,null,null,null,null,null,null,null,null,null,null,null,null,null,null,null,null,null,null,null,null,null,null,null,null,null,null,null,null,"",null,null,null,null,""]
[null,163,129,null,null,118,null,null,null,null,null,null,null,null,null,null,null,null,null,null,null,null,null,null,null,null,null,null,null,null,null,null,null,null,null,null,null,null,null,null,null,null,null,null,null,null,null,null,null,null,null,null,null,null,null,null,null,null,null,null,null,null,null,null,null,null,null,null,null,null,null,null,null,null,null,null,null,129,null,"E12",148,null,65,46,"E19",95]
[null,164,65,null,null,139,null,null,null,null,null,null,null,null,null,null,null,null,null,null,null,null,null,null,null,null,null,null,null,null,null,null,null,null,null,null,null,null,null,null,null,null,null,null,null,null,null,null,null,null,null,null,null,null,null,null,null,null,null,null,null,null,null,null,null,null,null,null,null,null,null,null,null,null,null,null,null,129,20,"",20,null,65,14,"E51",96,null,null,null,null,null,null,null,null,null,null,null,null,null,null,null,null,null,null,null,null,null,null,null,56]
[null,165,65,null,null,75,null,null,null,null,null,null,null,null,null,null,null,null,null,null,null,null,null,null,null,null,null,null,null,null,null,null,null,null,null,null,null,null,null,null,null,null,null,null,null,null,null,null,null,null,null,null,null,null,null,null,null,null,null,null,null,null,null,null,null,null,null,null,null,null,null,null,null,null,null,null,null,null,null,"",null,null,null,null,""]
[null,166,129,null,17,182,null,null,null,null,null,null,null,null,null,null,null,null,null,null,null,null,null,null,null,null,null,null,null,null,null,null,null,null,null,null,null,null,null,null,null,null,null,null,null,null,null,null,null,null,null,null,null,null,null,null,null,null,null,null,null,null,null,null,null,null,null,null,null,null,null,null,null,null,null,null,null,20,null,"",237,null,9,0,"",10]
[null,167,129,38,null,54,null,null,null,null,null,null,null,null,null,null,null,null,null,null,null,null,null,null,null,null,null,null,null,null,null,null,null,null,null,null,null,null,null,null,null,null,null,null,null,null,null,null,null,null,null,null,null,null,null,null,null,null,null,null,null,null,null,null,null,null,null,null,null,null,null,null,null,null,null,null,null,29,null,"",29,null,9,0,"",15,null,null,null,null,null,null,null,null,null,null,null,null,null,null,null,null,null,null,null,null,null,null,null,57]
[null,168,38,null,null,203,null,null,null,null,null,null,null,null,null,null,null,null,null,null,null,null,null,null,null,null,null,null,null,null,null,null,null,null,null,null,null,null,null,null,null,null,null,null,null,null,null,null,null,null,null,null,null,null,null,null,null,null,null,null,null,null,null,null,null,null,null,null,null,null,null,null,null,null,null,null,null,null,null,"",null,null,null,null,""]
[null,169,43,null,null,43,null,null,null,null,null,null,null,null,null,null,null,null,null,null,null,null,null,null,null,null,null,null,null,null,null,null,null,null,null,null,null,null,null,null,null,null,null,null,null,null,null,null,null,null,null,null,null,null,null,null,null,null,null,null,null,null,null,null,null,null,null,null,null,null,null,null,null,null,null,null,null,129,29,"",228,null,65,10,"E55",97]
[null,170,129,43,null,214,null,null,null,null,null,null,null,null,null,null,null,null,null,null,null,null,null,null,null,null,null,null,null,null,null,null,null,null,null,null,null,null,null,null,null,null,null,null,null,null,null,null,null,null,null,null,null,null,null,null,null,null,null,null,null,null,null,null,null,null,null,null,null,null,null,null,null,null,null,null,null,129,null,"",100,null,65,42,"E23",98,null,null,null,null,null,null,null,null,null,null,null,null,null,null,null,null,null,null,null,null,null,null,null,58]
[null,171,129,null,1,86,null,null,null,null,null,null,null,null,null,null,null,null,null,null,null,null,null,null,null,null,null,null,null,null,null,null,null,null,null,null,null,null,null,null,null,null,null,null,null,null,null,null,null,null,null,null,null,null,null,null,null,null,null,null,null,null,null,null,null,null,null,null,null,null,null,null,null,null,null,null,null,null,null,"",null,null,null,null,""]
[null,172,65,null,null,171,null,null,null,null,null,null,null,null,null,null,null,null,null,null,null,null,null,null,null,null,null,null,null,null,null,null,null,null,null,null,null,null,null,null,null,null,null,null,null,null,null,null,null,null,null,null,null,null,null,null,null,null,null,null,null,null,null,null,null,null,null,null,null,null,null,null,null,null,null,null,null,65,null,"",157,null,33,0,"",99]
[null,173,65,null,null,107,null,null,null,null,null,null,null,null,null,null,null,null,null,null,null,null,null,null,null,null,null,null,null,null,null,null,null,null,null,null,null,null,null,null,null,null,null,null,null,null,null,null,null,null,null,null,null,null,null,null,null,null,null,null,null,null,null,null,null,null,null,null,null,null,null,null,null,null,null,null,null,65,null,"",93,null,33,0,"",34,null,null,null,null,null,null,null,null,null,null,null,null,null,null,null,null,null,null,null,null,null,null,null,59]
[null,174,129,null,null,150,null,null,null,null,null,null,null,null,null,null,null,null,null,null,null,null,null,null,null,null,null,null,null,null,null,null,null,null,null,null,null,null,null,null,null,null,null,null,null,null,null,null,null,null,null,null,null,null,null,null,null,null,null,null,null,null,null,null,null,null,null,null,null,null,null,null,null,null,null,null,null,null,null,"",null,null,null,null,""]
[null,175,129,22,null,22,null,null,null,null,null,null,null,null,null,null,null,null,null,null,null,null,null,null,null,null,null,null,null,null,null,null,null,null,null,null,null,null,null,null,null,null,null,null,null,null,null,null,null,null,null,null,null,null,null,null,null,null,null,null,null,null,null,null,null,null,null,null,null,null,null,null,null,null,null,null,null,129,null,"E14",164,null,65,58,"E7",100]
[null,176,22,null,null,235,null,null,null,null,null,null,null,null,null,null,null,null,null,null,null,null,null,null,null,null,null,null,null,null,null,null,null,null,null,null,null,null,null,null,null,null,null,null,null,null,null,null,null,null,null,null,null,null,null,null,null,null,null,null,null,null,null,null,null,null,null,null,null,null,null,null,null,null,null,null,null,129,52,"",36,null,65,26,"E39",101,null,null,null,null,null,null,null,null,null,null,null,null,null,null,null,null,null,null,null,null,null,null,null,60]
[null,177,27,null,null,27,null,null,null,null,null,null,null,null,null,null,null,null,null,null,null,null,null,null,null,null,null,null,null,null,null,null,null,null,null,null,null,null,null,null,null,null,null,null,null,null,null,null,null,null,null,null,null,null,null,null,null,null,null,null,null,null,null,null,null,null,null,null,null,null,null,null,null,null,null,null,null,null,null,"",null,null,null,null,""]
[null,178,129,27,null,230,null,null,null,null,null,null,null,null,null,null,null,null,null,null,null,null,null,null,null,null,null,null,null,null,null,null,null,null,null,null,null,null,null,null,null,null,null,null,null,null,null,null,null,null,null,null,null,null,null,null,null,null,null,null,null,null,null,null,null,null,null,null,null,null,null,null,null,null,null,null,null,52,null,"",221,null,17,0,"",18]
[null,179,129,null,null,102,null,null,null,null,null,null,null,null,null,null,null,null,null,null,null,null,null,null,null,null,null,null,null,null,null,null,null,null,null,null,null,null,null,null,null,null,null,null,null,null,null,null,null,null,null,null,null,null,null,null,null,null,null,null,null,null,null,null,null,null,null,null,null,null,null,null,null,null,null,null,null,61,999,"",61,null,17,0,"",31,null,null,null,null,null,null,null,null,null,null,null,null,null,null,null,null,null,null,null,null,null,null,null,61]
[null,180,65,null,null,155,null,null,null,null,null,null,null,null,null,null,null,null,null,null,null,null,null,null,null,null,null,null,null,null,null,null,null,null,null,null,null,null,null,null,null,null,null,null,null,null,null,null,null,null,null,null,null,null,null,null,null,null,null,null,null,null,null,null,null,null,null,null,null,null,null,null,null,null,null,null,null,null,null,"",null,null,null,null,""]
[null,181,65,null,null,91,null,null,null,null,null,null,null,null,null,null,null,null,null,null,null,null,null,null,null,null,null,null,null,null,null,null,null,null,null,null,null,null,null,null,null,null,null,null,null,null,null,null,null,null,null,null,null,null,null,null,null,null,null,null,null,null,null,null,null,null,null,null,null,null,null,null,null,null,null,null,null,129,999,"",196,null,65,18,"E47",102]
[null,182,129,null,9,166,null,null,null,null,null,null,null,null,null,null,null,null,null,null,null,null,null,null,null,null,null,null,null,null,null,null,null,null,null,null,null,null,null,null,null,null,null,null,null,null,null,null,null,null,null,null,null,null,null,null,null,null,null,null,null,null,null,null,null,null,null,null,null,null,null,null,null,null,null,null,null,129,999,"",68,null,65,50,"E15",103,null,null,null,null,null,null,null,null,null,null,null,null,null,null,null,null,null,null,null,null,null,null,null,62]
[null,183,129,54,null,38,null,null,null,null,null,null,null,null,null,null,null,null,null,null,null,null,null,null,null,null,null,null,null,null,null,null,null,null,null,null,null,null,null,null,null,null,null,null,null,null,null,null,null,null,null,null,null,null,null,null,null,null,null,null,null,null,null,null,null,null,null,null,null,null,null,null,null,null,null,null,null,null,null,"",null,null,null,null,""]
[null,184,54,null,null,219,null,null,null,null,null,null,null,null,null,null,null,null,null,null,null,null,null,null,null,null,null,null,null,null,null,null,null,null,null,null,null,null,null,null,null,null,null,null,null,null,null,null,null,null,null,null,null,null,null,null,null,null,null,null,null,null,null,null,null,null,null,null,null,null,null,null,null,null,null,null,null,65,999,"",189,null,33,0,"",104]
[null,185,59,999,null,59,null,null,null,null,null,null,null,null,null,null,null,null,null,null,null,null,null,null,null,null,null,null,null,null,null,null,null,null,null,null,null,null,null,null,null,null,null,null,null,null,null,null,null,null,null,null,null,null,null,null,null,null,null,null,null,null,null,null,null,null,null,null,null,null,null,null,null,null,null,null,null,65,999,"",125,null,33,0,"",999,null,null,null,null,null,null,null,null,null,null,null,null,null,null,null,null,null,null,null,null,null,null,null,63]
[null,186,129,999,null,198,null,null,null,null,null,null,null,null,null,null,null,null,null,null,null,null,null,null,null,null,null,null,null,null,null,null,null,null,null,null,null,null,null,null,null,null,null,null,null,null,null,null,null,null,null,null,null,null,null,null,null,null,null,null,null,null,null,null,null,null,null,null,null,null,null,null,null,null,null,null,null,null,null,"",null,null,null,null,""]
[null,187,129,999,null,70,null,null,null,null,null,null,null,null,null,null,null,null,null,null,null,null,null,null,null,null,null,null,null,null,null,null,null,null,null,null,null,null,null,null,null,null,null,null,null,null,null,null,null,null,null,null,null,null,null,null,null,null,null,null,null,null,null,null,null,null,null,null,null,null,null,null,null,null,null,null,null,129,999,"",132,null,65,34,"E31",999]
[null,188,65,999,null,187,null,null,null,null,null,null,null,null,null,null,null,null,null,null,null,null,null,null,null,null,null,null,null,null,null,null,null,null,null,null,null,null,null,null,null,null,null,null,null,null,null,null,null,null,null,null,null,null,null,null,null,null,null,null,null,null,null,null,null,null,null,null,null,null,null,null,null,null,null,null,null,129,999,"",253,null,65,2,"E63",999,null,null,null,null,null,null,null,null,null,null,null,null,null,null,null,null,null,null,null,null,null,null,null,64]
[null,189,65,999,null,123,null,null,null,null,null,null,null,null,null,null,null,null,null,null,null,null,null,null,null,null,null,null,null,null,null,null,null,null,null,null,null,null,null,null,null,null,null,null,null,null,null,null,null,null,null,null,null,null,null,null,null,null,null,null,null,null,null,null,null,null,null,null,null,null,null,null,null,null,null,null,null,null,null,""]
[null,190,129,999,null,134,null,null,null,null,null,null,null,null,null,null,null,null,null,null,null,null,null,null,null,null,null,null,null,null,null,null,null,null,null,null,null,null,null,null,null,null,null,null,null,null,null,null,null,null,null,null,null,null,null,null,null,null,null,null,null,null,null,null,null,null,null,null,null,null,null,null,null,null,null,null,null,4,null,"",4,null,2,0,0,2]
[null,191,129,999,null,251,null,null,null,null,null,null,null,null,null,null,null,null,null,null,null,null,null,null,null,null,null,null,null,null,null,null,null,null,null,null,null,null,null,null,null,null,null,null,null,null,null,null,null,null,null,null,null,null,null,null,null,null,null,null,null,null,null,null,null,null,null,null,null,null,null,null,null,null,null,null,null,3,null,"",3]
[null,192,6,null,null,6,null,null,null,null,null,null,null,null,null,null,null,null,null,null,null,null,null,null,null,null,null,null,null,null,null,null,null,null,null,null,null,null,null,null,null,null,null,null,null,null,null,null,null,null,null,null,null,null,null,null,null,null,null,null,null,null,null,null,null,null,null,null,null,null,null,null,null,null,null,null,null,null,null,""]
[null,193,7,null,null,7,null,null,null,null,null,null,null,null,null,null,null,null,null,null,null,null,null,null,null,null,null,null,null,null,null,null,null,null,null,null,null,null,null,null,null,null,null,null,null,null,null,null,null,null,null,null,null,null,null,null,null,null,null,null,null,null,null,null,null,null,null,null,null,null,null,null,null,null,null,null,null,129,999,"",254]
[null,194,129,999,null,250,null,null,null,null,null,null,null,null,null,null,null,null,null,null,null,null,null,null,null,null,null,null,null,null,null,null,null,null,null,null,null,null,null,null,null,null,null,null,null,null,null,null,null,null,null,null,null,null,null,null,null,null,null,null,null,null,null,null,null,null,null,null,null,null,null,null,null,null,null,null,null,129,999,"",126]
[null,195,129,999,null,122,null,null,null,null,null,null,null,null,null,null,null,null,null,null,null,null,null,null,null,null,null,null,null,null,null,null,null,null,null,null,null,null,null,null,null,null,null,null,null,null,null,null,null,null,null,null,null,null,null,null,null,null,null,null,null,null,null,null,null,null,null,null,null,null,null,null,null,null,null,null,null,null,null,""]
[null,196,65,999,null,135,null,null,null,null,null,null,null,null,null,null,null,null,null,null,null,null,null,null,null,null,null,null,null,null,null,null,null,null,null,null,null,null,null,null,null,null,null,null,null,null,null,null,null,null,null,null,null,null,null,null,null,null,null,null,null,null,null,null,null,null,null,null,null,null,null,null,null,null,null,null,null,65,999,"",131]
[null,197,65,999,null,71,null,null,null,null,null,null,null,null,null,null,null,null,null,null,null,null,null,null,null,null,null,null,null,null,null,null,null,null,null,null,null,null,null,null,null,null,null,null,null,null,null,null,null,null,null,null,null,null,null,null,null,null,null,null,null,null,null,null,null,null,null,null,null,null,null,null,null,null,null,null,null,65,999,"",67]
[null,198,129,999,null,186,null,null,null,null,null,null,null,null,null,null,null,null,null,null,null,null,null,null,null,null,null,null,null,null,null,null,null,null,null,null,null,null,null,null,null,null,null,null,null,null,null,null,null,null,null,null,null,null,null,null,null,null,null,null,null,null,null,null,null,null,null,null,null,null,null,null,null,null,null,null,null,null,null,""]
[null,199,129,999,null,58,null,null,null,null,null,null,null,null,null,null,null,null,null,null,null,null,null,null,null,null,null,null,null,null,null,null,null,null,null,null,null,null,null,null,null,null,null,null,null,null,null,null,null,null,null,null,null,null,null,null,null,null,null,null,null,null,null,null,null,null,null,null,null,null,null,null,null,null,null,null,null,129,999,"",190]
[null,200,58,999,null,199,null,null,null,null,null,null,null,null,null,null,null,null,null,null,null,null,null,null,null,null,null,null,null,null,null,null,null,null,null,null,null,null,null,null,null,null,null,null,null,null,null,null,null,null,null,null,null,null,null,null,null,null,null,null,null,null,null,null,null,null,null,null,null,null,null,null,null,null,null,null,null,129,999,"",62]
[null,201,55,null,null,39,null,null,null,null,null,null,null,null,null,null,null,null,null,null,null,null,null,null,null,null,null,null,null,null,null,null,null,null,null,null,null,null,null,null,null,null,null,null,null,null,null,null,null,null,null,null,null,null,null,null,null,null,null,null,null,null,null,null,null,null,null,null,null,null,null,null,null,null,null,null,null,null,null,""]
[null,202,129,55,null,218,null,null,null,null,null,null,null,null,null,null,null,null,null,null,null,null,null,null,null,null,null,null,null,null,null,null,null,null,null,null,null,null,null,null,null,null,null,null,null,null,null,null,null,null,null,null,null,null,null,null,null,null,null,null,null,null,null,null,null,null,null,null,null,null,null,null,null,null,null,null,null,62,999,"",195]
[null,203,129,null,11,90,null,null,null,null,null,null,null,null,null,null,null,null,null,null,null,null,null,null,null,null,null,null,null,null,null,null,null,null,null,null,null,null,null,null,null,null,null,null,null,null,null,null,null,null,null,null,null,null,null,null,null,null,null,null,null,null,null,null,null,null,null,null,null,null,null,null,null,null,null,null,null,51,null,"",35]
[null,204,65,null,null,167,null,null,null,null,null,null,null,null,null,null,null,null,null,null,null,null,null,null,null,null,null,null,null,null,null,null,null,null,null,null,null,null,null,null,null,null,null,null,null,null,null,null,null,null,null,null,null,null,null,null,null,null,null,null,null,null,null,null,null,null,null,null,null,null,null,null,null,null,null,null,null,null,null,""]
[null,205,65,null,null,103,null,null,null,null,null,null,null,null,null,null,null,null,null,null,null,null,null,null,null,null,null,null,null,null,null,null,null,null,null,null,null,null,null,null,null,null,null,null,null,null,null,null,null,null,null,null,null,null,null,null,null,null,null,null,null,null,null,null,null,null,null,null,null,null,null,null,null,null,null,null,null,129,51,"",222]
[null,206,129,null,25,154,null,null,null,null,null,null,null,null,null,null,null,null,null,null,null,null,null,null,null,null,null,null,null,null,null,null,null,null,null,null,null,null,null,null,null,null,null,null,null,null,null,null,null,null,null,null,null,null,null,null,null,null,null,null,null,null,null,null,null,null,null,null,null,null,null,null,null,null,null,null,null,129,null,"E13",94]
[null,207,129,26,null,26,null,null,null,null,null,null,null,null,null,null,null,null,null,null,null,null,null,null,null,null,null,null,null,null,null,null,null,null,null,null,null,null,null,null,null,null,null,null,null,null,null,null,null,null,null,null,null,null,null,null,null,null,null,null,null,null,null,null,null,null,null,null,null,null,null,null,null,null,null,null,null,null,null,""]
[null,208,26,null,null,231,null,null,null,null,null,null,null,null,null,null,null,null,null,null,null,null,null,null,null,null,null,null,null,null,null,null,null,null,null,null,null,null,null,null,null,null,null,null,null,null,null,null,null,null,null,null,null,null,null,null,null,null,null,null,null,null,null,null,null,null,null,null,null,null,null,null,null,null,null,null,null,65,null,"",163]
[null,209,23,null,null,23,null,null,null,null,null,null,null,null,null,null,null,null,null,null,null,null,null,null,null,null,null,null,null,null,null,null,null,null,null,null,null,null,null,null,null,null,null,null,null,null,null,null,null,null,null,null,null,null,null,null,null,null,null,null,null,null,null,null,null,null,null,null,null,null,null,null,null,null,null,null,null,65,null,"",99]
[null,210,129,23,null,234,null,null,null,null,null,null,null,null,null,null,null,null,null,null,null,null,null,null,null,null,null,null,null,null,null,null,null,null,null,null,null,null,null,null,null,null,null,null,null,null,null,null,null,null,null,null,null,null,null,null,null,null,null,null,null,null,null,null,null,null,null,null,null,null,null,null,null,null,null,null,null,null,null,""]
[null,211,129,null,null,106,null,null,null,null,null,null,null,null,null,null,null,null,null,null,null,null,null,null,null,null,null,null,null,null,null,null,null,null,null,null,null,null,null,null,null,null,null,null,null,null,null,null,null,null,null,null,null,null,null,null,null,null,null,null,null,null,null,null,null,null,null,null,null,null,null,null,null,null,null,null,null,129,null,"",158]
[null,212,65,null,null,151,null,null,null,null,null,null,null,null,null,null,null,null,null,null,null,null,null,null,null,null,null,null,null,null,null,null,null,null,null,null,null,null,null,null,null,null,null,null,null,null,null,null,null,null,null,null,null,null,null,null,null,null,null,null,null,null,null,null,null,null,null,null,null,null,null,null,null,null,null,null,null,129,30,"E28",30]
[null,213,65,null,null,87,null,null,null,null,null,null,null,null,null,null,null,null,null,null,null,null,null,null,null,null,null,null,null,null,null,null,null,null,null,null,null,null,null,null,null,null,null,null,null,null,null,null,null,null,null,null,null,null,null,null,null,null,null,null,null,null,null,null,null,null,null,null,null,null,null,null,null,null,null,null,null,null,null,""]
[null,214,129,null,3,170,null,null,null,null,null,null,null,null,null,null,null,null,null,null,null,null,null,null,null,null,null,null,null,null,null,null,null,null,null,null,null,null,null,null,null,null,null,null,null,null,null,null,null,null,null,null,null,null,null,null,null,null,null,null,null,null,null,null,null,null,null,null,null,null,null,null,null,null,null,null,null,30,null,"",227]
[null,215,129,42,null,42,null,null,null,null,null,null,null,null,null,null,null,null,null,null,null,null,null,null,null,null,null,null,null,null,null,null,null,null,null,null,null,null,null,null,null,null,null,null,null,null,null,null,null,null,null,null,null,null,null,null,null,null,null,null,null,null,null,null,null,null,null,null,null,null,null,null,null,null,null,null,null,19,null,"",19]
[null,216,42,null,null,215,null,null,null,null,null,null,null,null,null,null,null,null,null,null,null,null,null,null,null,null,null,null,null,null,null,null,null,null,null,null,null,null,null,null,null,null,null,null,null,null,null,null,null,null,null,null,null,null,null,null,null,null,null,null,null,null,null,null,null,null,null,null,null,null,null,null,null,null,null,null,null,null,null,""]
[null,217,39,null,null,55,null,null,null,null,null,null,null,null,null,null,null,null,null,null,null,null,null,null,null,null,null,null,null,null,null,null,null,null,null,null,null,null,null,null,null,null,null,null,null,null,null,null,null,null,null,null,null,null,null,null,null,null,null,null,null,null,null,null,null,null,null,null,null,null,null,null,null,null,null,null,null,129,19,"",238]
[null,218,129,39,null,202,null,null,null,null,null,null,null,null,null,null,null,null,null,null,null,null,null,null,null,null,null,null,null,null,null,null,null,null,null,null,null,null,null,null,null,null,null,null,null,null,null,null,null,null,null,null,null,null,null,null,null,null,null,null,null,null,null,null,null,null,null,null,null,null,null,null,null,null,null,null,null,129,null,"",110]
[null,219,129,null,19,74,null,null,null,null,null,null,null,null,null,null,null,null,null,null,null,null,null,null,null,null,null,null,null,null,null,null,null,null,null,null,null,null,null,null,null,null,null,null,null,null,null,null,null,null,null,null,null,null,null,null,null,null,null,null,null,null,null,null,null,null,null,null,null,null,null,null,null,null,null,null,null,null,null,""]
[null,220,65,null,null,183,null,null,null,null,null,null,null,null,null,null,null,null,null,null,null,null,null,null,null,null,null,null,null,null,null,null,null,null,null,null,null,null,null,null,null,null,null,null,null,null,null,null,null,null,null,null,null,null,null,null,null,null,null,null,null,null,null,null,null,null,null,null,null,null,null,null,null,null,null,null,null,65,null,"",147]
[null,221,65,null,null,119,null,null,null,null,null,null,null,null,null,null,null,null,null,null,null,null,null,null,null,null,null,null,null,null,null,null,null,null,null,null,null,null,null,null,null,null,null,null,null,null,null,null,null,null,null,null,null,null,null,null,null,null,null,null,null,null,null,null,null,null,null,null,null,null,null,null,null,null,null,null,null,65,null,"",83]
[null,222,129,null,null,138,null,null,null,null,null,null,null,null,null,null,null,null,null,null,null,null,null,null,null,null,null,null,null,null,null,null,null,null,null,null,null,null,null,null,null,null,null,null,null,null,null,null,null,null,null,null,null,null,null,null,null,null,null,null,null,null,null,null,null,null,null,null,null,null,null,null,null,null,null,null,null,null,null,""]
[null,223,129,10,null,10,null,null,null,null,null,null,null,null,null,null,null,null,null,null,null,null,null,null,null,null,null,null,null,null,null,null,null,null,null,null,null,null,null,null,null,null,null,null,null,null,null,null,null,null,null,null,null,null,null,null,null,null,null,null,null,null,null,null,null,null,null,null,null,null,null,null,null,null,null,null,null,129,null,"E5",174]
[null,224,10,null,null,247,null,null,null,null,null,null,null,null,null,null,null,null,null,null,null,null,null,null,null,null,null,null,null,null,null,null,null,null,null,null,null,null,null,null,null,null,null,null,null,null,null,null,null,null,null,null,null,null,null,null,null,null,null,null,null,null,null,null,null,null,null,null,null,null,null,null,null,null,null,null,null,129,46,"",46]
[null,225,15,null,null,15,null,null,null,null,null,null,null,null,null,null,null,null,null,null,null,null,null,null,null,null,null,null,null,null,null,null,null,null,null,null,null,null,null,null,null,null,null,null,null,null,null,null,null,null,null,null,null,null,null,null,null,null,null,null,null,null,null,null,null,null,null,null,null,null,null,null,null,null,null,null,null,null,null,""]
[null,226,129,15,null,242,null,null,null,null,null,null,null,null,null,null,null,null,null,null,null,null,null,null,null,null,null,null,null,null,null,null,null,null,null,null,null,null,null,null,null,null,null,null,null,null,null,null,null,null,null,null,null,null,null,null,null,null,null,null,null,null,null,null,null,null,null,null,null,null,null,null,null,null,null,null,null,46,null,"",211]
[null,227,129,null,32,114,null,null,null,null,null,null,null,null,null,null,null,null,null,null,null,null,null,null,null,null,null,null,null,null,null,null,null,null,null,null,null,null,null,null,null,null,null,null,null,null,null,null,null,null,null,null,null,null,null,null,null,null,null,null,null,null,null,null,null,null,null,null,null,null,null,null,null,null,null,null,null,35,null,"",51]
[null,228,65,null,null,143,null,null,null,null,null,null,null,null,null,null,null,null,null,null,null,null,null,null,null,null,null,null,null,null,null,null,null,null,null,null,null,null,null,null,null,null,null,null,null,null,null,null,null,null,null,null,null,null,null,null,null,null,null,null,null,null,null,null,null,null,null,null,null,null,null,null,null,null,null,null,null,null,null,""]
[null,229,65,null,null,79,null,null,null,null,null,null,null,null,null,null,null,null,null,null,null,null,null,null,null,null,null,null,null,null,null,null,null,null,null,null,null,null,null,null,null,null,null,null,null,null,null,null,null,null,null,null,null,null,null,null,null,null,null,null,null,null,null,null,null,null,null,null,null,null,null,null,null,null,null,null,null,129,35,"",206]
[null,230,129,null,23,178,null,null,null,null,null,null,null,null,null,null,null,null,null,null,null,null,null,null,null,null,null,null,null,null,null,null,null,null,null,null,null,null,null,null,null,null,null,null,null,null,null,null,null,null,null,null,null,null,null,null,null,null,null,null,null,null,null,null,null,null,null,null,null,null,null,null,null,null,null,null,null,129,null,"E21",78]
[null,231,129,34,null,50,null,null,null,null,null,null,null,null,null,null,null,null,null,null,null,null,null,null,null,null,null,null,null,null,null,null,null,null,null,null,null,null,null,null,null,null,null,null,null,null,null,null,null,null,null,null,null,null,null,null,null,null,null,null,null,null,null,null,null,null,null,null,null,null,null,null,null,null,null,null,null,null,null,""]
[null,232,34,null,null,207,null,null,null,null,null,null,null,null,null,null,null,null,null,null,null,null,null,null,null,null,null,null,null,null,null,null,null,null,null,null,null,null,null,null,null,null,null,null,null,null,null,null,null,null,null,null,null,null,null,null,null,null,null,null,null,null,null,null,null,null,null,null,null,null,null,null,null,null,null,null,null,65,null,"",179]
[null,233,47,null,null,47,null,null,null,null,null,null,null,null,null,null,null,null,null,null,null,null,null,null,null,null,null,null,null,null,null,null,null,null,null,null,null,null,null,null,null,null,null,null,null,null,null,null,null,null,null,null,null,null,null,null,null,null,null,null,null,null,null,null,null,null,null,null,null,null,null,null,null,null,null,null,null,65,null,"",115]
[null,234,129,47,null,210,null,null,null,null,null,null,null,null,null,null,null,null,null,null,null,null,null,null,null,null,null,null,null,null,null,null,null,null,null,null,null,null,null,null,null,null,null,null,null,null,null,null,null,null,null,null,null,null,null,null,null,null,null,null,null,null,null,null,null,null,null,null,null,null,null,null,null,null,null,null,null,null,null,""]
[null,235,129,null,7,82,null,null,null,null,null,null,null,null,null,null,null,null,null,null,null,null,null,null,null,null,null,null,null,null,null,null,null,null,null,null,null,null,null,null,null,null,null,null,null,null,null,null,null,null,null,null,null,null,null,null,null,null,null,null,null,null,null,null,null,null,null,null,null,null,null,null,null,null,null,null,null,129,null,"E31",142]
[null,236,65,null,null,175,null,null,null,null,null,null,null,null,null,null,null,null,null,null,null,null,null,null,null,null,null,null,null,null,null,null,null,null,null,null,null,null,null,null,null,null,null,null,null,null,null,null,null,null,null,null,null,null,null,null,null,null,null,null,null,null,null,null,null,null,null,null,null,null,null,null,null,null,null,null,null,129,14,"",14]
[null,237,65,null,null,111,null,null,null,null,null,null,null,null,null,null,null,null,null,null,null,null,null,null,null,null,null,null,null,null,null,null,null,null,null,null,null,null,null,null,null,null,null,null,null,null,null,null,null,null,null,null,null,null,null,null,null,null,null,null,null,null,null,null,null,null,null,null,null,null,null,null,null,null,null,null,null,null,null,""]
[null,238,129,null,null,146,null,null,null,null,null,null,null,null,null,null,null,null,null,null,null,null,null,null,null,null,null,null,null,null,null,null,null,null,null,null,null,null,null,null,null,null,null,null,null,null,null,null,null,null,null,null,null,null,null,null,null,null,null,null,null,null,null,null,null,null,null,null,null,null,null,null,null,null,null,null,null,14,null,"",243]
[null,239,129,18,null,18,null,null,null,null,null,null,null,null,null,null,null,null,null,null,null,null,null,null,null,null,null,null,null,null,null,null,null,null,null,null,null,null,null,null,null,null,null,null,null,null,null,null,null,null,null,null,null,null,null,null,null,null,null,null,null,null,null,null,null,null,null,null,null,null,null,null,null,null,null,null,null,11,null,"",11]
[null,240,18,null,null,239,null,null,null,null,null,null,null,null,null,null,null,null,null,null,null,null,null,null,null,null,null,null,null,null,null,null,null,null,null,null,null,null,null,null,null,null,null,null,null,null,null,null,null,null,null,null,null,null,null,null,null,null,null,null,null,null,null,null,null,null,null,null,null,null,null,null,null,null,null,null,null,null,null,""]
[null,241,31,null,null,31,null,null,null,null,null,null,null,null,null,null,null,null,null,null,null,null,null,null,null,null,null,null,null,null,null,null,null,null,null,null,null,null,null,null,null,null,null,null,null,null,null,null,null,null,null,null,null,null,null,null,null,null,null,null,null,null,null,null,null,null,null,null,null,null,null,null,null,null,null,null,null,129,11,"",246]
[null,242,129,31,null,226,null,null,null,null,null,null,null,null,null,null,null,null,null,null,null,null,null,null,null,null,null,null,null,null,null,null,null,null,null,null,null,null,null,null,null,null,null,null,null,null,null,null,null,null,null,null,null,null,null,null,null,null,null,null,null,null,null,null,null,null,null,null,null,null,null,null,null,null,null,null,null,129,null,"",118]
[null,243,129,null,null,98,null,null,null,null,null,null,null,null,null,null,null,null,null,null,null,null,null,null,null,null,null,null,null,null,null,null,null,null,null,null,null,null,null,null,null,null,null,null,null,null,null,null,null,null,null,null,null,null,null,null,null,null,null,null,null,null,null,null,null,null,null,null,null,null,null,null,null,null,null,null,null,null,null,""]
[null,244,65,null,null,159,null,null,null,null,null,null,null,null,null,null,null,null,null,null,null,null,null,null,null,null,null,null,null,null,null,null,null,null,null,null,null,null,null,null,null,null,null,null,null,null,null,null,null,null,null,null,null,null,null,null,null,null,null,null,null,null,null,null,null,null,null,null,null,null,null,null,null,null,null,null,null,65,null,"",139]
[null,245,65,null,null,95,null,null,null,null,null,null,null,null,null,null,null,null,null,null,null,null,null,null,null,null,null,null,null,null,null,null,null,null,null,null,null,null,null,null,null,null,null,null,null,null,null,null,null,null,null,null,null,null,null,null,null,null,null,null,null,null,null,null,null,null,null,null,null,null,null,null,null,null,null,null,null,65,null,"",75]
[null,246,129,null,15,162,null,null,null,null,null,null,null,null,null,null,null,null,null,null,null,null,null,null,null,null,null,null,null,null,null,null,null,null,null,null,null,null,null,null,null,null,null,null,null,null,null,null,null,null,null,null,null,null,null,null,null,null,null,null,null,null,null,null,null,null,null,null,null,null,null,null,null,null,null,null,null,null,null,""]
[null,247,129,50,null,34,null,null,null,null,null,null,null,null,null,null,null,null,null,null,null,null,null,null,null,null,null,null,null,null,null,null,null,null,null,null,null,null,null,null,null,null,null,null,null,null,null,null,null,null,null,null,null,null,null,null,null,null,null,null,null,null,null,null,null,null,null,null,null,null,null,null,null,null,null,null,null,129,null,"E17",182]
[null,248,50,null,null,223,null,null,null,null,null,null,null,null,null,null,null,null,null,null,null,null,null,null,null,null,null,null,null,null,null,null,null,null,null,null,null,null,null,null,null,null,null,null,null,null,null,null,null,null,null,null,null,null,null,null,null,null,null,null,null,null,null,null,null,null,null,null,null,null,null,null,null,null,null,null,null,129,38,"",54]
[null,249,63,999,null,63,null,null,null,null,null,null,null,null,null,null,null,null,null,null,null,null,null,null,null,null,null,null,null,null,null,null,null,null,null,null,null,null,null,null,null,null,null,null,null,null,null,null,null,null,null,null,null,null,null,null,null,null,null,null,null,null,null,null,null,null,null,null,null,null,null,null,null,null,null,null,null,null,null,""]
[null,250,129,999,null,194,null,null,null,null,null,null,null,null,null,null,null,null,null,null,null,null,null,null,null,null,null,null,null,null,null,null,null,null,null,null,null,null,null,null,null,null,null,null,null,null,null,null,null,null,null,null,null,null,null,null,null,null,null,null,null,null,null,null,null,null,null,null,null,null,null,null,null,null,null,null,null,38,null,"",203]
[null,251,129,999,null,66,null,null,null,null,null,null,null,null,null,null,null,null,null,null,null,null,null,null,null,null,null,null,null,null,null,null,null,null,null,null,null,null,null,null,null,null,null,null,null,null,null,null,null,null,null,null,null,null,null,null,null,null,null,null,null,null,null,null,null,null,null,null,null,null,null,null,null,null,null,null,null,43,null,"",43]
[null,252,65,999,null,191,null,null,null,null,null,null,null,null,null,null,null,null,null,null,null,null,null,null,null,null,null,null,null,null,null,null,null,null,null,null,null,null,null,null,null,null,null,null,null,null,null,null,null,null,null,null,null,null,null,null,null,null,null,null,null,null,null,null,null,null,null,null,null,null,null,null,null,null,null,null,null,null,null,""]
[null,253,65,999,null,127,null,null,null,null,null,null,null,null,null,null,null,null,null,null,null,null,null,null,null,null,null,null,null,null,null,null,null,null,null,null,null,null,null,null,null,null,null,null,null,null,null,null,null,null,null,null,null,null,null,null,null,null,null,null,null,null,null,null,null,null,null,null,null,null,null,null,null,null,null,null,null,129,43,"",214]
[null,254,129,999,null,130,null,null,null,null,null,null,null,null,null,null,null,null,null,null,null,null,null,null,null,null,null,null,null,null,null,null,null,null,null,null,null,null,null,null,null,null,null,null,null,null,null,null,null,null,null,null,null,null,null,null,null,null,null,null,null,null,null,null,null,null,null,null,null,null,null,null,null,null,null,null,null,129,null,"E1",86]
[null,255,129,999,null,255,null,null,null,null,null,null,null,null,null,null,null,null,null,null,null,null,null,null,null,null,null,null,null,null,null,null,null,null,null,null,null,null,null,null,null,null,null,null,null,null,null,null,null,null,null,null,null,null,null,null,null,null,null,null,null,null,null,null,null,null,null,null,null,null,null,null,null,null,null,null,null,null,null,""]
[null,256,2,null,null,2,null,null,null,null,null,null,null,null,null,null,null,null,null,null,null,null,null,null,null,null,null,null,null,null,null,null,null,null,null,null,null,null,null,null,null,null,null,null,null,null,null,null,null,null,null,null,null,null,null,null,null,null,null,null,null,null,null,null,null,null,null,null,null,null,null,null,null,null,null,null,null,65,null,"",171]
[null,null,null,null,null,null,null,null,null,null,null,null,null,null,null,null,null,null,null,null,null,null,null,null,null,null,null,null,null,null,null,null,null,null,null,null,null,null,null,null,null,null,null,null,null,null,null,null,null,null,null,null,null,null,null,null,null,null,null,null,null,null,null,null,null,null,null,null,null,null,null,null,null,null,null,null,null,65,null,"",107]
[null,null,null,null,null,null,null,null,null,null,null,null,null,null,null,null,null,null,null,null,null,null,null,null,null,null,null,null,null,null,null,null,null,null,null,null,null,null,null,null,null,null,null,null,null,null,null,null,null,null,null,null,null,null,null,null,null,null,null,null,null,null,null,null,null,null,null,null,null,null,null,null,null,null,null,null,null,null,null,""]
[null,null,null,null,null,null,null,null,null,null,null,null,null,null,null,null,null,null,null,null,null,null,null,null,null,null,null,null,null,null,null,null,null,null,null,null,null,null,null,null,null,null,null,null,null,null,null,null,null,null,null,null,null,null,null,null,null,null,null,null,null,null,null,null,null,null,null,null,null,null,null,null,null,null,null,null,null,129,null,"",150]
[null,null,null,null,null,null,null,null,null,null,null,null,null,null,null,null,null,null,null,null,null,null,null,null,null,null,null,null,null,null,null,null,null,null,null,null,null,null,null,null,null,null,null,null,null,null,null,null,null,null,null,null,null,null,null,null,null,null,null,null,null,null,null,null,null,null,null,null,null,null,null,null,null,null,null,null,null,129,22,"",22]
[null,null,null,null,null,null,null,null,null,null,null,null,null,null,null,null,null,null,null,null,null,null,null,null,null,null,null,null,null,null,null,null,null,null,null,null,null,null,null,null,null,null,null,null,null,null,null,null,null,null,null,null,null,null,null,null,null,null,null,null,null,null,null,null,null,null,null,null,null,null,null,null,null,null,null,null,null,null,null,""]
[null,null,null,null,null,null,null,null,null,null,null,null,null,null,null,null,null,null,null,null,null,null,null,null,null,null,null,null,null,null,null,null,null,null,null,null,null,null,null,null,null,null,null,null,null,null,null,null,null,null,null,null,null,null,null,null,null,null,null,null,null,null,null,null,null,null,null,null,null,null,null,null,null,null,null,null,null,22,null,"",235]
[null,null,null,null,null,null,null,null,null,null,null,null,null,null,null,null,null,null,null,null,null,null,null,null,null,null,null,null,null,null,null,null,null,null,null,null,null,null,null,null,null,null,null,null,null,null,null,null,null,null,null,null,null,null,null,null,null,null,null,null,null,null,null,null,null,null,null,null,null,null,null,null,null,null,null,null,null,27,null,"",27]
[null,null,null,null,null,null,null,null,null,null,null,null,null,null,null,null,null,null,null,null,null,null,null,null,null,null,null,null,null,null,null,null,null,null,null,null,null,null,null,null,null,null,null,null,null,null,null,null,null,null,null,null,null,null,null,null,null,null,null,null,null,null,null,null,null,null,null,null,null,null,null,null,null,null,null,null,null,null,null,""]
[null,null,null,null,null,null,null,null,null,null,null,null,null,null,null,null,null,null,null,null,null,null,null,null,null,null,null,null,null,null,null,null,null,null,null,null,null,null,null,null,null,null,null,null,null,null,null,null,null,null,null,null,null,null,null,null,null,null,null,null,null,null,null,null,null,null,null,null,null,null,null,null,null,null,null,null,null,129,27,"",230]
[null,null,null,null,null,null,null,null,null,null,null,null,null,null,null,null,null,null,null,null,null,null,null,null,null,null,null,null,null,null,null,null,null,null,null,null,null,null,null,null,null,null,null,null,null,null,null,null,null,null,null,null,null,null,null,null,null,null,null,null,null,null,null,null,null,null,null,null,null,null,null,null,null,null,null,null,null,129,null,"",102]
[null,null,null,null,null,null,null,null,null,null,null,null,null,null,null,null,null,null,null,null,null,null,null,null,null,null,null,null,null,null,null,null,null,null,null,null,null,null,null,null,null,null,null,null,null,null,null,null,null,null,null,null,null,null,null,null,null,null,null,null,null,null,null,null,null,null,null,null,null,null,null,null,null,null,null,null,null,null,null,""]
[null,null,null,null,null,null,null,null,null,null,null,null,null,null,null,null,null,null,null,null,null,null,null,null,null,null,null,null,null,null,null,null,null,null,null,null,null,null,null,null,null,null,null,null,null,null,null,null,null,null,null,null,null,null,null,null,null,null,null,null,null,null,null,null,null,null,null,null,null,null,null,null,null,null,null,null,null,65,null,"",155]
[null,null,null,null,null,null,null,null,null,null,null,null,null,null,null,null,null,null,null,null,null,null,null,null,null,null,null,null,null,null,null,null,null,null,null,null,null,null,null,null,null,null,null,null,null,null,null,null,null,null,null,null,null,null,null,null,null,null,null,null,null,null,null,null,null,null,null,null,null,null,null,null,null,null,null,null,null,65,null,"",91]
[null,null,null,null,null,null,null,null,null,null,null,null,null,null,null,null,null,null,null,null,null,null,null,null,null,null,null,null,null,null,null,null,null,null,null,null,null,null,null,null,null,null,null,null,null,null,null,null,null,null,null,null,null,null,null,null,null,null,null,null,null,null,null,null,null,null,null,null,null,null,null,null,null,null,null,null,null,null,null,""]
[null,null,null,null,null,null,null,null,null,null,null,null,null,null,null,null,null,null,null,null,null,null,null,null,null,null,null,null,null,null,null,null,null,null,null,null,null,null,null,null,null,null,null,null,null,null,null,null,null,null,null,null,null,null,null,null,null,null,null,null,null,null,null,null,null,null,null,null,null,null,null,null,null,null,null,null,null,129,null,"E9",166]
[null,null,null,null,null,null,null,null,null,null,null,null,null,null,null,null,null,null,null,null,null,null,null,null,null,null,null,null,null,null,null,null,null,null,null,null,null,null,null,null,null,null,null,null,null,null,null,null,null,null,null,null,null,null,null,null,null,null,null,null,null,null,null,null,null,null,null,null,null,null,null,null,null,null,null,null,null,129,54,"",38]
[null,null,null,null,null,null,null,null,null,null,null,null,null,null,null,null,null,null,null,null,null,null,null,null,null,null,null,null,null,null,null,null,null,null,null,null,null,null,null,null,null,null,null,null,null,null,null,null,null,null,null,null,null,null,null,null,null,null,null,null,null,null,null,null,null,null,null,null,null,null,null,null,null,null,null,null,null,null,null,""]
[null,null,null,null,null,null,null,null,null,null,null,null,null,null,null,null,null,null,null,null,null,null,null,null,null,null,null,null,null,null,null,null,null,null,null,null,null,null,null,null,null,null,null,null,null,null,null,null,null,null,null,null,null,null,null,null,null,null,null,null,null,null,null,null,null,null,null,null,null,null,null,null,null,null,null,null,null,54,null,"",219]
[null,null,null,null,null,null,null,null,null,null,null,null,null,null,null,null,null,null,null,null,null,null,null,null,null,null,null,null,null,null,null,null,null,null,null,null,null,null,null,null,null,null,null,null,null,null,null,null,null,null,null,null,null,null,null,null,null,null,null,null,null,null,null,null,null,null,null,null,null,null,null,null,null,null,null,null,null,59,999,"",59]
[null,null,null,null,null,null,null,null,null,null,null,null,null,null,null,null,null,null,null,null,null,null,null,null,null,null,null,null,null,null,null,null,null,null,null,null,null,null,null,null,null,null,null,null,null,null,null,null,null,null,null,null,null,null,null,null,null,null,null,null,null,null,null,null,null,null,null,null,null,null,null,null,null,null,null,null,null,null,null,""]
[null,null,null,null,null,null,null,null,null,null,null,null,null,null,null,null,null,null,null,null,null,null,null,null,null,null,null,null,null,null,null,null,null,null,null,null,null,null,null,null,null,null,null,null,null,null,null,null,null,null,null,null,null,null,null,null,null,null,null,null,null,null,null,null,null,null,null,null,null,null,null,null,null,null,null,null,null,129,999,"",198]
[null,null,null,null,null,null,null,null,null,null,null,null,null,null,null,null,null,null,null,null,null,null,null,null,null,null,null,null,null,null,null,null,null,null,null,null,null,null,null,null,null,null,null,null,null,null,null,null,null,null,null,null,null,null,null,null,null,null,null,null,null,null,null,null,null,null,null,null,null,null,null,null,null,null,null,null,null,129,999,"",70]
[null,null,null,null,null,null,null,null,null,null,null,null,null,null,null,null,null,null,null,null,null,null,null,null,null,null,null,null,null,null,null,null,null,null,null,null,null,null,null,null,null,null,null,null,null,null,null,null,null,null,null,null,null,null,null,null,null,null,null,null,null,null,null,null,null,null,null,null,null,null,null,null,null,null,null,null,null,null,null,""]
[null,null,null,null,null,null,null,null,null,null,null,null,null,null,null,null,null,null,null,null,null,null,null,null,null,null,null,null,null,null,null,null,null,null,null,null,null,null,null,null,null,null,null,null,null,null,null,null,null,null,null,null,null,null,null,null,null,null,null,null,null,null,null,null,null,null,null,null,null,null,null,null,null,null,null,null,null,65,999,"",187]
[null,null,null,null,null,null,null,null,null,null,null,null,null,null,null,null,null,null,null,null,null,null,null,null,null,null,null,null,null,null,null,null,null,null,null,null,null,null,null,null,null,null,null,null,null,null,null,null,null,null,null,null,null,null,null,null,null,null,null,null,null,null,null,null,null,null,null,null,null,null,null,null,null,null,null,null,null,65,999,"",123]
[null,null,null,null,null,null,null,null,null,null,null,null,null,null,null,null,null,null,null,null,null,null,null,null,null,null,null,null,null,null,null,null,null,null,null,null,null,null,null,null,null,null,null,null,null,null,null,null,null,null,null,null,null,null,null,null,null,null,null,null,null,null,null,null,null,null,null,null,null,null,null,null,null,null,null,null,null,null,null,""]
[null,null,null,null,null,null,null,null,null,null,null,null,null,null,null,null,null,null,null,null,null,null,null,null,null,null,null,null,null,null,null,null,null,null,null,null,null,null,null,null,null,null,null,null,null,null,null,null,null,null,null,null,null,null,null,null,null,null,null,null,null,null,null,null,null,null,null,null,null,null,null,null,null,null,null,null,null,129,999,"",134]
[null,null,null,null,null,null,null,null,null,null,null,null,null,null,null,null,null,null,null,null,null,null,null,null,null,null,null,null,null,null,null,null,null,null,null,null,null,null,null,null,null,null,null,null,null,null,null,null,null,null,null,null,null,null,null,null,null,null,null,null,null,null,null,null,null,null,null,null,null,null,null,null,null,null,null,null,null,129,999,"",251]
[null,null,null,null,null,null,null,null,null,null,null,null,null,null,null,null,null,null,null,null,null,null,null,null,null,null,null,null,null,null,null,null,null,null,null,null,null,null,null,null,null,null,null,null,null,null,null,null,null,null,null,null,null,null,null,null,null,null,null,null,null,null,null,null,null,null,null,null,null,null,null,null,null,null,null,null,null,null,null,""]
[null,null,null,null,null,null,null,null,null,null,null,null,null,null,null,null,null,null,null,null,null,null,null,null,null,null,null,null,null,null,null,null,null,null,null,null,null,null,null,null,null,null,null,null,null,null,null,null,null,null,null,null,null,null,null,null,null,null,null,null,null,null,null,null,null,null,null,null,null,null,null,null,null,null,null,null,null,6,null,"",6]
[null,null,null,null,null,null,null,null,null,null,null,null,null,null,null,null,null,null,null,null,null,null,null,null,null,null,null,null,null,null,null,null,null,null,null,null,null,null,null,null,null,null,null,null,null,null,null,null,null,null,null,null,null,null,null,null,null,null,null,null,null,null,null,null,null,null,null,null,null,null,null,null,null,null,null,null,null,7,null,"",7]
[null,null,null,null,null,null,null,null,null,null,null,null,null,null,null,null,null,null,null,null,null,null,null,null,null,null,null,null,null,null,null,null,null,null,null,null,null,null,null,null,null,null,null,null,null,null,null,null,null,null,null,null,null,null,null,null,null,null,null,null,null,null,null,null,null,null,null,null,null,null,null,null,null,null,null,null,null,null,null,""]
[null,null,null,null,null,null,null,null,null,null,null,null,null,null,null,null,null,null,null,null,null,null,null,null,null,null,null,null,null,null,null,null,null,null,null,null,null,null,null,null,null,null,null,null,null,null,null,null,null,null,null,null,null,null,null,null,null,null,null,null,null,null,null,null,null,null,null,null,null,null,null,null,null,null,null,null,null,129,999,"",250]
[null,null,null,null,null,null,null,null,null,null,null,null,null,null,null,null,null,null,null,null,null,null,null,null,null,null,null,null,null,null,null,null,null,null,null,null,null,null,null,null,null,null,null,null,null,null,null,null,null,null,null,null,null,null,null,null,null,null,null,null,null,null,null,null,null,null,null,null,null,null,null,null,null,null,null,null,null,129,999,"",122]
[null,null,null,null,null,null,null,null,null,null,null,null,null,null,null,null,null,null,null,null,null,null,null,null,null,null,null,null,null,null,null,null,null,null,null,null,null,null,null,null,null,null,null,null,null,null,null,null,null,null,null,null,null,null,null,null,null,null,null,null,null,null,null,null,null,null,null,null,null,null,null,null,null,null,null,null,null,null,null,""]
[null,null,null,null,null,null,null,null,null,null,null,null,null,null,null,null,null,null,null,null,null,null,null,null,null,null,null,null,null,null,null,null,null,null,null,null,null,null,null,null,null,null,null,null,null,null,null,null,null,null,null,null,null,null,null,null,null,null,null,null,null,null,null,null,null,null,null,null,null,null,null,null,null,null,null,null,null,65,999,"",135]
[null,null,null,null,null,null,null,null,null,null,null,null,null,null,null,null,null,null,null,null,null,null,null,null,null,null,null,null,null,null,null,null,null,null,null,null,null,null,null,null,null,null,null,null,null,null,null,null,null,null,null,null,null,null,null,null,null,null,null,null,null,null,null,null,null,null,null,null,null,null,null,null,null,null,null,null,null,65,999,"",71]
[null,null,null,null,null,null,null,null,null,null,null,null,null,null,null,null,null,null,null,null,null,null,null,null,null,null,null,null,null,null,null,null,null,null,null,null,null,null,null,null,null,null,null,null,null,null,null,null,null,null,null,null,null,null,null,null,null,null,null,null,null,null,null,null,null,null,null,null,null,null,null,null,null,null,null,null,null,null,null,""]
[null,null,null,null,null,null,null,null,null,null,null,null,null,null,null,null,null,null,null,null,null,null,null,null,null,null,null,null,null,null,null,null,null,null,null,null,null,null,null,null,null,null,null,null,null,null,null,null,null,null,null,null,null,null,null,null,null,null,null,null,null,null,null,null,null,null,null,null,null,null,null,null,null,null,null,null,null,129,999,"",186]
[null,null,null,null,null,null,null,null,null,null,null,null,null,null,null,null,null,null,null,null,null,null,null,null,null,null,null,null,null,null,null,null,null,null,null,null,null,null,null,null,null,null,null,null,null,null,null,null,null,null,null,null,null,null,null,null,null,null,null,null,null,null,null,null,null,null,null,null,null,null,null,null,null,null,null,null,null,129,999,"",58]
[null,null,null,null,null,null,null,null,null,null,null,null,null,null,null,null,null,null,null,null,null,null,null,null,null,null,null,null,null,null,null,null,null,null,null,null,null,null,null,null,null,null,null,null,null,null,null,null,null,null,null,null,null,null,null,null,null,null,null,null,null,null,null,null,null,null,null,null,null,null,null,null,null,null,null,null,null,null,null,""]
[null,null,null,null,null,null,null,null,null,null,null,null,null,null,null,null,null,null,null,null,null,null,null,null,null,null,null,null,null,null,null,null,null,null,null,null,null,null,null,null,null,null,null,null,null,null,null,null,null,null,null,null,null,null,null,null,null,null,null,null,null,null,null,null,null,null,null,null,null,null,null,null,null,null,null,null,null,58,999,"",199]
[null,null,null,null,null,null,null,null,null,null,null,null,null,null,null,null,null,null,null,null,null,null,null,null,null,null,null,null,null,null,null,null,null,null,null,null,null,null,null,null,null,null,null,null,null,null,null,null,null,null,null,null,null,null,null,null,null,null,null,null,null,null,null,null,null,null,null,null,null,null,null,null,null,null,null,null,null,55,null,"",39]
[null,null,null,null,null,null,null,null,null,null,null,null,null,null,null,null,null,null,null,null,null,null,null,null,null,null,null,null,null,null,null,null,null,null,null,null,null,null,null,null,null,null,null,null,null,null,null,null,null,null,null,null,null,null,null,null,null,null,null,null,null,null,null,null,null,null,null,null,null,null,null,null,null,null,null,null,null,null,null,""]
[null,null,null,null,null,null,null,null,null,null,null,null,null,null,null,null,null,null,null,null,null,null,null,null,null,null,null,null,null,null,null,null,null,null,null,null,null,null,null,null,null,null,null,null,null,null,null,null,null,null,null,null,null,null,null,null,null,null,null,null,null,null,null,null,null,null,null,null,null,null,null,null,null,null,null,null,null,129,55,"",218]
[null,null,null,null,null,null,null,null,null,null,null,null,null,null,null,null,null,null,null,null,null,null,null,null,null,null,null,null,null,null,null,null,null,null,null,null,null,null,null,null,null,null,null,null,null,null,null,null,null,null,null,null,null,null,null,null,null,null,null,null,null,null,null,null,null,null,null,null,null,null,null,null,null,null,null,null,null,129,null,"E11",90]
[null,null,null,null,null,null,null,null,null,null,null,null,null,null,null,null,null,null,null,null,null,null,null,null,null,null,null,null,null,null,null,null,null,null,null,null,null,null,null,null,null,null,null,null,null,null,null,null,null,null,null,null,null,null,null,null,null,null,null,null,null,null,null,null,null,null,null,null,null,null,null,null,null,null,null,null,null,null,null,""]
[null,null,null,null,null,null,null,null,null,null,null,null,null,null,null,null,null,null,null,null,null,null,null,null,null,null,null,null,null,null,null,null,null,null,null,null,null,null,null,null,null,null,null,null,null,null,null,null,null,null,null,null,null,null,null,null,null,null,null,null,null,null,null,null,null,null,null,null,null,null,null,null,null,null,null,null,null,65,null,"",167]
[null,null,null,null,null,null,null,null,null,null,null,null,null,null,null,null,null,null,null,null,null,null,null,null,null,null,null,null,null,null,null,null,null,null,null,null,null,null,null,null,null,null,null,null,null,null,null,null,null,null,null,null,null,null,null,null,null,null,null,null,null,null,null,null,null,null,null,null,null,null,null,null,null,null,null,null,null,65,null,"",103]
[null,null,null,null,null,null,null,null,null,null,null,null,null,null,null,null,null,null,null,null,null,null,null,null,null,null,null,null,null,null,null,null,null,null,null,null,null,null,null,null,null,null,null,null,null,null,null,null,null,null,null,null,null,null,null,null,null,null,null,null,null,null,null,null,null,null,null,null,null,null,null,null,null,null,null,null,null,null,null,""]
[null,null,null,null,null,null,null,null,null,null,null,null,null,null,null,null,null,null,null,null,null,null,null,null,null,null,null,null,null,null,null,null,null,null,null,null,null,null,null,null,null,null,null,null,null,null,null,null,null,null,null,null,null,null,null,null,null,null,null,null,null,null,null,null,null,null,null,null,null,null,null,null,null,null,null,null,null,129,null,"E25",154]
[null,null,null,null,null,null,null,null,null,null,null,null,null,null,null,null,null,null,null,null,null,null,null,null,null,null,null,null,null,null,null,null,null,null,null,null,null,null,null,null,null,null,null,null,null,null,null,null,null,null,null,null,null,null,null,null,null,null,null,null,null,null,null,null,null,null,null,null,null,null,null,null,null,null,null,null,null,129,26,"",26]
[null,null,null,null,null,null,null,null,null,null,null,null,null,null,null,null,null,null,null,null,null,null,null,null,null,null,null,null,null,null,null,null,null,null,null,null,null,null,null,null,null,null,null,null,null,null,null,null,null,null,null,null,null,null,null,null,null,null,null,null,null,null,null,null,null,null,null,null,null,null,null,null,null,null,null,null,null,null,null,""]
[null,null,null,null,null,null,null,null,null,null,null,null,null,null,null,null,null,null,null,null,null,null,null,null,null,null,null,null,null,null,null,null,null,null,null,null,null,null,null,null,null,null,null,null,null,null,null,null,null,null,null,null,null,null,null,null,null,null,null,null,null,null,null,null,null,null,null,null,null,null,null,null,null,null,null,null,null,26,null,"",231]
[null,null,null,null,null,null,null,null,null,null,null,null,null,null,null,null,null,null,null,null,null,null,null,null,null,null,null,null,null,null,null,null,null,null,null,null,null,null,null,null,null,null,null,null,null,null,null,null,null,null,null,null,null,null,null,null,null,null,null,null,null,null,null,null,null,null,null,null,null,null,null,null,null,null,null,null,null,23,null,"",23]
[null,null,null,null,null,null,null,null,null,null,null,null,null,null,null,null,null,null,null,null,null,null,null,null,null,null,null,null,null,null,null,null,null,null,null,null,null,null,null,null,null,null,null,null,null,null,null,null,null,null,null,null,null,null,null,null,null,null,null,null,null,null,null,null,null,null,null,null,null,null,null,null,null,null,null,null,null,null,null,""]
[null,null,null,null,null,null,null,null,null,null,null,null,null,null,null,null,null,null,null,null,null,null,null,null,null,null,null,null,null,null,null,null,null,null,null,null,null,null,null,null,null,null,null,null,null,null,null,null,null,null,null,null,null,null,null,null,null,null,null,null,null,null,null,null,null,null,null,null,null,null,null,null,null,null,null,null,null,129,23,"",234]
[null,null,null,null,null,null,null,null,null,null,null,null,null,null,null,null,null,null,null,null,null,null,null,null,null,null,null,null,null,null,null,null,null,null,null,null,null,null,null,null,null,null,null,null,null,null,null,null,null,null,null,null,null,null,null,null,null,null,null,null,null,null,null,null,null,null,null,null,null,null,null,null,null,null,null,null,null,129,null,"",106]
[null,null,null,null,null,null,null,null,null,null,null,null,null,null,null,null,null,null,null,null,null,null,null,null,null,null,null,null,null,null,null,null,null,null,null,null,null,null,null,null,null,null,null,null,null,null,null,null,null,null,null,null,null,null,null,null,null,null,null,null,null,null,null,null,null,null,null,null,null,null,null,null,null,null,null,null,null,null,null,""]
[null,null,null,null,null,null,null,null,null,null,null,null,null,null,null,null,null,null,null,null,null,null,null,null,null,null,null,null,null,null,null,null,null,null,null,null,null,null,null,null,null,null,null,null,null,null,null,null,null,null,null,null,null,null,null,null,null,null,null,null,null,null,null,null,null,null,null,null,null,null,null,null,null,null,null,null,null,65,null,"",151]
[null,null,null,null,null,null,null,null,null,null,null,null,null,null,null,null,null,null,null,null,null,null,null,null,null,null,null,null,null,null,null,null,null,null,null,null,null,null,null,null,null,null,null,null,null,null,null,null,null,null,null,null,null,null,null,null,null,null,null,null,null,null,null,null,null,null,null,null,null,null,null,null,null,null,null,null,null,65,null,"",87]
[null,null,null,null,null,null,null,null,null,null,null,null,null,null,null,null,null,null,null,null,null,null,null,null,null,null,null,null,null,null,null,null,null,null,null,null,null,null,null,null,null,null,null,null,null,null,null,null,null,null,null,null,null,null,null,null,null,null,null,null,null,null,null,null,null,null,null,null,null,null,null,null,null,null,null,null,null,null,null,""]
[null,null,null,null,null,null,null,null,null,null,null,null,null,null,null,null,null,null,null,null,null,null,null,null,null,null,null,null,null,null,null,null,null,null,null,null,null,null,null,null,null,null,null,null,null,null,null,null,null,null,null,null,null,null,null,null,null,null,null,null,null,null,null,null,null,null,null,null,null,null,null,null,null,null,null,null,null,129,null,"E3",170]
[null,null,null,null,null,null,null,null,null,null,null,null,null,null,null,null,null,null,null,null,null,null,null,null,null,null,null,null,null,null,null,null,null,null,null,null,null,null,null,null,null,null,null,null,null,null,null,null,null,null,null,null,null,null,null,null,null,null,null,null,null,null,null,null,null,null,null,null,null,null,null,null,null,null,null,null,null,129,42,"",42]
[null,null,null,null,null,null,null,null,null,null,null,null,null,null,null,null,null,null,null,null,null,null,null,null,null,null,null,null,null,null,null,null,null,null,null,null,null,null,null,null,null,null,null,null,null,null,null,null,null,null,null,null,null,null,null,null,null,null,null,null,null,null,null,null,null,null,null,null,null,null,null,null,null,null,null,null,null,null,null,""]
[null,null,null,null,null,null,null,null,null,null,null,null,null,null,null,null,null,null,null,null,null,null,null,null,null,null,null,null,null,null,null,null,null,null,null,null,null,null,null,null,null,null,null,null,null,null,null,null,null,null,null,null,null,null,null,null,null,null,null,null,null,null,null,null,null,null,null,null,null,null,null,null,null,null,null,null,null,42,null,"",215]
[null,null,null,null,null,null,null,null,null,null,null,null,null,null,null,null,null,null,null,null,null,null,null,null,null,null,null,null,null,null,null,null,null,null,null,null,null,null,null,null,null,null,null,null,null,null,null,null,null,null,null,null,null,null,null,null,null,null,null,null,null,null,null,null,null,null,null,null,null,null,null,null,null,null,null,null,null,39,null,"",55]
[null,null,null,null,null,null,null,null,null,null,null,null,null,null,null,null,null,null,null,null,null,null,null,null,null,null,null,null,null,null,null,null,null,null,null,null,null,null,null,null,null,null,null,null,null,null,null,null,null,null,null,null,null,null,null,null,null,null,null,null,null,null,null,null,null,null,null,null,null,null,null,null,null,null,null,null,null,null,null,""]
[null,null,null,null,null,null,null,null,null,null,null,null,null,null,null,null,null,null,null,null,null,null,null,null,null,null,null,null,null,null,null,null,null,null,null,null,null,null,null,null,null,null,null,null,null,null,null,null,null,null,null,null,null,null,null,null,null,null,null,null,null,null,null,null,null,null,null,null,null,null,null,null,null,null,null,null,null,129,39,"",202]
[null,null,null,null,null,null,null,null,null,null,null,null,null,null,null,null,null,null,null,null,null,null,null,null,null,null,null,null,null,null,null,null,null,null,null,null,null,null,null,null,null,null,null,null,null,null,null,null,null,null,null,null,null,null,null,null,null,null,null,null,null,null,null,null,null,null,null,null,null,null,null,null,null,null,null,null,null,129,null,"E19",74]
[null,null,null,null,null,null,null,null,null,null,null,null,null,null,null,null,null,null,null,null,null,null,null,null,null,null,null,null,null,null,null,null,null,null,null,null,null,null,null,null,null,null,null,null,null,null,null,null,null,null,null,null,null,null,null,null,null,null,null,null,null,null,null,null,null,null,null,null,null,null,null,null,null,null,null,null,null,null,null,""]
[null,null,null,null,null,null,null,null,null,null,null,null,null,null,null,null,null,null,null,null,null,null,null,null,null,null,null,null,null,null,null,null,null,null,null,null,null,null,null,null,null,null,null,null,null,null,null,null,null,null,null,null,null,null,null,null,null,null,null,null,null,null,null,null,null,null,null,null,null,null,null,null,null,null,null,null,null,65,null,"",183]
[null,null,null,null,null,null,null,null,null,null,null,null,null,null,null,null,null,null,null,null,null,null,null,null,null,null,null,null,null,null,null,null,null,null,null,null,null,null,null,null,null,null,null,null,null,null,null,null,null,null,null,null,null,null,null,null,null,null,null,null,null,null,null,null,null,null,null,null,null,null,null,null,null,null,null,null,null,65,null,"",119]
[null,null,null,null,null,null,null,null,null,null,null,null,null,null,null,null,null,null,null,null,null,null,null,null,null,null,null,null,null,null,null,null,null,null,null,null,null,null,null,null,null,null,null,null,null,null,null,null,null,null,null,null,null,null,null,null,null,null,null,null,null,null,null,null,null,null,null,null,null,null,null,null,null,null,null,null,null,null,null,""]
[null,null,null,null,null,null,null,null,null,null,null,null,null,null,null,null,null,null,null,null,null,null,null,null,null,null,null,null,null,null,null,null,null,null,null,null,null,null,null,null,null,null,null,null,null,null,null,null,null,null,null,null,null,null,null,null,null,null,null,null,null,null,null,null,null,null,null,null,null,null,null,null,null,null,null,null,null,129,null,"",138]
[null,null,null,null,null,null,null,null,null,null,null,null,null,null,null,null,null,null,null,null,null,null,null,null,null,null,null,null,null,null,null,null,null,null,null,null,null,null,null,null,null,null,null,null,null,null,null,null,null,null,null,null,null,null,null,null,null,null,null,null,null,null,null,null,null,null,null,null,null,null,null,null,null,null,null,null,null,129,10,"",10]
[null,null,null,null,null,null,null,null,null,null,null,null,null,null,null,null,null,null,null,null,null,null,null,null,null,null,null,null,null,null,null,null,null,null,null,null,null,null,null,null,null,null,null,null,null,null,null,null,null,null,null,null,null,null,null,null,null,null,null,null,null,null,null,null,null,null,null,null,null,null,null,null,null,null,null,null,null,null,null,""]
[null,null,null,null,null,null,null,null,null,null,null,null,null,null,null,null,null,null,null,null,null,null,null,null,null,null,null,null,null,null,null,null,null,null,null,null,null,null,null,null,null,null,null,null,null,null,null,null,null,null,null,null,null,null,null,null,null,null,null,null,null,null,null,null,null,null,null,null,null,null,null,null,null,null,null,null,null,10,null,"",247]
[null,null,null,null,null,null,null,null,null,null,null,null,null,null,null,null,null,null,null,null,null,null,null,null,null,null,null,null,null,null,null,null,null,null,null,null,null,null,null,null,null,null,null,null,null,null,null,null,null,null,null,null,null,null,null,null,null,null,null,null,null,null,null,null,null,null,null,null,null,null,null,null,null,null,null,null,null,15,null,"",15]
[null,null,null,null,null,null,null,null,null,null,null,null,null,null,null,null,null,null,null,null,null,null,null,null,null,null,null,null,null,null,null,null,null,null,null,null,null,null,null,null,null,null,null,null,null,null,null,null,null,null,null,null,null,null,null,null,null,null,null,null,null,null,null,null,null,null,null,null,null,null,null,null,null,null,null,null,null,null,null,""]
[null,null,null,null,null,null,null,null,null,null,null,null,null,null,null,null,null,null,null,null,null,null,null,null,null,null,null,null,null,null,null,null,null,null,null,null,null,null,null,null,null,null,null,null,null,null,null,null,null,null,null,null,null,null,null,null,null,null,null,null,null,null,null,null,null,null,null,null,null,null,null,null,null,null,null,null,null,129,15,"",242]
[null,null,null,null,null,null,null,null,null,null,null,null,null,null,null,null,null,null,null,null,null,null,null,null,null,null,null,null,null,null,null,null,null,null,null,null,null,null,null,null,null,null,null,null,null,null,null,null,null,null,null,null,null,null,null,null,null,null,null,null,null,null,null,null,null,null,null,null,null,null,null,null,null,null,null,null,null,129,null,"E32",114]
[null,null,null,null,null,null,null,null,null,null,null,null,null,null,null,null,null,null,null,null,null,null,null,null,null,null,null,null,null,null,null,null,null,null,null,null,null,null,null,null,null,null,null,null,null,null,null,null,null,null,null,null,null,null,null,null,null,null,null,null,null,null,null,null,null,null,null,null,null,null,null,null,null,null,null,null,null,null,null,""]
[null,null,null,null,null,null,null,null,null,null,null,null,null,null,null,null,null,null,null,null,null,null,null,null,null,null,null,null,null,null,null,null,null,null,null,null,null,null,null,null,null,null,null,null,null,null,null,null,null,null,null,null,null,null,null,null,null,null,null,null,null,null,null,null,null,null,null,null,null,null,null,null,null,null,null,null,null,65,null,"",143]
[null,null,null,null,null,null,null,null,null,null,null,null,null,null,null,null,null,null,null,null,null,null,null,null,null,null,null,null,null,null,null,null,null,null,null,null,null,null,null,null,null,null,null,null,null,null,null,null,null,null,null,null,null,null,null,null,null,null,null,null,null,null,null,null,null,null,null,null,null,null,null,null,null,null,null,null,null,65,null,"",79]
[null,null,null,null,null,null,null,null,null,null,null,null,null,null,null,null,null,null,null,null,null,null,null,null,null,null,null,null,null,null,null,null,null,null,null,null,null,null,null,null,null,null,null,null,null,null,null,null,null,null,null,null,null,null,null,null,null,null,null,null,null,null,null,null,null,null,null,null,null,null,null,null,null,null,null,null,null,null,null,""]
[null,null,null,null,null,null,null,null,null,null,null,null,null,null,null,null,null,null,null,null,null,null,null,null,null,null,null,null,null,null,null,null,null,null,null,null,null,null,null,null,null,null,null,null,null,null,null,null,null,null,null,null,null,null,null,null,null,null,null,null,null,null,null,null,null,null,null,null,null,null,null,null,null,null,null,null,null,129,null,"E23",178]
[null,null,null,null,null,null,null,null,null,null,null,null,null,null,null,null,null,null,null,null,null,null,null,null,null,null,null,null,null,null,null,null,null,null,null,null,null,null,null,null,null,null,null,null,null,null,null,null,null,null,null,null,null,null,null,null,null,null,null,null,null,null,null,null,null,null,null,null,null,null,null,null,null,null,null,null,null,129,34,"",50]
[null,null,null,null,null,null,null,null,null,null,null,null,null,null,null,null,null,null,null,null,null,null,null,null,null,null,null,null,null,null,null,null,null,null,null,null,null,null,null,null,null,null,null,null,null,null,null,null,null,null,null,null,null,null,null,null,null,null,null,null,null,null,null,null,null,null,null,null,null,null,null,null,null,null,null,null,null,null,null,""]
[null,null,null,null,null,null,null,null,null,null,null,null,null,null,null,null,null,null,null,null,null,null,null,null,null,null,null,null,null,null,null,null,null,null,null,null,null,null,null,null,null,null,null,null,null,null,null,null,null,null,null,null,null,null,null,null,null,null,null,null,null,null,null,null,null,null,null,null,null,null,null,null,null,null,null,null,null,34,null,"",207]
[null,null,null,null,null,null,null,null,null,null,null,null,null,null,null,null,null,null,null,null,null,null,null,null,null,null,null,null,null,null,null,null,null,null,null,null,null,null,null,null,null,null,null,null,null,null,null,null,null,null,null,null,null,null,null,null,null,null,null,null,null,null,null,null,null,null,null,null,null,null,null,null,null,null,null,null,null,47,null,"",47]
[null,null,null,null,null,null,null,null,null,null,null,null,null,null,null,null,null,null,null,null,null,null,null,null,null,null,null,null,null,null,null,null,null,null,null,null,null,null,null,null,null,null,null,null,null,null,null,null,null,null,null,null,null,null,null,null,null,null,null,null,null,null,null,null,null,null,null,null,null,null,null,null,null,null,null,null,null,null,null,""]
[null,null,null,null,null,null,null,null,null,null,null,null,null,null,null,null,null,null,null,null,null,null,null,null,null,null,null,null,null,null,null,null,null,null,null,null,null,null,null,null,null,null,null,null,null,null,null,null,null,null,null,null,null,null,null,null,null,null,null,null,null,null,null,null,null,null,null,null,null,null,null,null,null,null,null,null,null,129,47,"",210]
[null,null,null,null,null,null,null,null,null,null,null,null,null,null,null,null,null,null,null,null,null,null,null,null,null,null,null,null,null,null,null,null,null,null,null,null,null,null,null,null,null,null,null,null,null,null,null,null,null,null,null,null,null,null,null,null,null,null,null,null,null,null,null,null,null,null,null,null,null,null,null,null,null,null,null,null,null,129,null,"E7",82]
[null,null,null,null,null,null,null,null,null,null,null,null,null,null,null,null,null,null,null,null,null,null,null,null,null,null,null,null,null,null,null,null,null,null,null,null,null,null,null,null,null,null,null,null,null,null,null,null,null,null,null,null,null,null,null,null,null,null,null,null,null,null,null,null,null,null,null,null,null,null,null,null,null,null,null,null,null,null,null,""]
[null,null,null,null,null,null,null,null,null,null,null,null,null,null,null,null,null,null,null,null,null,null,null,null,null,null,null,null,null,null,null,null,null,null,null,null,null,null,null,null,null,null,null,null,null,null,null,null,null,null,null,null,null,null,null,null,null,null,null,null,null,null,null,null,null,null,null,null,null,null,null,null,null,null,null,null,null,65,null,"",175]
[null,null,null,null,null,null,null,null,null,null,null,null,null,null,null,null,null,null,null,null,null,null,null,null,null,null,null,null,null,null,null,null,null,null,null,null,null,null,null,null,null,null,null,null,null,null,null,null,null,null,null,null,null,null,null,null,null,null,null,null,null,null,null,null,null,null,null,null,null,null,null,null,null,null,null,null,null,65,null,"",111]
[null,null,null,null,null,null,null,null,null,null,null,null,null,null,null,null,null,null,null,null,null,null,null,null,null,null,null,null,null,null,null,null,null,null,null,null,null,null,null,null,null,null,null,null,null,null,null,null,null,null,null,null,null,null,null,null,null,null,null,null,null,null,null,null,null,null,null,null,null,null,null,null,null,null,null,null,null,null,null,""]
[null,null,null,null,null,null,null,null,null,null,null,null,null,null,null,null,null,null,null,null,null,null,null,null,null,null,null,null,null,null,null,null,null,null,null,null,null,null,null,null,null,null,null,null,null,null,null,null,null,null,null,null,null,null,null,null,null,null,null,null,null,null,null,null,null,null,null,null,null,null,null,null,null,null,null,null,null,129,null,"",146]
[null,null,null,null,null,null,null,null,null,null,null,null,null,null,null,null,null,null,null,null,null,null,null,null,null,null,null,null,null,null,null,null,null,null,null,null,null,null,null,null,null,null,null,null,null,null,null,null,null,null,null,null,null,null,null,null,null,null,null,null,null,null,null,null,null,null,null,null,null,null,null,null,null,null,null,null,null,129,18,"",18]
[null,null,null,null,null,null,null,null,null,null,null,null,null,null,null,null,null,null,null,null,null,null,null,null,null,null,null,null,null,null,null,null,null,null,null,null,null,null,null,null,null,null,null,null,null,null,null,null,null,null,null,null,null,null,null,null,null,null,null,null,null,null,null,null,null,null,null,null,null,null,null,null,null,null,null,null,null,null,null,""]
[null,null,null,null,null,null,null,null,null,null,null,null,null,null,null,null,null,null,null,null,null,null,null,null,null,null,null,null,null,null,null,null,null,null,null,null,null,null,null,null,null,null,null,null,null,null,null,null,null,null,null,null,null,null,null,null,null,null,null,null,null,null,null,null,null,null,null,null,null,null,null,null,null,null,null,null,null,18,null,"",239]
[null,null,null,null,null,null,null,null,null,null,null,null,null,null,null,null,null,null,null,null,null,null,null,null,null,null,null,null,null,null,null,null,null,null,null,null,null,null,null,null,null,null,null,null,null,null,null,null,null,null,null,null,null,null,null,null,null,null,null,null,null,null,null,null,null,null,null,null,null,null,null,null,null,null,null,null,null,31,null,"",31]
[null,null,null,null,null,null,null,null,null,null,null,null,null,null,null,null,null,null,null,null,null,null,null,null,null,null,null,null,null,null,null,null,null,null,null,null,null,null,null,null,null,null,null,null,null,null,null,null,null,null,null,null,null,null,null,null,null,null,null,null,null,null,null,null,null,null,null,null,null,null,null,null,null,null,null,null,null,null,null,""]
[null,null,null,null,null,null,null,null,null,null,null,null,null,null,null,null,null,null,null,null,null,null,null,null,null,null,null,null,null,null,null,null,null,null,null,null,null,null,null,null,null,null,null,null,null,null,null,null,null,null,null,null,null,null,null,null,null,null,null,null,null,null,null,null,null,null,null,null,null,null,null,null,null,null,null,null,null,129,31,"",226]
[null,null,null,null,null,null,null,null,null,null,null,null,null,null,null,null,null,null,null,null,null,null,null,null,null,null,null,null,null,null,null,null,null,null,null,null,null,null,null,null,null,null,null,null,null,null,null,null,null,null,null,null,null,null,null,null,null,null,null,null,null,null,null,null,null,null,null,null,null,null,null,null,null,null,null,null,null,129,null,"",98]
[null,null,null,null,null,null,null,null,null,null,null,null,null,null,null,null,null,null,null,null,null,null,null,null,null,null,null,null,null,null,null,null,null,null,null,null,null,null,null,null,null,null,null,null,null,null,null,null,null,null,null,null,null,null,null,null,null,null,null,null,null,null,null,null,null,null,null,null,null,null,null,null,null,null,null,null,null,null,null,""]
[null,null,null,null,null,null,null,null,null,null,null,null,null,null,null,null,null,null,null,null,null,null,null,null,null,null,null,null,null,null,null,null,null,null,null,null,null,null,null,null,null,null,null,null,null,null,null,null,null,null,null,null,null,null,null,null,null,null,null,null,null,null,null,null,null,null,null,null,null,null,null,null,null,null,null,null,null,65,null,"",159]
[null,null,null,null,null,null,null,null,null,null,null,null,null,null,null,null,null,null,null,null,null,null,null,null,null,null,null,null,null,null,null,null,null,null,null,null,null,null,null,null,null,null,null,null,null,null,null,null,null,null,null,null,null,null,null,null,null,null,null,null,null,null,null,null,null,null,null,null,null,null,null,null,null,null,null,null,null,65,null,"",95]
[null,null,null,null,null,null,null,null,null,null,null,null,null,null,null,null,null,null,null,null,null,null,null,null,null,null,null,null,null,null,null,null,null,null,null,null,null,null,null,null,null,null,null,null,null,null,null,null,null,null,null,null,null,null,null,null,null,null,null,null,null,null,null,null,null,null,null,null,null,null,null,null,null,null,null,null,null,null,null,""]
[null,null,null,null,null,null,null,null,null,null,null,null,null,null,null,null,null,null,null,null,null,null,null,null,null,null,null,null,null,null,null,null,null,null,null,null,null,null,null,null,null,null,null,null,null,null,null,null,null,null,null,null,null,null,null,null,null,null,null,null,null,null,null,null,null,null,null,null,null,null,null,null,null,null,null,null,null,129,null,"E15",162]
[null,null,null,null,null,null,null,null,null,null,null,null,null,null,null,null,null,null,null,null,null,null,null,null,null,null,null,null,null,null,null,null,null,null,null,null,null,null,null,null,null,null,null,null,null,null,null,null,null,null,null,null,null,null,null,null,null,null,null,null,null,null,null,null,null,null,null,null,null,null,null,null,null,null,null,null,null,129,50,"",34]
[null,null,null,null,null,null,null,null,null,null,null,null,null,null,null,null,null,null,null,null,null,null,null,null,null,null,null,null,null,null,null,null,null,null,null,null,null,null,null,null,null,null,null,null,null,null,null,null,null,null,null,null,null,null,null,null,null,null,null,null,null,null,null,null,null,null,null,null,null,null,null,null,null,null,null,null,null,null,null,""]
[null,null,null,null,null,null,null,null,null,null,null,null,null,null,null,null,null,null,null,null,null,null,null,null,null,null,null,null,null,null,null,null,null,null,null,null,null,null,null,null,null,null,null,null,null,null,null,null,null,null,null,null,null,null,null,null,null,null,null,null,null,null,null,null,null,null,null,null,null,null,null,null,null,null,null,null,null,50,null,"",223]
[null,null,null,null,null,null,null,null,null,null,null,null,null,null,null,null,null,null,null,null,null,null,null,null,null,null,null,null,null,null,null,null,null,null,null,null,null,null,null,null,null,null,null,null,null,null,null,null,null,null,null,null,null,null,null,null,null,null,null,null,null,null,null,null,null,null,null,null,null,null,null,null,null,null,null,null,null,63,999,"",63]
[null,null,null,null,null,null,null,null,null,null,null,null,null,null,null,null,null,null,null,null,null,null,null,null,null,null,null,null,null,null,null,null,null,null,null,null,null,null,null,null,null,null,null,null,null,null,null,null,null,null,null,null,null,null,null,null,null,null,null,null,null,null,null,null,null,null,null,null,null,null,null,null,null,null,null,null,null,null,null,""]
[null,null,null,null,null,null,null,null,null,null,null,null,null,null,null,null,null,null,null,null,null,null,null,null,null,null,null,null,null,null,null,null,null,null,null,null,null,null,null,null,null,null,null,null,null,null,null,null,null,null,null,null,null,null,null,null,null,null,null,null,null,null,null,null,null,null,null,null,null,null,null,null,null,null,null,null,null,129,999,"",194]
[null,null,null,null,null,null,null,null,null,null,null,null,null,null,null,null,null,null,null,null,null,null,null,null,null,null,null,null,null,null,null,null,null,null,null,null,null,null,null,null,null,null,null,null,null,null,null,null,null,null,null,null,null,null,null,null,null,null,null,null,null,null,null,null,null,null,null,null,null,null,null,null,null,null,null,null,null,129,999,"",66]
[null,null,null,null,null,null,null,null,null,null,null,null,null,null,null,null,null,null,null,null,null,null,null,null,null,null,null,null,null,null,null,null,null,null,null,null,null,null,null,null,null,null,null,null,null,null,null,null,null,null,null,null,null,null,null,null,null,null,null,null,null,null,null,null,null,null,null,null,null,null,null,null,null,null,null,null,null,null,null,""]
[null,null,null,null,null,null,null,null,null,null,null,null,null,null,null,null,null,null,null,null,null,null,null,null,null,null,null,null,null,null,null,null,null,null,null,null,null,null,null,null,null,null,null,null,null,null,null,null,null,null,null,null,null,null,null,null,null,null,null,null,null,null,null,null,null,null,null,null,null,null,null,null,null,null,null,null,null,65,999,"",191]
[null,null,null,null,null,null,null,null,null,null,null,null,null,null,null,null,null,null,null,null,null,null,null,null,null,null,null,null,null,null,null,null,null,null,null,null,null,null,null,null,null,null,null,null,null,null,null,null,null,null,null,null,null,null,null,null,null,null,null,null,null,null,null,null,null,null,null,null,null,null,null,null,null,null,null,null,null,65,999,"",127]
[null,null,null,null,null,null,null,null,null,null,null,null,null,null,null,null,null,null,null,null,null,null,null,null,null,null,null,null,null,null,null,null,null,null,null,null,null,null,null,null,null,null,null,null,null,null,null,null,null,null,null,null,null,null,null,null,null,null,null,null,null,null,null,null,null,null,null,null,null,null,null,null,null,null,null,null,null,null,null,""]
[null,null,null,null,null,null,null,null,null,null,null,null,null,null,null,null,null,null,null,null,null,null,null,null,null,null,null,null,null,null,null,null,null,null,null,null,null,null,null,null,null,null,null,null,null,null,null,null,null,null,null,null,null,null,null,null,null,null,null,null,null,null,null,null,null,null,null,null,null,null,null,null,null,null,null,null,null,129,999,"",130]
[null,null,null,null,null,null,null,null,null,null,null,null,null,null,null,null,null,null,null,null,null,null,null,null,null,null,null,null,null,null,null,null,null,null,null,null,null,null,null,null,null,null,null,null,null,null,null,null,null,null,null,null,null,null,null,null,null,null,null,null,null,null,null,null,null,null,null,null,null,null,null,null,null,null,null,null,null,129,999,"",255]
[null,null,null,null,null,null,null,null,null,null,null,null,null,null,null,null,null,null,null,null,null,null,null,null,null,null,null,null,null,null,null,null,null,null,null,null,null,null,null,null,null,null,null,null,null,null,null,null,null,null,null,null,null,null,null,null,null,null,null,null,null,null,null,null,null,null,null,null,null,null,null,null,null,null,null,null,null,null,null,""]
[null,null,null,null,null,null,null,null,null,null,null,null,null,null,null,null,null,null,null,null,null,null,null,null,null,null,null,null,null,null,null,null,null,null,null,null,null,null,null,null,null,null,null,null,null,null,null,null,null,null,null,null,null,null,null,null,null,null,null,null,null,null,null,null,null,null,null,null,null,null,null,null,null,null,null,null,null,2,null,"",2]

{"sheet":"Program","index":1,"n_rows":61,"n_cols":10,"rows_kept":61,"cut":false,"hidden":true,"merged":[[48,1,48,9],[60,2,60,9],[0,1,0,9],[1,1,1,9],[2,1,2,9],[3,1,3,9],[4,1,4,9],[31,1,31,9]]}
[null,{"$f":"+Katılım!A1","v":"TÜRKİYE MASA TENİSİ FEDERASYONU\nİsmail Eren ALICI Küçükler Ferdi-Takım Türkiye Şampiyonası                                                                                                                                                                                          TEK KIZ [ 09-13 Nisan 2025 ÇORUM ]"}]
[null,{"$f":"+Katılım!A2","v":0}]
[]
[null,"PROGRAM"]
[null,"1. Gün"]
[null,"SAAT"]
[null,"09:20","ERKEK FERDİ","13-16.","ELEME","GRUPLARININ","1."," MAÇLARI",4,"MASA"]
[null,"09:20","ERKEK FERDİ","1-4","ELEME","GRUPLARININ","2."," MAÇLARI",4,"MASA"]
[null,"09:40","ERKEK FERDİ","5-12","ELEME","GRUPLARININ","2."," MAÇLARI",8,"MASA"]
[null,"10:00","ERKEK FERDİ","13-16","ELEME","GRUPLARININ","2."," MAÇLARI",4,"MASA"]
[null,"10:00","KIZ FERDİ","13-16.","ELEME","GRUPLARININ","1."," MAÇLARI",4,"MASA"]
[null,"10:20","KIZ FERDİ","1-8","ELEME","GRUPLARININ","2."," MAÇLARI",8,"MASA"]
[null,"10:40","KIZ FERDİ","9-16","ELEME","GRUPLARININ","2."," MAÇLARI",8,"MASA"]
[null,"11:00:00","ERKEK FERDİ","13-16.","ELEME","GRUPLARININ","3."," MAÇLARI",4,"MASA"]
[null,"11:00:00","KIZ FERDİ","13-16.","ELEME","GRUPLARININ","3."," MAÇLARI",4,"MASA"]
[]
[null,"13:20","ERKEK FERDİ","1-16 ","ANA TABO ELEME","1. TUR","1-8."," MAÇLAR",8,"MASA"]
[null,"13:40","KIZ FERDİ","1-16 ","ANA TABO ELEME","1. TUR","1-8."," MAÇLAR",8,"MASA"]
[]
[null,"14:00","ERKEK FERDİ","1-16 ","ANA TABO ELEME","1. TUR","9-16."," MAÇLAR",8,"MASA"]
[null,"14:20","KIZ FERDİ","1-16 ","ANA TABO ELEME","1. TUR","9-16."," MAÇLAR",8,"MASA"]
[]
[null,"14:40","ERKEK FERDİ","1-16 ","ANA TABO ","1. TUR","1-8."," MAÇLAR",8,"MASA"]
[null,"15:00","KIZ FERDİ","1-16 ","ANA TABO ","1. TUR","1-8."," MAÇLAR",8,"MASA"]
[]
[null,"15:20","ERKEK FERDİ","17-32","ANA TABO ","1. TUR","1-8."," MAÇLAR",8,"MASA"]
[null,"15:40","KIZ FERDİ","17-32","ANA TABO ","1. TUR","1-8."," MAÇLAR",8,"MASA"]
[]
[null,"16:00","ERKEK FERDİ","1-16 ","ANA TABO ","2. TUR","9-16."," MAÇLAR",8,"MASA"]
[null,"16:00","KIZ FERDİ","1-16 ","ANA TABO ","2. TUR","9-16."," MAÇLAR",8,"MASA"]
[]
[null,"2. Gün"]
[null,"SAAT"]
[null,"09:20","ERKEK FERDİ","17-32","ANA TABO ","2. TUR","9-16."," MAÇLAR",8,"MASA"]
[null,"09:40","KIZ FERDİ","17-32","ANA TABO ","2. TUR","9-16."," MAÇLAR",8,"MASA"]
[]
[null,"10:00","ERKEK FERDİ","1-16 ","ANA TABO ","3. TUR","17-24."," MAÇLAR",8,"MASA"]
[null,"10:20","KIZ FERDİ","1-16 ","ANA TABO ","3. TUR","17-24."," MAÇLAR",8,"MASA"]
[]
[null,"10:40","ERKEK FERDİ","17-32","ANA TABO ","3. TUR","17-24."," MAÇLAR",8,"MASA"]
[null,"11:00","KIZ FERDİ","17-32","ANA TABO ","3. TUR","17-24."," MAÇLAR",8,"MASA"]
[]
[null,"14:00","ERKEK FERDİ","1-16 ","ANA TABO ","4. TUR","25-32."," MAÇLAR",8,"MASA"]
[null,"14:20","KIZ FERDİ","1-16 ","ANA TABO ","4. TUR","25-32."," MAÇLAR",8,"MASA"]
[]
[null,"14:40","ERKEK FERDİ","17-32","ANA TABO ","4. TUR","25-32."," MAÇLAR",8,"MASA"]
[null,"15:00","KIZ FERDİ","17-32","ANA TABO ","4. TUR","25-32."," MAÇLAR",8,"MASA"]
[]
[null,"3. Gün"]
[null,"SAAT"]
[null,"09:30","ERKEK FERDİ","1-16 ","ANA TABO ","5. TUR","33-34."," MAÇLAR",2,"MASA"]
[null,"09:30","KIZ FERDİ","1-16 ","ANA TABO ","5. TUR","33-34."," MAÇLAR",2,"MASA"]
[]
[null,"10:00","ERKEK FERDİ","1-16 ","ANA TABO ","6. TUR","35."," MAÇ",1,"MASA"]
[null,"10:00","KIZ FERDİ","1-16 ","ANA TABO ","6. TUR","35."," MAÇ",1,"MASA"]
[]
[null,"10:30","ERKEK FERDİ","17-32","ANA TABO ","FİNAL","36."," MAÇ",1,"MASA"]
[null,"10:30","KIZ FERDİ","17-32","ANA TABO ","FİNAL","36."," MAÇ",1,"MASA"]
[]
[]
[null,"11:30","ÖDÜL TÖRENİ"]

{"sheet":"Katılım","index":2,"n_rows":130,"n_cols":72,"rows_kept":130,"cut":false,"hidden":false,"merged":[[1,34,2,35],[0,0,1,7]]}
["TÜRKİYE MASA TENİSİ FEDERASYONU\nİsmail Eren ALICI Küçükler Ferdi-Takım Türkiye Şampiyonası                                                                                                                                                                                          TEK KIZ [ 09-13 Nisan 2025 ÇORUM ]",null,null,null,null,null,null,null,null,null,null,null,null,null,null,null,null,null,null,null,null,null,null,null,null,null,null,"Ferdi","TÜRKİYE MASA TENİSİ FEDERASYONU\nİsmail Eren ALICI Küçükler Ferdi-Takım Türkiye Şampiyonası                                                                                                                                                                                          TEK KIZ [ 09-13 Nisan 2025 ÇORUM ]",null,null,null,null,null,null,null,null,null,null,null,null,null,null,null,null,"….......",3,1,"Grup",2,"A3",null,null,null,null,null,null,6,null,null,null,null,null,null,null,null,null,null,null,null,null,1]
[null,null,null,null,null,null,null,null,null,0.7055475115776062,null,null,null,null,null,null,null,null,null,null,null,null,null,null,null,null,null,"Grup",0,null,null,null,null,null,null,null,null,null,null,null,null,null,null,null,null,256,null,null,"Eleme",null,null,null,null,null,null,null,null,null,null,null,null,null,null,null,null,null,null,null,null,null,"Ferdi","Ferdi"]
["No",null,"Puan","Sporcu","İl","Takım Adı","İl","TŞ","Grup",null,null,null,null,null,null,null,null,null,null,null,null,null,null,null,null,null,null,1,"[ Ön Eleme ]","[ Eleme ]","[ Ana Tablo ]","[ Grup ]",null,null,null,null,null,null,null,null,null,null,null,null,null,128,null,null,null,null,null,null,null,null,null,null,null,null,null,null,null,null,null,null,null,null,null,null,null,null,"5_Mac"]
[1,null,280,"ELA SU YÖNTER","ANK","ŞAFAKTEPE","ANKARA",280,null,null,null,null,null,null,null,null,null,null,null,null,null,null,null,null,null,"ELA SU YÖNTER (ANK)",null,null,null,null,null,null,null,null,null,null,null,null,null,null,null,null,null,null,null,64,null,null,null,null,null,null,null,null,null,null,null,null,null,null,null,null,null,null,null,null,null,null,null,null,"Olimpik"]
[2,null,275,"ARMİN AYDIN","İST","FENERBAHÇE SPOR KULÜBÜ","İSTANBUL",275,null,null,null,null,null,null,null,null,null,null,null,null,null,null,null,null,null,"ARMİN AYDIN (İST)",null,null,null,null,null,null,null,null,null,null,null,null,null,null,null,null,null,null,null,32,null,null,null,null,null,null,null,null,null,null,null,null,null,null,null,null,null,null,null,null,null,null,null,null,"Yeni_Olimpik"]
[3,0.27304559946060181,274,"EMİNE AYDINAY","BRS","BURSA B. ŞEH. BLD. SPOR","BURSA",274,null,null,null,null,null,null,null,null,null,null,null,null,null,null,null,null,null,"EMİNE AYDINAY (BRS)",null,null,null,null,null,null,null,null,null,null,null,null,null,null,null,null,null,null,null,16,null,null,null,null,null,null,null,null,null,null,null,null,null,null,null,null,null,null,null,null,null,null,null,null,"Corbillon"]
[5,0.43739122152328491,274,"BELİNAY DAVUŞ","KST","KASTAMONU MTSK","KASTAMONU",274,null,null,null,null,null,null,null,null,null,null,null,null,null,null,null,null,null,"BELİNAY DAVUŞ (KST)",null,null,null,null,null,null,null,null,null,null,null,null,null,null,null,null,null,null,null,8]
[4,0.94507062435150146,274,"DURU BERİL TOK","YLV","YALOVA BLD. GENÇLİK SPOR","YALOVA",274,null,null,null,null,null,null,null,null,null,null,null,null,null,null,null,null,null,"DURU BERİL TOK (YLV)"]
[6,null,270,"ZEYNEP DURAN","İST","FENERBAHÇE SPOR KULÜBÜ","İSTANBUL",270,null,null,null,null,null,null,null,null,null,null,null,null,null,null,null,null,null,"ZEYNEP DURAN (İST)"]
[7,null,269,"AYBİGE FERİDE ÜSTÜNDAĞ","MĞL","MUĞLA B. ŞEHİR BLD.","MUĞLA",269,null,null,null,null,null,null,null,null,null,null,null,null,null,null,null,null,null,"AYBİGE FERİDE ÜSTÜNDAĞ (MĞL)"]
[8,null,266,"MEDİNE İREM TÜRKAN","BTM","1955 BATMAN BLD. SPOR","BATMAN",266,null,null,null,null,null,null,null,null,null,null,null,null,null,null,null,null,null,"MEDİNE İREM TÜRKAN (BTM)"]
[9,null,264,"ELİF DURU BECER","ÇRM","ARENA SPOR","ÇORUM",264,null,null,null,null,null,null,null,null,null,null,null,null,null,null,null,null,null,"ELİF DURU BECER (ÇRM)"]
[10,null,263,"ŞEVVAL ALAŞ","BTM","1955 BATMAN BLD. SPOR","BATMAN",263,null,null,null,null,null,null,null,null,null,null,null,null,null,null,null,null,null,"ŞEVVAL ALAŞ (BTM)"]
[11,0.14495295286178589,259,"DERİN MÜLAZIM","ÇRM","ARENA SPOR","ÇORUM",259,null,null,null,null,null,null,null,null,null,null,null,null,null,null,null,null,null,"DERİN MÜLAZIM (ÇRM)"]
[12,0.14584922790527344,259,"BUĞLEM SENA ÇALIŞKAN","SKR","HENDEK OLİMPİK SPOR","SAKARYA",259,null,null,null,null,null,null,null,null,null,null,null,null,null,null,null,null,null,"BUĞLEM SENA ÇALIŞKAN (SKR)"]
[13,null,251,"CEYDA DÖKMECİ","KNY","SELÇUKLU BLD. SPOR","KONYA",251,null,null,null,null,null,null,null,null,null,null,null,null,null,null,null,null,null,"CEYDA DÖKMECİ (KNY)"]
[14,null,250,"AYŞE NAR ALPTEKİN","İST","İTÜ GVO SK","İSTANBUL",250,null,null,null,null,null,null,null,null,null,null,null,null,null,null,null,null,null,"AYŞE NAR ALPTEKİN (İST)"]
[17,0.22686600685119629,245,"ZEYNEP KALKAN","HTY","HATAY SPOR","HATAY",245,null,null,null,null,null,null,null,null,null,null,null,null,null,null,null,null,null,"ZEYNEP KALKAN (HTY)"]
[20,0.58916300535202026,220,"HAFSA YURTERİ","İZM","MAVİ EGE SPOR","İZMİR",220,null,null,null,null,null,null,null,null,null,null,null,null,null,null,null,null,null,"HAFSA YURTERİ (İZM)"]
[16,0.82460212707519531,219,"NİSA ÜZÜMCÜ","BTM","1955 BATMAN BLD. SPOR","BATMAN",219,null,null,null,null,null,null,null,null,null,null,null,null,null,null,null,null,null,"NİSA ÜZÜMCÜ (BTM)"]
[18,0.82980161905288696,218,"ESMA SULTAN SARI","SKR","HENDEK OLİMPİK SPOR","SAKARYA",218,null,null,null,null,null,null,null,null,null,null,null,null,null,null,null,null,null,"ESMA SULTAN SARI (SKR)"]
[15,0.91096431016921997,217,"BERRA BAHTİYAR","SKR","HENDEK OLİMPİK SPOR","SAKARYA",217,null,null,null,null,null,null,null,null,null,null,null,null,null,null,null,null,null,"BERRA BAHTİYAR (SKR)"]
[23,3.1154453754425049E-2,216,"BURCU ASEL TUNCER","ÇRM","ARENA SPOR","ÇORUM",216,null,null,null,null,null,null,null,null,null,null,null,null,null,null,null,null,null,"BURCU ASEL TUNCER (ÇRM)"]
[22,0.13409298658370972,216,"EDA MORAL","İST","İSTANBUL DSİ SPOR","İSTANBUL",216,null,null,null,null,null,null,null,null,null,null,null,null,null,null,null,null,null,"EDA MORAL (İST)"]
[24,0.52658510208129883,216,"RANA ZEREN KÖSE","İST","PENDİK BELEDİYE SPOR KULÜBÜ","İSTANBUL",216,null,null,null,null,null,null,null,null,null,null,null,null,null,null,null,null,null,"RANA ZEREN KÖSE (İST)"]
[25,0.57904297113418579,216,"FEYZA KOÇER","KYS","KOCASİNAN BLD.SPOR","KAYSERİ",216,null,null,null,null,null,null,null,null,null,null,null,null,null,null,null,null,null,"FEYZA KOÇER (KYS)"]
[19,0.89866650104522705,216,"ASİYE TUĞÇE KENAR","KNY","SELÇUKLU BLD. SPOR","KONYA",216,null,null,null,null,null,null,null,null,null,null,null,null,null,null,null,null,null,"ASİYE TUĞÇE KENAR (KNY)"]
[21,0.97962749004364014,216,"DURU YAVAŞCAOĞLU","YLV","YALOVA BLD. GENÇLİK SPOR","YALOVA",216,null,null,null,null,null,null,null,null,null,null,null,null,null,null,null,null,null,"DURU YAVAŞCAOĞLU (YLV)"]
[48,0.23912602663040161,208,"ELİF NUR KOÇ","ÇRM","ARENA SPOR","ÇORUM",208,null,null,null,null,null,null,null,null,null,null,null,null,null,null,null,null,null,"ELİF NUR KOÇ (ÇRM)"]
[49,0.42073351144790649,208,"ŞEVVAL ÖZDEMİR","İST","İBB SPOR","İSTANBUL",208,null,null,null,null,null,null,null,null,null,null,null,null,null,null,null,null,null,"ŞEVVAL ÖZDEMİR (İST)"]
[26,0.6261100172996521,208,"İPEK UĞUR","İST","İTÜ GVO SK","İSTANBUL",208,null,null,null,null,null,null,null,null,null,null,null,null,null,null,null,null,null,"İPEK UĞUR (İST)"]
[27,0.66279101371765137,208,"ESMA KAMER SÜT","KYS","KAYSERİ SPOR A.Ş SPOR (A)","KAYSERİ",208,null,null,null,null,null,null,null,null,null,null,null,null,null,null,null,null,null,"ESMA KAMER SÜT (KYS)"]
[28,0.9707111120223999,208,"ECRİN ATASEVER","MRD","MERİT GRUP REAL MARDİN ","MARDİN ",208,null,null,null,null,null,null,null,null,null,null,null,null,null,null,null,null,null,"ECRİN ATASEVER (MRD)"]
[33,0.99666035175323486,208,"NİHAN BERA KOÇER","NVŞ","KAP-OFF","NEVŞEHİR",208,null,null,null,null,null,null,null,null,null,null,null,null,null,null,null,null,null,"NİHAN BERA KOÇER (NVŞ)"]
[36,0.20601719617843628,171,"HAVİN MUTLU","MRD","MERİT GRUP REAL MARDİN ","MARDİN ",171,null,null,null,null,null,null,null,null,null,null,null,null,null,null,null,null,null,"HAVİN MUTLU (MRD)"]
[32,0.23528224229812622,162,"İLKİM EYLÜL YEKREK","MĞL","BODVED","MUĞLA",162,null,null,null,null,null,null,null,null,null,null,null,null,null,null,null,null,null,"İLKİM EYLÜL YEKREK (MĞL)"]
[31,0.25460189580917358,120,"EYLÜL YALÇINKAYA","KST","KASTAMONU MTSK","KASTAMONU",120,null,null,null,null,null,null,null,null,null,null,null,null,null,null,null,null,null,"EYLÜL YALÇINKAYA (KST)"]
[38,5.8765530586242676E-2,116,"BEREN BOZKURT","ADN","ÇİLTAR MTSK","ADANA",116,null,null,null,null,null,null,null,null,null,null,null,null,null,null,null,null,null,"BEREN BOZKURT (ADN)"]
[46,0.25200456380844116,116,"ZÜMRA KALKAN","AMS","KUTLUBEY OKULLARI","AMASYA",116,null,null,null,null,null,null,null,null,null,null,null,null,null,null,null,null,null,"ZÜMRA KALKAN (AMS)"]
[45,0.27473706007003784,116,"FERİDE MELİKE HAMAL","DNZ","DENİZLİ B. ŞEHİR BLD. SPOR","DENİZLİ",116,null,null,null,null,null,null,null,null,null,null,null,null,null,null,null,null,null,"FERİDE MELİKE HAMAL (DNZ)"]
[42,0.71001887321472168,116,"BURCU AL","KNY","KARATAY BLD. SPOR","KONYA",116,null,null,null,null,null,null,null,null,null,null,null,null,null,null,null,null,null,"BURCU AL (KNY)"]
[39,0.80476361513137817,116,"HAFSA TORBALI","KNY","SELÇUKLU BLD. SPOR","KONYA",116,null,null,null,null,null,null,null,null,null,null,null,null,null,null,null,null,null,"HAFSA TORBALI (KNY)"]
[29,0.15352416038513184,108,"ATİYE ÖZER","ADN","ÇİLTAR MTSK","ADANA",108,null,null,null,null,null,null,null,null,null,null,null,null,null,null,null,null,null,"ATİYE ÖZER (ADN)"]
[44,0.72675049304962158,108,"ZEYNEP ELİF ÜNSAL","AMS","KUTLUBEY OKULLARI","AMASYA",108,null,null,null,null,null,null,null,null,null,null,null,null,null,null,null,null,null,"ZEYNEP ELİF ÜNSAL (AMS)"]
[41,0.77402776479721069,108,"UMAY ŞAHİN","İST","FENERBAHÇE SPOR KULÜBÜ","İSTANBUL",108,null,null,null,null,null,null,null,null,null,null,null,null,null,null,null,null,null,"UMAY ŞAHİN (İST)"]
[35,0.89553529024124146,108,"ZEYNEP ÖZÇELİK","İST","İTÜ GVO SK","İSTANBUL",108,null,null,null,null,null,null,null,null,null,null,null,null,null,null,null,null,null,"ZEYNEP ÖZÇELİK (İST)"]
[43,0.67364668846130371,24,"BEREN SU ZER","ÇRM","SPOR  İHTİSAS","ÇORUM",24,null,null,null,null,null,null,null,null,null,null,null,null,null,null,null,null,null,"BEREN SU ZER (ÇRM)"]
[34,0.75068771839141846,23,"ECE MASAL KAYA","ADN","ADANA GENÇLİK VE SPOR","ADANA",23,null,null,null,null,null,null,null,null,null,null,null,null,null,null,null,null,null,"ECE MASAL KAYA (ADN)"]
[47,0.75490832328796387,22,"ELA TOPRAK TOKATLI","KNY","KARATAY BLD. SPOR","KONYA",22,null,null,null,null,null,null,null,null,null,null,null,null,null,null,null,null,null,"ELA TOPRAK TOKATLI (KNY)"]
[37,0.79012888669967651,21,"DEFNE TURAN","YLV","YALOVA BLD. GENÇLİK SPOR","YALOVA",21,null,null,null,null,null,null,null,null,null,null,null,null,null,null,null,null,null,"DEFNE TURAN (YLV)"]
[40,0.86453449726104736,18,"EYLÜL ECE BECER","ÇRM","SPOR  İHTİSAS","ÇORUM",18,null,null,null,null,null,null,null,null,null,null,null,null,null,null,null,null,null,"EYLÜL ECE BECER (ÇRM)"]
[30,7.8848481178283691E-2,16,"ASMİN YAĞMAHAN","BTM","1955 BATMAN BLD. SPOR","BATMAN",16,null,null,null,null,null,null,null,null,null,null,null,null,null,null,null,null,null,"ASMİN YAĞMAHAN (BTM)"]
[51,0.30857008695602417,16,"ÖYKÜ DENİZ ERKOÇ","ÇRM","SPOR  İHTİSAS","ÇORUM",16,null,null,null,null,null,null,null,null,null,null,null,null,null,null,null,null,null,"ÖYKÜ DENİZ ERKOÇ (ÇRM)"]
[50,0.77913570404052734,16,"ZEYNEP ELA ÇELİK","ÇRM","ÇORUM BLD. SPOR","ÇORUM ",16,null,null,null,null,null,null,null,null,null,null,null,null,null,null,null,null,null,"ZEYNEP ELA ÇELİK (ÇRM)"]
[52,null,8,"İPEK ÖZTÜRK","ÇRM","ÇORUM BLD. SPOR","ÇORUM ",8,null,null,null,null,null,null,null,null,null,null,null,null,null,null,null,null,null,"İPEK ÖZTÜRK (ÇRM)"]
[61,2.3741722106933594E-3,"","SELENNAZ EKER","ADN","ADANA GENÇLİK VE SPOR","ADANA","",null,null,null,null,null,null,null,null,null,null,null,null,null,null,null,null,null,"SELENNAZ EKER (ADN)"]
[73,4.864203929901123E-2,"","AYÇA SU DÖŞ","ADN","ÇİLTAR MTSK","ADANA","",null,null,null,null,null,null,null,null,null,null,null,null,null,null,null,null,null,"AYÇA SU DÖŞ (ADN)"]
[74,5.1899433135986328E-2,"","CEREN BUDAK","ADN","ÇİLTAR MTSK","ADANA","",null,null,null,null,null,null,null,null,null,null,null,null,null,null,null,null,null,"CEREN BUDAK (ADN)"]
[79,6.8541109561920166E-2,"","GİZEM ÇİĞİL","ADN","ÇİLTAR MTSK","ADANA","",null,null,null,null,null,null,null,null,null,null,null,null,null,null,null,null,null,"GİZEM ÇİĞİL (ADN)"]
[92,8.732527494430542E-2,"","ASYA BOLAT","AMS","KUTLUBEY OKULLARI","AMASYA","",null,null,null,null,null,null,null,null,null,null,null,null,null,null,null,null,null,"ASYA BOLAT (AMS)"]
[63,0.11124420166015625,"","AYŞE YAREN KAŞKA","AMS","KUTLUBEY OKULLARI","AMASYA","",null,null,null,null,null,null,null,null,null,null,null,null,null,null,null,null,null,"AYŞE YAREN KAŞKA (AMS)"]
[108,0.12446558475494385,"","DEFNE ZEYNEP KELES","AMS","KUTLUBEY OKULLARI","AMASYA","",null,null,null,null,null,null,null,null,null,null,null,null,null,null,null,null,null,"DEFNE ZEYNEP KELES (AMS)"]
[124,0.13170963525772095,null,"EBRAR TOZLU","AMS","KUTLUBEY OKULLARI","AMASYA","",null,null,null,null,null,null,null,null,null,null,null,null,null,null,null,null,null,"EBRAR TOZLU (AMS)"]
[125,0.13685649633407593,null,"ESLEM ÇAVŞAK","AMS","KUTLUBEY OKULLARI","AMASYA","",null,null,null,null,null,null,null,null,null,null,null,null,null,null,null,null,null,"ESLEM ÇAVŞAK (AMS)"]
[89,0.15795642137527466,null,"NİSA GÜN","AMS","KUTLUBEY OKULLARI","AMASYA","",null,null,null,null,null,null,null,null,null,null,null,null,null,null,null,null,null,"NİSA GÜN (AMS)"]
[119,0.1618196964263916,null,"SÜEDA SİVAS","AMS","KUTLUBEY OKULLARI","AMASYA","",null,null,null,null,null,null,null,null,null,null,null,null,null,null,null,null,null,"SÜEDA SİVAS (AMS)"]
[65,0.17840480804443359,null,"DİLARA AYGÖRMEZ","ANK","ŞEKERSPOR 06","ANKARA","",null,null,null,null,null,null,null,null,null,null,null,null,null,null,null,null,null,"DİLARA AYGÖRMEZ (ANK)"]
[106,0.1890825629234314,null,"MİRA DİNÇ","ANK","ŞEKERSPOR 06","ANKARA","",null,null,null,null,null,null,null,null,null,null,null,null,null,null,null,null,null,"MİRA DİNÇ (ANK)"]
[80,0.20756155252456665,null,"EDA ALAŞ","BTM","1955 BATMAN BLD. SPOR","BATMAN","",null,null,null,null,null,null,null,null,null,null,null,null,null,null,null,null,null,"EDA ALAŞ (BTM)"]
[76,0.21476942300796509,null,"HÜMEYRA ULUÇ","BTM","1955 BATMAN BLD. SPOR","BATMAN","",null,null,null,null,null,null,null,null,null,null,null,null,null,null,null,null,null,"HÜMEYRA ULUÇ (BTM)"]
[69,0.23002499341964722,null,"MELİSA ALPAR","BTM","1955 BATMAN BLD. SPOR","BATMAN","",null,null,null,null,null,null,null,null,null,null,null,null,null,null,null,null,null,"MELİSA ALPAR (BTM)"]
[93,0.23428791761398315,null,"YAĞMUR ALPAR","BTM","1955 BATMAN BLD. SPOR","BATMAN","",null,null,null,null,null,null,null,null,null,null,null,null,null,null,null,null,null,"YAĞMUR ALPAR (BTM)"]
[101,0.26336908340454102,null,"ZEHRA ÖZBİLGİ","BYB","BAYBURT GENÇLİK MERKEZİ","BAYBURT","",null,null,null,null,null,null,null,null,null,null,null,null,null,null,null,null,null,"ZEHRA ÖZBİLGİ (BYB)"]
[107,0.27558296918869019,null,"ZEYNEP AKYÜZ","BYB","BAYBURT GENÇLİK MERKEZİ","BAYBURT","",null,null,null,null,null,null,null,null,null,null,null,null,null,null,null,null,null,"ZEYNEP AKYÜZ (BYB)"]
[118,0.28773820400238037,null,"ECRİN FİDAN","BRS","BURSA B. ŞEH. BLD. SPOR","BURSA","",null,null,null,null,null,null,null,null,null,null,null,null,null,null,null,null,null,"ECRİN FİDAN (BRS)"]
[67,0.29894310235977173,null,"ÖMÜR GÜVEN","BRS","BURSA B. ŞEH. BLD. SPOR","BURSA","",null,null,null,null,null,null,null,null,null,null,null,null,null,null,null,null,null,"ÖMÜR GÜVEN (BRS)"]
[53,0.30535858869552612,null,"ARMİN ŞEKER","ÇRM","ARENA SPOR","ÇORUM","",null,null,null,null,null,null,null,null,null,null,null,null,null,null,null,null,null,"ARMİN ŞEKER (ÇRM)"]
[96,0.31635957956314087,null,"ARNİSA ŞEKER","ÇRM","SPOR  İHTİSAS","ÇORUM","",null,null,null,null,null,null,null,null,null,null,null,null,null,null,null,null,null,"ARNİSA ŞEKER (ÇRM)"]
[57,0.33386117219924927,null,"ELİF SU ERKOÇAK","ÇRM","SPOR  İHTİSAS","ÇORUM","",null,null,null,null,null,null,null,null,null,null,null,null,null,null,null,null,null,"ELİF SU ERKOÇAK (ÇRM)"]
[55,0.33984589576721191,null,"ASLI ATEŞ","DYB","SİLVAN MTSK","DİYARBAKIR","",null,null,null,null,null,null,null,null,null,null,null,null,null,null,null,null,null,"ASLI ATEŞ (DYB)"]
[123,0.34704059362411499,null,"EZGİ TUŞEK","DYB","SİLVAN MTSK","DİYARBAKIR","",null,null,null,null,null,null,null,null,null,null,null,null,null,null,null,null,null,"EZGİ TUŞEK (DYB)"]
[68,0.34793549776077271,null,"IRMAK BURAKMAK","DYB","SİLVAN MTSK","DİYARBAKIR","",null,null,null,null,null,null,null,null,null,null,null,null,null,null,null,null,null,"IRMAK BURAKMAK (DYB)"]
[115,0.36008208990097046,null,"MERVE TUŞEK","DYB","SİLVAN MTSK","DİYARBAKIR","",null,null,null,null,null,null,null,null,null,null,null,null,null,null,null,null,null,"MERVE TUŞEK (DYB)"]
[102,0.36930620670318604,null,"ZEYNEP POLAT","GZT","ŞAHİNBEY BLD. GSK","GAZİANTEP","",null,null,null,null,null,null,null,null,null,null,null,null,null,null,null,null,null,"ZEYNEP POLAT (GZT)"]
[60,0.38325983285903931,null,"ELVİN ŞİMAL BIÇAK","GRS","YALIKÖY ŞBÇSK","GİRESUN","",null,null,null,null,null,null,null,null,null,null,null,null,null,null,null,null,null,"ELVİN ŞİMAL BIÇAK (GRS)"]
[104,0.38366502523422241,null,"BERİTAN ERSÖZ","HKR","HAKKARİ MTSK","HAKKARİ","",null,null,null,null,null,null,null,null,null,null,null,null,null,null,null,null,null,"BERİTAN ERSÖZ (HKR)"]
[111,0.41132473945617676,null,"ZELAL ÖZER","HKR","HAKKARİ MTSK","HAKKARİ","",null,null,null,null,null,null,null,null,null,null,null,null,null,null,null,null,null,"ZELAL ÖZER (HKR)"]
[103,0.43668574094772339,null,"CEMRE İPEK YÜTÜK","İST","FENERBAHÇE SPOR KULÜBÜ","İSTANBUL","",null,null,null,null,null,null,null,null,null,null,null,null,null,null,null,null,null,"CEMRE İPEK YÜTÜK (İST)"]
[72,0.43922996520996094,null,"BERRA DEMİR","İST","İBB SPOR","İSTANBUL","",null,null,null,null,null,null,null,null,null,null,null,null,null,null,null,null,null,"BERRA DEMİR (İST)"]
[70,0.45128941535949707,null,"ZEHRA NİL DEMİRCAN","İST","İBB SPOR","İSTANBUL","",null,null,null,null,null,null,null,null,null,null,null,null,null,null,null,null,null,"ZEHRA NİL DEMİRCAN (İST)"]
[112,0.45218652486801147,null,"ADA MORAL","İST","İSTANBUL DSİ SPOR","İSTANBUL","",null,null,null,null,null,null,null,null,null,null,null,null,null,null,null,null,null,"ADA MORAL (İST)"]
[91,0.45231342315673828,null,"ADA GARİP","İST","İTÜ GVO SK","İSTANBUL","",null,null,null,null,null,null,null,null,null,null,null,null,null,null,null,null,null,"ADA GARİP (İST)"]
[99,0.46669036149978638,null,"AHSEN BEYZA BENER","İST","PENDİK BELEDİYE SPOR KULÜBÜ","İSTANBUL","",null,null,null,null,null,null,null,null,null,null,null,null,null,null,null,null,null,"AHSEN BEYZA BENER (İST)"]
[109,0.46931374073028564,null,"ELİS ŞAHAN","İST","PENDİK BELEDİYE SPOR KULÜBÜ","İSTANBUL","",null,null,null,null,null,null,null,null,null,null,null,null,null,null,null,null,null,"ELİS ŞAHAN (İST)"]
[84,0.46947115659713745,null,"HAYRİYE EDA KOCADAŞ","İST","PENDİK BELEDİYE SPOR KULÜBÜ","İSTANBUL","",null,null,null,null,null,null,null,null,null,null,null,null,null,null,null,null,null,"HAYRİYE EDA KOCADAŞ (İST)"]
[105,0.49956154823303223,null,"GÜLCE KARABIYIK","İZM","MAVİ EGE SPOR","İZMİR","",null,null,null,null,null,null,null,null,null,null,null,null,null,null,null,null,null,"GÜLCE KARABIYIK (İZM)"]
[94,0.52275258302688599,null,"ÖZÜM ÖZEL","KKTC","KKTC","KKTC",null,null,null,null,null,null,null,null,null,null,null,null,null,null,null,null,null,null,"ÖZÜM ÖZEL (KKTC)"]
[122,0.54875463247299194,null,"LİVA ÇEVİK","KKTC","KKTC","KKTC",null,null,null,null,null,null,null,null,null,null,null,null,null,null,null,null,null,null,"LİVA ÇEVİK (KKTC)"]
[86,0.56610995531082153,null,"DENİZ BERRA BAYRAM","KYS","KAYSERİ SPOR A.Ş SPOR (A)","KAYSERİ","",null,null,null,null,null,null,null,null,null,null,null,null,null,null,null,null,null,"DENİZ BERRA BAYRAM (KYS)"]
[88,0.58232533931732178,null,"ECRİN KAHRAMAN","KYS","KOCASİNAN BLD.SPOR","KAYSERİ","",null,null,null,null,null,null,null,null,null,null,null,null,null,null,null,null,null,"ECRİN KAHRAMAN (KYS)"]
[62,0.58897125720977783,null,"ÖZÜM MİRAY ÖZ","KRK","KIRIKKALE YURDUM SPOR","KIRIKKALE ","",null,null,null,null,null,null,null,null,null,null,null,null,null,null,null,null,null,"ÖZÜM MİRAY ÖZ (KRK)"]
[97,0.59107542037963867,null,"ECE NAZ AÇIKGÖZ","KRL","LÜLEBURGAZ ZİRVE SPOR","KIRKLARELİ","",null,null,null,null,null,null,null,null,null,null,null,null,null,null,null,null,null,"ECE NAZ AÇIKGÖZ (KRL)"]
[126,0.59524548053741455,null,"IRMAK PİŞKİNOĞLU","KRL","LÜLEBURGAZ ZİRVE SPOR ","KIRKLARELİ","",null,null,null,null,null,null,null,null,null,null,null,null,null,null,null,null,null,"IRMAK PİŞKİNOĞLU (KRL)"]
[64,0.60161769390106201,null,"ÖYKÜ KUBİLAY","KRL","LÜLEBURGAZ ZİRVE SPOR ","KIRKLARELİ","",null,null,null,null,null,null,null,null,null,null,null,null,null,null,null,null,null,"ÖYKÜ KUBİLAY (KRL)"]
[54,0.62779837846755981,null,"TALİA VURAL","KRL","LÜLEBURGAZ ZİRVE SPOR ","KIRKLARELİ","",null,null,null,null,null,null,null,null,null,null,null,null,null,null,null,null,null,"TALİA VURAL (KRL)"]
[56,0.66644108295440674,null,"ELİF ASYA TAVAN","KNY","SELÇUKLU BLD. SPOR","KONYA","",null,null,null,null,null,null,null,null,null,null,null,null,null,null,null,null,null,"ELİF ASYA TAVAN (KNY)"]
[90,0.66942870616912842,null,"GÜLCE DEĞİŞLİ","KNY","SELÇUKLU BLD. SPOR","KONYA","",null,null,null,null,null,null,null,null,null,null,null,null,null,null,null,null,null,"GÜLCE DEĞİŞLİ (KNY)"]
[81,0.67913603782653809,null,"LEYLANUR ATASEVER","MRD","MERİT GRUP REAL MARDİN ","MARDİN ","",null,null,null,null,null,null,null,null,null,null,null,null,null,null,null,null,null,"LEYLANUR ATASEVER (MRD)"]
[83,0.68035686016082764,null,"SARA AĞILDAY","MRD","MERİT GRUP REAL MARDİN ","MARDİN ","",null,null,null,null,null,null,null,null,null,null,null,null,null,null,null,null,null,"SARA AĞILDAY (MRD)"]
[66,0.70724195241928101,null,"SİDELYA YILDIRIM","MĞL","BODVED","MUĞLA","",null,null,null,null,null,null,null,null,null,null,null,null,null,null,null,null,null,"SİDELYA YILDIRIM (MĞL)"]
[59,0.77372986078262329,null,"ZEYNEP ÇAM","MĞL","BODVED","MUĞLA","",null,null,null,null,null,null,null,null,null,null,null,null,null,null,null,null,null,"ZEYNEP ÇAM (MĞL)"]
[110,0.78052592277526855,null,"BUĞLEM GÜNDÜZ","MĞL","MUĞLA B. ŞEHİR BLD.","MUĞLA","",null,null,null,null,null,null,null,null,null,null,null,null,null,null,null,null,null,"BUĞLEM GÜNDÜZ (MĞL)"]
[58,0.81289541721343994,null,"DERİN ZEYNEP KILIÇ","MĞL","MUĞLA B. ŞEHİR BLD.","MUĞLA","",null,null,null,null,null,null,null,null,null,null,null,null,null,null,null,null,null,"DERİN ZEYNEP KILIÇ (MĞL)"]
[87,0.82104170322418213,null,"EYLÜL DEMİRTAŞ","MĞL","MUĞLA B. ŞEHİR BLD.","MUĞLA","",null,null,null,null,null,null,null,null,null,null,null,null,null,null,null,null,null,"EYLÜL DEMİRTAŞ (MĞL)"]
[71,0.83601325750350952,null,"ELİF FATIMA DEMİRCİ","NVŞ","KAP-OFF","NEVŞEHİR","",null,null,null,null,null,null,null,null,null,null,null,null,null,null,null,null,null,"ELİF FATIMA DEMİRCİ (NVŞ)"]
[78,0.8404996395111084,null,"ELİF ALAGÖZ","ORD","ORDU GSİMSK","ORDU","",null,null,null,null,null,null,null,null,null,null,null,null,null,null,null,null,null,"ELİF ALAGÖZ (ORD)"]
[116,0.84062421321868896,null,"ELİF İKRA ÇAKIR","ORD","ORDU GSİMSK","ORDU","",null,null,null,null,null,null,null,null,null,null,null,null,null,null,null,null,null,"ELİF İKRA ÇAKIR (ORD)"]
[75,0.84177130460739136,null,"BERAY ZEYNEP ÇALIŞKAN","SKR","HENDEK OLİMPİK SPOR","SAKARYA","",null,null,null,null,null,null,null,null,null,null,null,null,null,null,null,null,null,"BERAY ZEYNEP ÇALIŞKAN (SKR)"]
[82,0.85237866640090942,null,"BEREN NAZ ERGENÇ","SMS","İLKADIM BLD. SPOR","SAMSUN","",null,null,null,null,null,null,null,null,null,null,null,null,null,null,null,null,null,"BEREN NAZ ERGENÇ (SMS)"]
[95,0.88454186916351318,null,"ESLEM BAYKUT","SMS","İLKADIM BLD. SPOR","SAMSUN","",null,null,null,null,null,null,null,null,null,null,null,null,null,null,null,null,null,"ESLEM BAYKUT (SMS)"]
[85,0.88924801349639893,null,"DEFNE ANIK","SNP","SİNOP DORUK SPOR","SİNOP","",null,null,null,null,null,null,null,null,null,null,null,null,null,null,null,null,null,"DEFNE ANIK (SNP)"]
[100,0.93300509452819824,null,"MASAL ÇAYIR","SNP","SİNOP DORUK SPOR","SİNOP","",null,null,null,null,null,null,null,null,null,null,null,null,null,null,null,null,null,"MASAL ÇAYIR (SNP)"]
[113,0.93801373243331909,null,"ADA KOCABAŞ","YLV","YALOVA BLD. GENÇLİK SPOR","YALOVA","",null,null,null,null,null,null,null,null,null,null,null,null,null,null,null,null,null,"ADA KOCABAŞ (YLV)"]
[121,0.94998621940612793,null,"AZRA USTA","YLV","YALOVA BLD. GENÇLİK SPOR","YALOVA","",null,null,null,null,null,null,null,null,null,null,null,null,null,null,null,null,null,"AZRA USTA (YLV)"]
[77,0.96477276086807251,null,"DOĞA KOCACENK","YLV","YALOVA BLD. GENÇLİK SPOR","YALOVA","",null,null,null,null,null,null,null,null,null,null,null,null,null,null,null,null,null,"DOĞA KOCACENK (YLV)"]
[114,0.97338473796844482,null,"FİRDEVS NUR BİNGÖL","YLV","YALOVA BLD. GENÇLİK SPOR","YALOVA","",null,null,null,null,null,null,null,null,null,null,null,null,null,null,null,null,null,"FİRDEVS NUR BİNGÖL (YLV)"]
[98,0.9839814305305481,null,"NEHİR HASPOLATLI","YLV","YALOVA BLD. GENÇLİK SPOR","YALOVA","",null,null,null,null,null,null,null,null,null,null,null,null,null,null,null,null,null,"NEHİR HASPOLATLI (YLV)"]
[117,0.98829251527786255,null,"SEDEF YILDIRIM","YLV","YALOVA BLD. GENÇLİK SPOR","YALOVA","",null,null,null,null,null,null,null,null,null,null,null,null,null,null,null,null,null,"SEDEF YILDIRIM (YLV)"]
[120,0.9916844367980957,null,"ŞÜKRAN ERVA İNCİ","YLV","YALOVA BLD. GENÇLİK SPOR","YALOVA","",null,null,null,null,null,null,null,null,null,null,null,null,null,null,null,null,null,"ŞÜKRAN ERVA İNCİ (YLV)"]
[127,null,null,null,null,null,null,null,null,null,null,null,null,null,null,null,null,null,null,null,null,null,null,null,null,0]

{"sheet":"On_Eleme","index":3,"n_rows":69,"n_cols":9,"rows_kept":69,"cut":false,"hidden":false,"merged":[[0,1,2,8]]}
[null,"TÜRKİYE MASA TENİSİ FEDERASYONU\nİsmail Eren ALICI Küçükler Ferdi-Takım Türkiye Şampiyonası                                                                                                                                                                                          TEK KIZ [ 09-13 Nisan 2025 ÇORUM ] [ Ön Eleme ]"]
[]
[]
[null,null,null,null,"Sporcu","Skor","Galip",null,"Külüp Adı"]
[1,"E1",84,null,"HAYRİYE EDA KOCADAŞ (İST)",0,"",null,"PENDİK BELEDİYE SPOR KULÜBÜ"]
["1.1",null,105,null,"GÜLCE KARABIYIK (İZM)",0,null,null,"MAVİ EGE SPOR"]
[]
[2,"E2",61,null,"SELENNAZ EKER (ADN)",0,"",null,"ADANA GENÇLİK VE SPOR"]
["2.2",null,106,null,"MİRA DİNÇ (ANK)",0,null,null,"ŞEKERSPOR 06"]
[]
[3,"E3",93,null,"YAĞMUR ALPAR (BTM)",0,"",null,"1955 BATMAN BLD. SPOR"]
["3.3",null,107,null,"ZEYNEP AKYÜZ (BYB)",0,null,null,"BAYBURT GENÇLİK MERKEZİ"]
[]
[4,"E4",52,null,"İPEK ÖZTÜRK (ÇRM)",0,"",null,"ÇORUM BLD. SPOR"]
["4.4",null,108,null,"DEFNE ZEYNEP KELES (AMS)",0,null,null,"KUTLUBEY OKULLARI"]
[]
[5,"E5",77,null,"DOĞA KOCACENK (YLV)",0,"",null,"YALOVA BLD. GENÇLİK SPOR"]
["5.5",null,109,null,"ELİS ŞAHAN (İST)",0,null,null,"PENDİK BELEDİYE SPOR KULÜBÜ"]
[]
[6,"E6",68,null,"IRMAK BURAKMAK (DYB)",0,"",null,"SİLVAN MTSK"]
["6.6",null,110,null,"BUĞLEM GÜNDÜZ (MĞL)",0,null,null,"MUĞLA B. ŞEHİR BLD."]
[]
[7,"E7",100,null,"MASAL ÇAYIR (SNP)",0,"",null,"SİNOP DORUK SPOR"]
["7.7",null,111,null,"ZELAL ÖZER (HKR)",0,null,null,"HAKKARİ MTSK"]
[]
[8,"E8",45,null,"FERİDE MELİKE HAMAL (DNZ)",0,"",null,"DENİZLİ B. ŞEHİR BLD. SPOR"]
["8.8",null,112,null,"ADA MORAL (İST)",0,null,null,"İSTANBUL DSİ SPOR"]
[]
[9,"E9",87,null,"EYLÜL DEMİRTAŞ (MĞL)",0,"",null,"MUĞLA B. ŞEHİR BLD."]
["9.9",null,113,null,"ADA KOCABAŞ (YLV)",0,null,null,"YALOVA BLD. GENÇLİK SPOR"]
[]
[10,"E10",58,null,"DERİN ZEYNEP KILIÇ (MĞL)",0,"",null,"MUĞLA B. ŞEHİR BLD."]
["10.10",null,114,null,"FİRDEVS NUR BİNGÖL (YLV)",0,null,null,"YALOVA BLD. GENÇLİK SPOR"]
[]
[11,"E11",90,null,"GÜLCE DEĞİŞLİ (KNY)",0,"",null,"SELÇUKLU BLD. SPOR"]
["11.11",null,115,null,"MERVE TUŞEK (DYB)",0,null,null,"SİLVAN MTSK"]
[]
[12,"E12",55,null,"ASLI ATEŞ (DYB)",0,"",null,"SİLVAN MTSK"]
["12.12",null,116,null,"ELİF İKRA ÇAKIR (ORD)",0,null,null,"ORDU GSİMSK"]
[]
[13,"E13",74,null,"CEREN BUDAK (ADN)",0,"",null,"ÇİLTAR MTSK"]
["13.13",null,117,null,"SEDEF YILDIRIM (YLV)",0,null,null,"YALOVA BLD. GENÇLİK SPOR"]
[]
[14,"E14",71,null,"ELİF FATIMA DEMİRCİ (NVŞ)",0,"",null,"KAP-OFF"]
["14.14",null,118,null,"ECRİN FİDAN (BRS)",0,null,null,"BURSA B. ŞEH. BLD. SPOR"]
[]
[15,"E15",103,null,"CEMRE İPEK YÜTÜK (İST)",0,"",null,"FENERBAHÇE SPOR KULÜBÜ"]
["15.15",null,119,null,"SÜEDA SİVAS (AMS)",0,null,null,"KUTLUBEY OKULLARI"]
[]
[16,"E16",42,null,"BURCU AL (KNY)",0,"",null,"KARATAY BLD. SPOR"]
["16.16",null,120,null,"ŞÜKRAN ERVA İNCİ (YLV)",0,null,null,"YALOVA BLD. GENÇLİK SPOR"]
[]
[17,"E17",82,null,"BEREN NAZ ERGENÇ (SMS)",0,"",null,"İLKADIM BLD. SPOR"]
["17.17",null,121,null,"AZRA USTA (YLV)",0,null,null,"YALOVA BLD. GENÇLİK SPOR"]
[]
[18,"E18",63,null,"AYŞE YAREN KAŞKA (AMS)",0,"",null,"KUTLUBEY OKULLARI"]
["18.18",null,122,null,"LİVA ÇEVİK (KKTC)",0,null,null,"KKTC"]
[]
[19,"E19",95,null,"ESLEM BAYKUT (SMS)",0,"",null,"İLKADIM BLD. SPOR"]
["19.19",null,123,null,"EZGİ TUŞEK (DYB)",0,null,null,"SİLVAN MTSK"]
[]
[20,"E20",50,null,"ZEYNEP ELA ÇELİK (ÇRM)",0,"",null,"ÇORUM BLD. SPOR"]
["20.20",null,124,null,"EBRAR TOZLU (AMS)",0,null,null,"KUTLUBEY OKULLARI"]
[]
[21,"E21",79,null,"GİZEM ÇİĞİL (ADN)",0,"",null,"ÇİLTAR MTSK"]
["21.21",null,125,null,"ESLEM ÇAVŞAK (AMS)",0,null,null,"KUTLUBEY OKULLARI"]
[]
[22,"E22",66,null,"SİDELYA YILDIRIM (MĞL)",0,"",null,"BODVED"]
["22.22",null,126,null,"IRMAK PİŞKİNOĞLU (KRL)",0,null,null,"LÜLEBURGAZ ZİRVE SPOR "]

{"sheet":"Eleme","index":4,"n_rows":679,"n_cols":79,"rows_kept":679,"cut":false,"hidden":false,"merged":[[487,19,487,25],[491,26,491,32],[0,0,1,25],[651,5,651,11],[654,5,654,11],[657,5,657,11],[585,5,585,11],[588,5,588,11],[583,5,583,11],[591,5,591,11],[586,5,586,11],[589,5,589,11],[594,5,594,11],[597,5,597,11],[600,5,600,11],[592,5,592,11],[595,5,595,11],[598,5,598,11],[642,5,642,11],[637,5,637,11],[640,5,640,11],[636,5,636,11],[639,5,639,11],[678,5,678,11],[670,5,670,11],[673,5,673,11],[676,5,676,11],[672,5,672,11],[675,5,675,11],[664,5,664,11],[667,5,667,11],[663,5,663,11],[666,5,666,11],[669,5,669,11],[658,5,658,11],[661,5,661,11],[660,5,660,11],[649,5,649,11],[652,5,652,11],[655,5,655,11],[648,5,648,11],[643,5,643,11],[646,5,646,11],[645,5,645,11],[628,5,628,11],[631,5,631,11],[634,5,634,11],[627,5,627,11],[630,5,630,11],[633,5,633,11],[622,5,622,11],[625,5,625,11],[621,5,621,11],[624,5,624,11],[613,5,613,11],[616,5,616,11],[619,5,619,11],[615,5,615,11],[618,5,618,11],[607,5,607,11],[610,5,610,11],[609,5,609,11],[612,5,612,11],[601,5,601,11],[604,5,604,11],[603,5,603,11],[606,5,606,11],[578,5,578,11],[580,5,580,11],[571,5,571,11],[572,5,572,11],[574,5,574,11],[575,5,575,11],[577,5,577,11],[565,5,565,11],[566,5,566,11],[568,5,568,11],[569,5,569,11],[557,5,557,11],[559,5,559,11],[560,5,560,11],[562,5,562,11],[563,5,563,11],[550,5,550,11],[551,5,551,11],[553,5,553,11],[554,5,554,11],[556,5,556,11],[544,5,544,11],[545,5,545,11],[547,5,547,11],[548,5,548,11],[552,12,552,18],[536,5,536,11],[538,5,538,11],[539,5,539,11],[541,5,541,11],[542,5,542,11],[529,5,529,11],[530,5,530,11],[532,5,532,11],[533,5,533,11],[535,5,535,11],[523,5,523,11],[524,5,524,11],[526,5,526,11],[527,5,527,11],[515,5,515,11],[517,5,517,11],[518,5,518,11],[520,5,520,11],[521,5,521,11],[508,5,508,11],[509,5,509,11],[511,5,511,11],[512,5,512,11],[514,5,514,11],[500,5,500,11],[502,5,502,11],[503,5,503,11],[505,5,505,11],[506,5,506,11],[493,5,493,11],[494,5,494,11],[496,5,496,11],[497,5,497,11],[499,5,499,11],[487,5,487,11],[488,5,488,11],[490,5,490,11],[491,5,491,11],[479,5,479,11],[481,5,481,11],[482,5,482,11],[484,5,484,11],[485,5,485,11],[472,5,472,11],[473,5,473,11],[475,5,475,11],[476,5,476,11],[478,5,478,11],[483,12,483,18],[466,5,466,11],[467,5,467,11],[469,5,469,11],[470,5,470,11],[458,5,458,11],[460,5,460,11],[461,5,461,11],[463,5,463,11],[464,5,464,11],[451,5,451,11],[452,5,452,11],[454,5,454,11],[455,5,455,11],[457,5,457,11],[445,5,445,11],[446,5,446,11],[448,5,448,11],[449,5,449,11],[437,5,437,11],[439,5,439,11],[440,5,440,11],[442,5,442,11],[443,5,443,11],[430,5,430,11],[431,5,431,11],[433,5,433,11],[434,5,434,11],[436,5,436,11],[424,5,424,11],[425,5,425,11],[427,5,427,11],[428,5,428,11],[416,5,416,11],[418,5,418,11],[419,5,419,11],[421,5,421,11],[422,5,422,11],[426,12,426,18],[409,5,409,11],[410,5,410,11],[412,5,412,11],[413,5,413,11],[415,5,415,11],[403,5,403,11],[404,5,404,11],[406,5,406,11],[407,5,407,11],[397,5,397,11],[398,5,398,11],[400,5,400,11],[401,5,401,11],[389,5,389,11],[391,5,391,11],[392,5,392,11],[394,5,394,11],[395,5,395,11],[390,12,390,18],[393,12,393,18],[396,12,396,18],[399,12,399,18],[360,5,360,11],[320,5,320,11],[321,5,321,11],[323,5,323,11],[324,5,324,11],[326,5,326,11],[327,5,327,11],[329,5,329,11],[330,5,330,11],[332,5,332,11],[347,5,347,11],[348,5,348,11],[350,5,350,11],[351,5,351,11],[353,5,353,11],[354,5,354,11],[356,5,356,11],[333,5,333,11],[335,5,335,11],[336,5,336,11],[338,5,338,11],[339,5,339,11],[341,5,341,11],[345,5,345,11],[384,5,384,11],[386,5,386,11],[371,5,371,11],[372,5,372,11],[374,5,374,11],[375,5,375,11],[377,5,377,11],[378,5,378,11],[380,5,380,11],[381,5,381,11],[383,5,383,11],[357,5,357,11],[362,5,362,11],[363,5,363,11],[365,5,365,11],[366,5,366,11],[368,5,368,11],[369,5,369,11],[344,5,344,11],[359,5,359,11],[302,5,302,11],[303,5,303,11],[305,5,305,11],[342,5,342,11],[306,5,306,11],[308,5,308,11],[309,5,309,11],[311,5,311,11],[312,5,312,11],[314,5,314,11],[315,5,315,11],[317,5,317,11],[318,5,318,11],[288,5,288,11],[290,5,290,11],[291,5,291,11],[293,5,293,11],[294,5,294,11],[296,5,296,11],[297,5,297,11],[299,5,299,11],[300,5,300,11],[275,5,275,11],[276,5,276,11],[278,5,278,11],[279,5,279,11],[281,5,281,11],[282,5,282,11],[284,5,284,11],[285,5,285,11],[287,5,287,11],[261,5,261,11],[263,5,263,11],[264,5,264,11],[266,5,266,11],[267,5,267,11],[269,5,269,11],[270,5,270,11],[272,5,272,11],[273,5,273,11],[248,5,248,11],[249,5,249,11],[251,5,251,11],[252,5,252,11],[254,5,254,11],[255,5,255,11],[257,5,257,11],[258,5,258,11],[260,5,260,11],[234,5,234,11],[236,5,236,11],[237,5,237,11],[239,5,239,11],[240,5,240,11],[242,5,242,11],[243,5,243,11],[245,5,245,11],[246,5,246,11],[221,5,221,11],[222,5,222,11],[224,5,224,11],[225,5,225,11],[227,5,227,11],[228,5,228,11],[230,5,230,11],[231,5,231,11],[233,5,233,11],[3,5,3,11],[5,5,5,11],[9,5,9,11],[11,5,11,11],[195,5,195,11],[197,5,197,11],[12,5,12,11],[6,5,6,11],[8,5,8,11],[17,5,17,11],[18,5,18,11],[14,5,14,11],[15,5,15,11],[24,5,24,11],[26,5,26,11],[20,5,20,11],[21,5,21,11],[23,5,23,11],[32,5,32,11],[33,5,33,11],[27,5,27,11],[29,5,29,11],[30,5,30,11],[38,5,38,11],[39,5,39,11],[41,5,41,11],[35,5,35,11],[36,5,36,11],[47,5,47,11],[48,5,48,11],[42,5,42,11],[44,5,44,11],[45,5,45,11],[53,5,53,11],[54,5,54,11],[50,5,50,11],[51,5,51,11],[60,5,60,11],[62,5,62,11],[56,5,56,11],[57,5,57,11],[59,5,59,11],[68,5,68,11],[69,5,69,11],[63,5,63,11],[65,5,65,11],[66,5,66,11],[74,5,74,11],[75,5,75,11],[77,5,77,11],[71,5,71,11],[72,5,72,11],[83,5,83,11],[84,5,84,11],[78,5,78,11],[80,5,80,11],[81,5,81,11],[89,5,89,11],[90,5,90,11],[86,5,86,11],[87,5,87,11],[96,5,96,11],[98,5,98,11],[92,5,92,11],[93,5,93,11],[95,5,95,11],[104,5,104,11],[105,5,105,11],[99,5,99,11],[101,5,101,11],[102,5,102,11],[110,5,110,11],[111,5,111,11],[113,5,113,11],[107,5,107,11],[108,5,108,11],[119,5,119,11],[120,5,120,11],[114,5,114,11],[116,5,116,11],[117,5,117,11],[125,5,125,11],[126,5,126,11],[122,5,122,11],[123,5,123,11],[132,5,132,11],[134,5,134,11],[128,5,128,11],[129,5,129,11],[131,5,131,11],[140,5,140,11],[141,5,141,11],[135,5,135,11],[137,5,137,11],[138,5,138,11],[146,5,146,11],[147,5,147,11],[149,5,149,11],[143,5,143,11],[144,5,144,11],[155,5,155,11],[156,5,156,11],[150,5,150,11],[152,5,152,11],[153,5,153,11],[173,5,173,11],[174,5,174,11],[161,5,161,11],[162,5,162,11],[158,5,158,11],[159,5,159,11],[168,5,168,11],[170,5,170,11],[164,5,164,11],[165,5,165,11],[167,5,167,11],[171,5,171,11],[179,5,179,11],[180,5,180,11],[176,5,176,11],[177,5,177,11],[186,5,186,11],[191,5,191,11],[192,5,192,11],[188,5,188,11],[189,5,189,11],[182,5,182,11],[183,5,183,11],[185,5,185,11],[587,12,587,18],[590,12,590,18],[593,12,593,18],[596,12,596,18],[599,12,599,18],[602,12,602,18],[605,12,605,18],[608,12,608,18],[194,5,194,11],[198,5,198,11],[200,5,200,11],[201,5,201,11],[203,5,203,11],[204,5,204,11],[206,5,206,11],[207,5,207,11],[209,5,209,11],[210,5,210,11],[212,5,212,11],[213,5,213,11],[215,5,215,11],[216,5,216,11],[218,5,218,11],[219,5,219,11],[668,12,668,18],[671,12,671,18],[674,12,674,18],[677,12,677,18],[585,19,585,25],[592,19,592,25],[597,19,597,25],[604,19,604,25],[609,19,609,25],[616,19,616,25],[621,19,621,25],[628,19,628,25],[633,19,633,25],[640,19,640,25],[645,19,645,25],[652,19,652,25],[657,19,657,25],[664,19,664,25],[669,19,669,25],[676,19,676,25],[638,12,638,18],[641,12,641,18],[644,12,644,18],[647,12,647,18],[402,12,402,18],[405,12,405,18],[408,12,408,18],[411,12,411,18],[414,12,414,18],[417,12,417,18],[420,12,420,18],[423,12,423,18],[665,12,665,18],[650,12,650,18],[653,12,653,18],[656,12,656,18],[659,12,659,18],[662,12,662,18],[611,12,611,18],[614,12,614,18],[617,12,617,18],[620,12,620,18],[623,12,623,18],[626,12,626,18],[629,12,629,18],[632,12,632,18],[635,12,635,18],[584,12,584,18],[429,12,429,18],[432,12,432,18],[435,12,435,18],[438,12,438,18],[441,12,441,18],[444,12,444,18],[447,12,447,18],[450,12,450,18],[453,12,453,18],[456,12,456,18],[459,12,459,18],[462,12,462,18],[465,12,465,18],[468,12,468,18],[471,12,471,18],[474,12,474,18],[477,12,477,18],[480,12,480,18],[486,12,486,18],[489,12,489,18],[492,12,492,18],[495,12,495,18],[498,12,498,18],[501,12,501,18],[504,12,504,18],[507,12,507,18],[510,12,510,18],[513,12,513,18],[516,12,516,18],[519,12,519,18],[522,12,522,18],[525,12,525,18],[528,12,528,18],[531,12,531,18],[534,12,534,18],[537,12,537,18],[570,12,570,18],[573,12,573,18],[576,12,576,18],[579,12,579,18],[540,12,540,18],[543,12,543,18],[546,12,546,18],[549,12,549,18],[555,12,555,18],[558,12,558,18],[561,12,561,18],[564,12,564,18],[567,12,567,18]]}
["TÜRKİYE MASA TENİSİ FEDERASYONU\nİsmail Eren ALICI Küçükler Ferdi-Takım Türkiye Şampiyonası                                                                                                                                                                                          TEK KIZ [ 09-13 Nisan 2025 ÇORUM ] [ Eleme ]",null,null,null,null,null,null,null,null,null,null,null,null,null,null,null,null,null,null,null,null,null,null,null,null,null,null,null,null,null,null,null,null,null,null,null,null,null,null,null,null,null,null,null,null,null,null,null,null,null,null,null,null,null,null,null,null,null,null,null,null,null,null,null,null,null,null,null,null,null,null,null,null,null,null,null,null,null,3]
[]
["Y","S","B","Q","#"]
[1,1,null,null,1,"ELA SU YÖNTER (ANK)"]
[null,null,null,null,null,null,null,0,0,null,null,1,""]
[2,129,999,"",256,0,null,null,null,null,null,null,null,null,null,null,null,null,65,""]
[3,129,999,"",128,0,null,null,null,null,null,null,null,null,0,0,null,null,null,null,null,null,null,null,null,97]
[null,null,null,"",null,null,null,0,0,null,null,2,""]
[4,65,999,"",129,0]
[5,65,999,"",65,"DİLARA AYGÖRMEZ (ANK)",null,null,null,null,null,null,null,null,null,null,null,null,null,null,null,0,0,null,null,null,""]
[null,null,null,"",null,null,null,0,0,null,null,3,"",null,null,null,null,null,null,null,null,null,null,null,null,null,null,null,null,null,null,null,113]
[6,129,999,"",192,0,null,null,null,null,null,null,null,null,null,null,null,null,66]
[7,129,999,"",64,"ÖYKÜ KUBİLAY (KRL)",null,null,null,null,null,null,null,null,0,0,null,null,null,""]
[null,null,null,"",null,null,null,0,0,null,null,4,""]
[8,64,999,"",193,0]
[9,49,null,"",33,"NİHAN BERA KOÇER (NVŞ)",null,null,null,null,null,null,null,null,null,null,null,null,null,null,null,null,null,null,null,null,null,null,null,0,0]
[null,null,null,"",null,null,null,0,0,null,null,5,""]
[10,129,49,"",224,0,null,null,null,null,null,null,null,null,null,null,null,null,67,""]
[11,129,null,"",96,"ARNİSA ŞEKER (ÇRM)",null,null,null,null,null,null,null,null,0,0,null,null,null,null,null,null,null,null,null,98]
[null,null,null,"",null,null,null,0,0,null,null,6,""]
[12,65,null,"",161,0]
[13,65,null,"",97,"ECE NAZ AÇIKGÖZ (KRL)",null,null,null,null,null,null,null,null,null,null,null,null,null,null,null,0,0,null,null,null,""]
[null,null,null,"",null,null,null,0,0,null,null,7,""]
[14,129,null,"",160,0,null,null,null,null,null,null,null,null,null,null,null,null,68]
[15,129,32,"E29",32,"İLKİM EYLÜL YEKREK (MĞL)",null,null,null,null,null,null,null,null,0,0,null,null,null,""]
[null,null,null,"",null,null,null,0,0,null,null,8,""]
[16,32,null,"",225,0]
[17,17,null,"",17,"ZEYNEP KALKAN (HTY)",null,null,null,null,null,null,null,null,null,null,null,null,null,null,null,null,null,null,null,null,null,null,null,null,null,null,null,""]
[null,null,null,"",null,null,null,0,0,null,null,9,""]
[18,129,17,"",240,0,null,null,null,null,null,null,null,null,null,null,null,null,69,""]
[19,129,null,"",112,"ADA MORAL (İST)",null,null,null,null,null,null,null,null,0,0,null,null,null,null,null,null,null,null,null,99]
[null,null,null,"",null,null,null,0,0,null,null,10,""]
[20,65,null,"",145,0]
[21,65,null,"",81,"LEYLANUR ATASEVER (MRD)",null,null,null,null,null,null,null,null,null,null,null,null,null,null,null,0,0,null,null,null,""]
[null,null,null,"",null,null,null,0,0,null,null,11,"",null,null,null,null,null,null,null,null,null,null,null,null,null,null,null,null,null,null,null,114]
[22,129,null,"E8",176,0,null,null,null,null,null,null,null,null,null,null,null,null,70]
[23,129,48,"",48,"ELİF NUR KOÇ (ÇRM)",null,null,null,null,null,null,null,null,0,0,null,null,null,""]
[null,null,null,"",null,null,null,0,0,null,null,12,""]
[24,48,null,"",209,0]
[25,33,null,"",49,"ŞEVVAL ÖZDEMİR (İST)",null,null,null,null,null,null,null,null,null,null,null,null,null,null,null,null,null,null,null,null,null,null,null,0,0]
[null,null,null,"",null,null,null,0,0,null,null,13,""]
[26,129,33,"",208,0,null,null,null,null,null,null,null,null,null,null,null,null,71,""]
[27,129,null,"E24",80,"EDA ALAŞ (BTM)",null,null,null,null,null,null,null,null,0,0,null,null,null,null,null,null,null,null,null,100]
[null,null,null,"",null,null,null,0,0,null,null,14,""]
[28,65,null,"",177,0]
[29,65,null,"",113,"ADA KOCABAŞ (YLV)",null,null,null,null,null,null,null,null,null,null,null,null,null,null,null,0,0,null,null,null,""]
[null,null,null,"",null,null,null,0,0,null,null,15,""]
[30,129,null,"",144,0,null,null,null,null,null,null,null,null,null,null,null,null,72]
[31,129,16,"",16,"NİSA ÜZÜMCÜ (BTM)",null,null,null,null,null,null,null,null,0,0,null,null,null,""]
[null,null,null,"",null,null,null,0,0,null,null,16,""]
[32,16,null,"",241,0]
[33,9,null,"",9,"ELİF DURU BECER (ÇRM)"]
[null,null,null,"",null,null,null,0,0,null,null,17,""]
[34,129,9,"",248,0,null,null,null,null,null,null,null,null,null,null,null,null,73,""]
[35,129,null,"",120,"ŞÜKRAN ERVA İNCİ (YLV)",null,null,null,null,null,null,null,null,0,0,null,null,null,null,null,null,null,null,null,101]
[null,null,null,"",null,null,null,0,0,null,null,18,""]
[36,65,null,"",137,0]
[37,65,null,"",73,"AYÇA SU DÖŞ (ADN)",null,null,null,null,null,null,null,null,null,null,null,null,null,null,null,0,0,null,null,null,""]
[null,null,null,"",null,null,null,0,0,null,null,19,"",null,null,null,null,null,null,null,null,null,null,null,null,null,null,null,null,null,null,null,115]
[38,129,null,"E20",184,0,null,null,null,null,null,null,null,null,null,null,null,null,74]
[39,129,40,"",56,"ELİF ASYA TAVAN (KNY)",null,null,null,null,null,null,null,null,0,0,null,null,null,""]
[null,null,null,"",null,null,null,0,0,null,null,20,""]
[40,40,null,"",201,0]
[41,41,null,"",41,"UMAY ŞAHİN (İST)",null,null,null,null,null,null,null,null,null,null,null,null,null,null,null,null,null,null,null,null,null,null,null,0,0]
[null,null,null,"",null,null,null,0,0,null,null,21,""]
[42,129,41,"",216,0,null,null,null,null,null,null,null,null,null,null,null,null,75,""]
[43,129,null,"E4",88,"ECRİN KAHRAMAN (KYS)",null,null,null,null,null,null,null,null,0,0,null,null,null,null,null,null,null,null,null,102]
[null,null,null,"",null,null,null,0,0,null,null,22,""]
[44,65,null,"",169,0]
[45,65,null,"",105,"GÜLCE KARABIYIK (İZM)",null,null,null,null,null,null,null,null,null,null,null,null,null,null,null,0,0,null,null,null,""]
[null,null,null,"",null,null,null,0,0,null,null,23,""]
[46,129,null,"",152,0,null,null,null,null,null,null,null,null,null,null,null,null,76]
[47,129,24,"",24,"RANA ZEREN KÖSE (İST)",null,null,null,null,null,null,null,null,0,0,null,null,null,""]
[null,null,null,"",null,null,null,0,0,null,null,24,""]
[48,24,null,"",233,0]
[49,25,null,"",25,"FEYZA KOÇER (KYS)",null,null,null,null,null,null,null,null,null,null,null,null,null,null,null,null,null,null,null,null,null,null,null,null,null,null,null,""]
[null,null,null,"",null,null,null,0,0,null,null,25,""]
[50,129,25,"",232,0,null,null,null,null,null,null,null,null,null,null,null,null,77,""]
[51,129,null,"",104,"BERİTAN ERSÖZ (HKR)",null,null,null,null,null,null,null,null,0,0,null,null,null,null,null,null,null,null,null,103]
[null,null,null,"",null,null,null,0,0,null,null,26,""]
[52,65,null,"",153,0]
[53,65,null,"",89,"NİSA GÜN (AMS)",null,null,null,null,null,null,null,null,null,null,null,null,null,null,null,0,0,null,null,null,""]
[null,null,null,"",null,null,null,0,0,null,null,27,"",null,null,null,null,null,null,null,null,null,null,null,null,null,null,null,null,null,null,null,116]
[54,129,null,"E26",168,0,null,null,null,null,null,null,null,null,null,null,null,null,78]
[55,129,56,"",40,"EYLÜL ECE BECER (ÇRM)",null,null,null,null,null,null,null,null,0,0,null,null,null,""]
[null,null,null,"",null,null,null,0,0,null,null,28,""]
[56,56,null,"",217,0]
[57,57,999,"",57,"ELİF SU ERKOÇAK (ÇRM)",null,null,null,null,null,null,null,null,null,null,null,null,null,null,null,null,null,null,null,null,null,null,null,0,0]
[null,null,null,"",null,null,null,0,0,null,null,29,""]
[58,129,999,"",200,0,null,null,null,null,null,null,null,null,null,null,null,null,79,""]
[59,129,999,"",72,"BERRA DEMİR (İST)",null,null,null,null,null,null,null,null,0,0,null,null,null,null,null,null,null,null,null,104]
[null,null,null,"",null,null,null,0,0,null,null,30,""]
[60,65,999,"",185,0]
[61,65,999,"",121,"AZRA USTA (YLV)",null,null,null,null,null,null,null,null,null,null,null,null,null,null,null,0,0,null,null,null,""]
[null,null,null,"",null,null,null,0,0,null,null,31,""]
[62,129,999,"",136,0,null,null,null,null,null,null,null,null,null,null,null,null,80]
[63,129,999,"",249,0,null,null,null,null,null,null,null,null,0,0,null,null,null,""]
[null,null,null,"",null,null,null,0,0,null,null,32,""]
[64,8,null,"",8,"MEDİNE İREM TÜRKAN (BTM)"]
[65,5,null,"",5,"BELİNAY DAVUŞ (KST)"]
[null,null,null,"",null,null,null,0,0,null,null,33,""]
[66,129,999,"",252,0,null,null,null,null,null,null,null,null,null,null,null,null,81,""]
[67,129,999,"",124,"EBRAR TOZLU (AMS)",null,null,null,null,null,null,null,null,0,0,null,null,null,null,null,null,null,null,null,105]
[null,null,null,"",null,null,null,0,0,null,null,34,""]
[68,65,999,"",133,0]
[69,65,999,"",69,"MELİSA ALPAR (BTM)",null,null,null,null,null,null,null,null,null,null,null,null,null,null,null,0,0,null,null,null,""]
[null,null,null,"",null,null,null,0,0,null,null,35,"",null,null,null,null,null,null,null,null,null,null,null,null,null,null,null,null,null,null,null,117]
[70,129,999,"",188,0,null,null,null,null,null,null,null,null,null,null,null,null,82]
[71,129,999,"",60,"ELVİN ŞİMAL BIÇAK (GRS)",null,null,null,null,null,null,null,null,0,0,null,null,null,""]
[null,null,null,"",null,null,null,0,0,null,null,36,""]
[72,60,999,"",197,0]
[73,53,null,"",37,"DEFNE TURAN (YLV)",null,null,null,null,null,null,null,null,null,null,null,null,null,null,null,null,null,null,null,null,null,null,null,0,0]
[null,null,null,"",null,null,null,0,0,null,null,37,""]
[74,129,53,"",220,0,null,null,null,null,null,null,null,null,null,null,null,null,83,""]
[75,129,null,"E10",92,"ASYA BOLAT (AMS)",null,null,null,null,null,null,null,null,0,0,null,null,null,null,null,null,null,null,null,106]
[null,null,null,"",null,null,null,0,0,null,null,38,""]
[76,65,null,"",165,0]
[77,65,null,"",101,"ZEHRA ÖZBİLGİ (BYB)",null,null,null,null,null,null,null,null,null,null,null,null,null,null,null,0,0,null,null,null,""]
[null,null,null,"",null,null,null,0,0,null,null,39,""]
[78,129,null,"",156,0,null,null,null,null,null,null,null,null,null,null,null,null,84]
[79,129,28,"E2",28,"ECRİN ATASEVER (MRD)",null,null,null,null,null,null,null,null,0,0,null,null,null,""]
[null,null,null,"",null,null,null,0,0,null,null,40,""]
[80,28,null,"",229,0]
[81,21,null,"",21,"DURU YAVAŞCAOĞLU (YLV)",null,null,null,null,null,null,null,null,null,null,null,null,null,null,null,null,null,null,null,null,null,null,null,null,null,null,null,""]
[null,null,null,"",null,null,null,0,0,null,null,41,""]
[82,129,21,"E30",236,0,null,null,null,null,null,null,null,null,null,null,null,null,85,""]
[83,129,null,"",108,"DEFNE ZEYNEP KELES (AMS)",null,null,null,null,null,null,null,null,0,0,null,null,null,null,null,null,null,null,null,107]
[null,null,null,"",null,null,null,0,0,null,null,42,""]
[84,65,null,"",149,0]
[85,65,null,"",85,"DEFNE ANIK (SNP)",null,null,null,null,null,null,null,null,null,null,null,null,null,null,null,0,0,null,null,null,""]
[null,null,null,"",null,null,null,0,0,null,null,43,"",null,null,null,null,null,null,null,null,null,null,null,null,null,null,null,null,null,null,null,118]
[86,129,null,"E16",172,0,null,null,null,null,null,null,null,null,null,null,null,null,86]
[87,129,44,"",44,"ZEYNEP ELİF ÜNSAL (AMS)",null,null,null,null,null,null,null,null,0,0,null,null,null,""]
[null,null,null,"",null,null,null,0,0,null,null,44,""]
[88,44,null,"",213,0]
[89,37,null,"",53,"ARMİN ŞEKER (ÇRM)",null,null,null,null,null,null,null,null,null,null,null,null,null,null,null,null,null,null,null,null,null,null,null,0,0]
[null,null,null,"",null,null,null,0,0,null,null,45,""]
[90,129,37,"",204,0,null,null,null,null,null,null,null,null,null,null,null,null,87,""]
[91,129,null,"E18",76,"HÜMEYRA ULUÇ (BTM)",null,null,null,null,null,null,null,null,0,0,null,null,null,null,null,null,null,null,null,108]
[null,null,null,"",null,null,null,0,0,null,null,46,""]
[92,65,null,"",181,0]
[93,65,null,"",117,"SEDEF YILDIRIM (YLV)",null,null,null,null,null,null,null,null,null,null,null,null,null,null,null,0,0,null,null,null,""]
[null,null,null,"",null,null,null,0,0,null,null,47,""]
[94,129,null,"",140,0,null,null,null,null,null,null,null,null,null,null,null,null,88]
[95,129,12,"",12,"BUĞLEM SENA ÇALIŞKAN (SKR)",null,null,null,null,null,null,null,null,0,0,null,null,null,""]
[null,null,null,"",null,null,null,0,0,null,null,48,""]
[96,12,null,"",245,0]
[97,13,null,"",13,"CEYDA DÖKMECİ (KNY)"]
[null,null,null,"",null,null,null,0,0,null,null,49,""]
[98,129,13,"",244,0,null,null,null,null,null,null,null,null,null,null,null,null,89,""]
[99,129,null,"E27",116,"ELİF İKRA ÇAKIR (ORD)",null,null,null,null,null,null,null,null,0,0,null,null,null,null,null,null,null,null,null,109]
[null,null,null,"",null,null,null,0,0,null,null,50,""]
[100,65,null,"",141,0]
[101,65,null,"",77,"DOĞA KOCACENK (YLV)",null,null,null,null,null,null,null,null,null,null,null,null,null,null,null,0,0,null,null,null,""]
[null,null,null,"",null,null,null,0,0,null,null,51,"",null,null,null,null,null,null,null,null,null,null,null,null,null,null,null,null,null,null,null,119]
[102,129,null,"E22",180,0,null,null,null,null,null,null,null,null,null,null,null,null,90]
[103,129,36,"",52,"İPEK ÖZTÜRK (ÇRM)",null,null,null,null,null,null,null,null,0,0,null,null,null,""]
[null,null,null,"",null,null,null,0,0,null,null,52,""]
[104,36,null,"",205,0]
[105,45,null,"",45,"FERİDE MELİKE HAMAL (DNZ)",null,null,null,null,null,null,null,null,null,null,null,null,null,null,null,null,null,null,null,null,null,null,null,0,0]
[null,null,null,"",null,null,null,0,0,null,null,53,""]
[106,129,45,"",212,0,null,null,null,null,null,null,null,null,null,null,null,null,91,""]
[107,129,null,"E6",84,"HAYRİYE EDA KOCADAŞ (İST)",null,null,null,null,null,null,null,null,0,0,null,null,null,null,null,null,null,null,null,110]
[null,null,null,"",null,null,null,0,0,null,null,54,""]
[108,65,null,"",173,0]
[109,65,null,"",109,"ELİS ŞAHAN (İST)",null,null,null,null,null,null,null,null,null,null,null,null,null,null,null,0,0,null,null,null,""]
[null,null,null,"",null,null,null,0,0,null,null,55,""]
[110,129,null,"E12",148,0,null,null,null,null,null,null,null,null,null,null,null,null,92]
[111,129,20,"",20,"HAFSA YURTERİ (İZM)",null,null,null,null,null,null,null,null,0,0,null,null,null,""]
[null,null,null,"",null,null,null,0,0,null,null,56,""]
[112,20,null,"",237,0]
[113,29,null,"",29,"ATİYE ÖZER (ADN)",null,null,null,null,null,null,null,null,null,null,null,null,null,null,null,null,null,null,null,null,null,null,null,null,null,null,null,""]
[null,null,null,"",null,null,null,0,0,null,null,57,""]
[114,129,29,"",228,0,null,null,null,null,null,null,null,null,null,null,null,null,93,""]
[115,129,null,"",100,"MASAL ÇAYIR (SNP)",null,null,null,null,null,null,null,null,0,0,null,null,null,null,null,null,null,null,null,111]
[null,null,null,"",null,null,null,0,0,null,null,58,""]
[116,65,null,"",157,0]
[117,65,null,"",93,"YAĞMUR ALPAR (BTM)",null,null,null,null,null,null,null,null,null,null,null,null,null,null,null,0,0,null,null,null,""]
[null,null,null,"",null,null,null,0,0,null,null,59,"",null,null,null,null,null,null,null,null,null,null,null,null,null,null,null,null,null,null,null,120]
[118,129,null,"E14",164,0,null,null,null,null,null,null,null,null,null,null,null,null,94]
[119,129,52,"",36,"HAVİN MUTLU (MRD)",null,null,null,null,null,null,null,null,0,0,null,null,null,""]
[null,null,null,"",null,null,null,0,0,null,null,60,""]
[120,52,null,"",221,0]
[121,61,999,"",61,"SELENNAZ EKER (ADN)",null,null,null,null,null,null,null,null,null,null,null,null,null,null,null,null,null,null,null,null,null,null,null,0,0]
[null,null,null,"",null,null,null,0,0,null,null,61,""]
[122,129,999,"",196,0,null,null,null,null,null,null,null,null,null,null,null,null,95,""]
[123,129,999,"",68,"IRMAK BURAKMAK (DYB)",null,null,null,null,null,null,null,null,0,0,null,null,null,null,null,null,null,null,null,112]
[null,null,null,"",null,null,null,0,0,null,null,62,""]
[124,65,999,"",189,0]
[125,65,999,"",125,"ESLEM ÇAVŞAK (AMS)",null,null,null,null,null,null,null,null,null,null,null,null,null,null,null,0,0,null,null,null,""]
[null,null,null,"",null,null,null,0,0,null,null,63,""]
[126,129,999,"",132,0,null,null,null,null,null,null,null,null,null,null,null,null,96]
[127,129,999,"",253,0,null,null,null,null,null,null,null,null,0,0,null,null,null,""]
[null,null,null,"",null,null,null,0,0,null,null,64,""]
[128,4,null,"",4,"DURU BERİL TOK (YLV)"]
[129,3,null,"",3,"EMİNE AYDINAY (BRS)"]
[null,null,null,"",null,null,null,0,0,null,null,65,""]
[130,129,999,"",254,0,null,null,null,null,null,null,null,null,null,null,null,null,97,""]
[131,129,999,"",126,"IRMAK PİŞKİNOĞLU (KRL)",null,null,null,null,null,null,null,null,0,0,null,null,null,null,null,null,null,null,null,113]
[null,null,null,"",null,null,null,0,0,null,null,66,""]
[132,65,999,"",131,0]
[133,65,999,"",67,"ÖMÜR GÜVEN (BRS)",null,null,null,null,null,null,null,null,null,null,null,null,null,null,null,0,0,null,null,null,""]
[null,null,null,"",null,null,null,0,0,null,null,67,"",null,null,null,null,null,null,null,null,null,null,null,null,null,null,null,null,null,null,null,121]
[134,129,999,"",190,0,null,null,null,null,null,null,null,null,null,null,null,null,98]
[135,129,999,"",62,"ÖZÜM MİRAY ÖZ (KRK)",null,null,null,null,null,null,null,null,0,0,null,null,null,""]
[null,null,null,"",null,null,null,0,0,null,null,68,""]
[136,62,999,"",195,0]
[137,51,null,"",35,"ZEYNEP ÖZÇELİK (İST)",null,null,null,null,null,null,null,null,null,null,null,null,null,null,null,null,null,null,null,null,null,null,null,0,0]
[null,null,null,"",null,null,null,0,0,null,null,69,""]
[138,129,51,"",222,0,null,null,null,null,null,null,null,null,null,null,null,null,99,""]
[139,129,null,"E13",94,"ÖZÜM ÖZEL (KKTC)",null,null,null,null,null,null,null,null,0,0,null,null,null,null,null,null,null,null,null,114]
[null,null,null,"",null,null,null,0,0,null,null,70,""]
[140,65,null,"",163,0]
[141,65,null,"",99,"AHSEN BEYZA BENER (İST)",null,null,null,null,null,null,null,null,null,null,null,null,null,null,null,0,0,null,null,null,""]
[null,null,null,"",null,null,null,0,0,null,null,71,""]
[142,129,null,"",158,0,null,null,null,null,null,null,null,null,null,null,null,null,100]
[143,129,30,"E28",30,"ASMİN YAĞMAHAN (BTM)",null,null,null,null,null,null,null,null,0,0,null,null,null,""]
[null,null,null,"",null,null,null,0,0,null,null,72,""]
[144,30,null,"",227,0]
[145,19,null,"",19,"ASİYE TUĞÇE KENAR (KNY)",null,null,null,null,null,null,null,null,null,null,null,null,null,null,null,null,null,null,null,null,null,null,null,null,null,null,null,""]
[null,null,null,"",null,null,null,0,0,null,null,73,""]
[146,129,19,"",238,0,null,null,null,null,null,null,null,null,null,null,null,null,101,""]
[147,129,null,"",110,"BUĞLEM GÜNDÜZ (MĞL)",null,null,null,null,null,null,null,null,0,0,null,null,null,null,null,null,null,null,null,115]
[null,null,null,"",null,null,null,0,0,null,null,74,""]
[148,65,null,"",147,0]
[149,65,null,"",83,"SARA AĞILDAY (MRD)",null,null,null,null,null,null,null,null,null,null,null,null,null,null,null,0,0,null,null,null,""]
[null,null,null,"",null,null,null,0,0,null,null,75,"",null,null,null,null,null,null,null,null,null,null,null,null,null,null,null,null,null,null,null,122]
[150,129,null,"E5",174,0,null,null,null,null,null,null,null,null,null,null,null,null,102]
[151,129,46,"",46,"ZÜMRA KALKAN (AMS)",null,null,null,null,null,null,null,null,0,0,null,null,null,""]
[null,null,null,"",null,null,null,0,0,null,null,76,""]
[152,46,null,"",211,0]
[153,35,null,"",51,"ÖYKÜ DENİZ ERKOÇ (ÇRM)",null,null,null,null,null,null,null,null,null,null,null,null,null,null,null,null,null,null,null,null,null,null,null,0,0]
[null,null,null,"",null,null,null,0,0,null,null,77,""]
[154,129,35,"",206,0,null,null,null,null,null,null,null,null,null,null,null,null,103,""]
[155,129,null,"E21",78,"ELİF ALAGÖZ (ORD)",null,null,null,null,null,null,null,null,0,0,null,null,null,null,null,null,null,null,null,116]
[null,null,null,"",null,null,null,0,0,null,null,78,""]
[156,65,null,"",179,0]
[157,65,null,"",115,"MERVE TUŞEK (DYB)",null,null,null,null,null,null,null,null,null,null,null,null,null,null,null,0,0,null,null,null,""]
[null,null,null,"",null,null,null,0,0,null,null,79,""]
[158,129,null,"E31",142,0,null,null,null,null,null,null,null,null,null,null,null,null,104]
[159,129,14,"",14,"AYŞE NAR ALPTEKİN (İST)",null,null,null,null,null,null,null,null,0,0,null,null,null,""]
[null,null,null,"",null,null,null,0,0,null,null,80,""]
[160,14,null,"",243,0]
[161,11,null,"",11,"DERİN MÜLAZIM (ÇRM)"]
[null,null,null,"",null,null,null,0,0,null,null,81,""]
[162,129,11,"",246,0,null,null,null,null,null,null,null,null,null,null,null,null,105,""]
[163,129,null,"",118,"ECRİN FİDAN (BRS)",null,null,null,null,null,null,null,null,0,0,null,null,null,null,null,null,null,null,null,117]
[null,null,null,"",null,null,null,0,0,null,null,82,""]
[164,65,null,"",139,0]
[165,65,null,"",75,"BERAY ZEYNEP ÇALIŞKAN (SKR)",null,null,null,null,null,null,null,null,null,null,null,null,null,null,null,0,0,null,null,null,""]
[null,null,null,"",null,null,null,0,0,null,null,83,"",null,null,null,null,null,null,null,null,null,null,null,null,null,null,null,null,null,null,null,123]
[166,129,null,"E17",182,0,null,null,null,null,null,null,null,null,null,null,null,null,106]
[167,129,38,"",54,"TALİA VURAL (KRL)",null,null,null,null,null,null,null,null,0,0,null,null,null,""]
[null,null,null,"",null,null,null,0,0,null,null,84,""]
[168,38,null,"",203,0]
[169,43,null,"",43,"BEREN SU ZER (ÇRM)",null,null,null,null,null,null,null,null,null,null,null,null,null,null,null,null,null,null,null,null,null,null,null,0,0]
[null,null,null,"",null,null,null,0,0,null,null,85,""]
[170,129,43,"",214,0,null,null,null,null,null,null,null,null,null,null,null,null,107,""]
[171,129,null,"E1",86,"DENİZ BERRA BAYRAM (KYS)",null,null,null,null,null,null,null,null,0,0,null,null,null,null,null,null,null,null,null,118]
[null,null,null,"",null,null,null,0,0,null,null,86,""]
[172,65,null,"",171,0]
[173,65,null,"",107,"ZEYNEP AKYÜZ (BYB)",null,null,null,null,null,null,null,null,null,null,null,null,null,null,null,0,0,null,null,null,""]
[null,null,null,"",null,null,null,0,0,null,null,87,""]
[174,129,null,"",150,0,null,null,null,null,null,null,null,null,null,null,null,null,108]
[175,129,22,"",22,"EDA MORAL (İST)",null,null,null,null,null,null,null,null,0,0,null,null,null,""]
[null,null,null,"",null,null,null,0,0,null,null,88,""]
[176,22,null,"",235,0]
[177,27,null,"",27,"ESMA KAMER SÜT (KYS)",null,null,null,null,null,null,null,null,null,null,null,null,null,null,null,null,null,null,null,null,null,null,null,null,null,null,null,""]
[null,null,null,"",null,null,null,0,0,null,null,89,""]
[178,129,27,"",230,0,null,null,null,null,null,null,null,null,null,null,null,null,109,""]
[179,129,null,"",102,"ZEYNEP POLAT (GZT)",null,null,null,null,null,null,null,null,0,0,null,null,null,null,null,null,null,null,null,119]
[null,null,null,"",null,null,null,0,0,null,null,90,""]
[180,65,null,"",155,0]
[181,65,null,"",91,"ADA GARİP (İST)",null,null,null,null,null,null,null,null,null,null,null,null,null,null,null,0,0,null,null,null,""]
[null,null,null,"",null,null,null,0,0,null,null,91,"",null,null,null,null,null,null,null,null,null,null,null,null,null,null,null,null,null,null,null,124]
[182,129,null,"E9",166,0,null,null,null,null,null,null,null,null,null,null,null,null,110]
[183,129,54,"",38,"BEREN BOZKURT (ADN)",null,null,null,null,null,null,null,null,0,0,null,null,null,""]
[null,null,null,"",null,null,null,0,0,null,null,92,""]
[184,54,null,"",219,0]
[185,59,999,"",59,"ZEYNEP ÇAM (MĞL)",null,null,null,null,null,null,null,null,null,null,null,null,null,null,null,null,null,null,null,null,null,null,null,0,0]
[null,null,null,"",null,null,null,0,0,null,null,93,""]
[186,129,999,"",198,0,null,null,null,null,null,null,null,null,null,null,null,null,111,""]
[187,129,999,"",70,"ZEHRA NİL DEMİRCAN (İST)",null,null,null,null,null,null,null,null,0,0,null,null,null,null,null,null,null,null,null,120]
[null,null,null,"",null,null,null,0,0,null,null,94,""]
[188,65,999,"",187,0]
[189,65,999,"",123,"EZGİ TUŞEK (DYB)",null,null,null,null,null,null,null,null,null,null,null,null,null,null,null,0,0,null,null,null,""]
[null,null,null,"",null,null,null,0,0,null,null,95,""]
[190,129,999,"",134,0,null,null,null,null,null,null,null,null,null,null,null,null,112]
[191,129,999,"",251,0,null,null,null,null,null,null,null,null,0,0,null,null,null,""]
[null,null,null,"",null,null,null,0,0,null,null,96,""]
[192,6,null,"",6,"ZEYNEP DURAN (İST)"]
[193,7,null,"",7,"AYBİGE FERİDE ÜSTÜNDAĞ (MĞL)"]
[null,null,null,"",null,null,null,0,0,null,null,97,""]
[194,129,999,"",250,0,null,null,null,null,null,null,null,null,null,null,null,null,113,""]
[195,129,999,"",122,"LİVA ÇEVİK (KKTC)",null,null,null,null,null,null,null,null,0,0,null,null,null,null,null,null,null,null,null,121]
[null,null,null,"",null,null,null,0,0,null,null,98,""]
[196,65,999,"",135,0]
[197,65,999,"",71,"ELİF FATIMA DEMİRCİ (NVŞ)",null,null,null,null,null,null,null,null,null,null,null,null,null,null,null,0,0,null,null,null,""]
[null,null,null,"",null,null,null,0,0,null,null,99,"",null,null,null,null,null,null,null,null,null,null,null,null,null,null,null,null,null,null,null,125]
[198,129,999,"",186,0,null,null,null,null,null,null,null,null,null,null,null,null,114]
[199,129,999,"",58,"DERİN ZEYNEP KILIÇ (MĞL)",null,null,null,null,null,null,null,null,0,0,null,null,null,""]
[null,null,null,"",null,null,null,0,0,null,null,100,""]
[200,58,999,"",199,0]
[201,55,null,"",39,"HAFSA TORBALI (KNY)",null,null,null,null,null,null,null,null,null,null,null,null,null,null,null,null,null,null,null,null,null,null,null,0,0]
[null,null,null,"",null,null,null,0,0,null,null,101,""]
[202,129,55,"",218,0,null,null,null,null,null,null,null,null,null,null,null,null,115,""]
[203,129,null,"E11",90,"GÜLCE DEĞİŞLİ (KNY)",null,null,null,null,null,null,null,null,0,0,null,null,null,null,null,null,null,null,null,122]
[null,null,null,"",null,null,null,0,0,null,null,102,""]
[204,65,null,"",167,0]
[205,65,null,"",103,"CEMRE İPEK YÜTÜK (İST)",null,null,null,null,null,null,null,null,null,null,null,null,null,null,null,0,0,null,null,null,""]
[null,null,null,"",null,null,null,0,0,null,null,103,""]
[206,129,null,"E25",154,0,null,null,null,null,null,null,null,null,null,null,null,null,116]
[207,129,26,"",26,"İPEK UĞUR (İST)",null,null,null,null,null,null,null,null,0,0,null,null,null,""]
[null,null,null,"",null,null,null,0,0,null,null,104,""]
[208,26,null,"",231,0]
[209,23,null,"",23,"BURCU ASEL TUNCER (ÇRM)",null,null,null,null,null,null,null,null,null,null,null,null,null,null,null,null,null,null,null,null,null,null,null,null,null,null,null,""]
[null,null,null,"",null,null,null,0,0,null,null,105,""]
[210,129,23,"",234,0,null,null,null,null,null,null,null,null,null,null,null,null,117,""]
[211,129,null,"",106,"MİRA DİNÇ (ANK)",null,null,null,null,null,null,null,null,0,0,null,null,null,null,null,null,null,null,null,123]
[null,null,null,"",null,null,null,0,0,null,null,106,""]
[212,65,null,"",151,0]
[213,65,null,"",87,"EYLÜL DEMİRTAŞ (MĞL)",null,null,null,null,null,null,null,null,null,null,null,null,null,null,null,0,0,null,null,null,""]
[null,null,null,"",null,null,null,0,0,null,null,107,"",null,null,null,null,null,null,null,null,null,null,null,null,null,null,null,null,null,null,null,126]
[214,129,null,"E3",170,0,null,null,null,null,null,null,null,null,null,null,null,null,118]
[215,129,42,"",42,"BURCU AL (KNY)",null,null,null,null,null,null,null,null,0,0,null,null,null,""]
[null,null,null,"",null,null,null,0,0,null,null,108,""]
[216,42,null,"",215,0]
[217,39,null,"",55,"ASLI ATEŞ (DYB)",null,null,null,null,null,null,null,null,null,null,null,null,null,null,null,null,null,null,null,null,null,null,null,0,0]
[null,null,null,"",null,null,null,0,0,null,null,109,""]
[218,129,39,"",202,0,null,null,null,null,null,null,null,null,null,null,null,null,119,""]
[219,129,null,"E19",74,"CEREN BUDAK (ADN)",null,null,null,null,null,null,null,null,0,0,null,null,null,null,null,null,null,null,null,124]
[null,null,null,"",null,null,null,0,0,null,null,110,""]
[220,65,null,"",183,0]
[221,65,null,"",119,"SÜEDA SİVAS (AMS)",null,null,null,null,null,null,null,null,null,null,null,null,null,null,null,0,0,null,null,null,""]
[null,null,null,"",null,null,null,0,0,null,null,111,""]
[222,129,null,"",138,0,null,null,null,null,null,null,null,null,null,null,null,null,120]
[223,129,10,"",10,"ŞEVVAL ALAŞ (BTM)",null,null,null,null,null,null,null,null,0,0,null,null,null,""]
[null,null,null,"",null,null,null,0,0,null,null,112,""]
[224,10,null,"",247,0]
[225,15,null,"",15,"BERRA BAHTİYAR (SKR)"]
[null,null,null,"",null,null,null,0,0,null,null,113,""]
[226,129,15,"",242,0,null,null,null,null,null,null,null,null,null,null,null,null,121,""]
[227,129,null,"E32",114,"FİRDEVS NUR BİNGÖL (YLV)",null,null,null,null,null,null,null,null,0,0,null,null,null,null,null,null,null,null,null,125]
[null,null,null,"",null,null,null,0,0,null,null,114,""]
[228,65,null,"",143,0]
[229,65,null,"",79,"GİZEM ÇİĞİL (ADN)",null,null,null,null,null,null,null,null,null,null,null,null,null,null,null,0,0,null,null,null,""]
[null,null,null,"",null,null,null,0,0,null,null,115,"",null,null,null,null,null,null,null,null,null,null,null,null,null,null,null,null,null,null,null,127]
[230,129,null,"E23",178,0,null,null,null,null,null,null,null,null,null,null,null,null,122]
[231,129,34,"",50,"ZEYNEP ELA ÇELİK (ÇRM)",null,null,null,null,null,null,null,null,0,0,null,null,null,""]
[null,null,null,"",null,null,null,0,0,null,null,116,""]
[232,34,null,"",207,0]
[233,47,null,"",47,"ELA TOPRAK TOKATLI (KNY)",null,null,null,null,null,null,null,null,null,null,null,null,null,null,null,null,null,null,null,null,null,null,null,0,0]
[null,null,null,"",null,null,null,0,0,null,null,117,""]
[234,129,47,"",210,0,null,null,null,null,null,null,null,null,null,null,null,null,123,""]
[235,129,null,"E7",82,"BEREN NAZ ERGENÇ (SMS)",null,null,null,null,null,null,null,null,0,0,null,null,null,null,null,null,null,null,null,126]
[null,null,null,"",null,null,null,0,0,null,null,118,""]
[236,65,null,"",175,0]
[237,65,null,"",111,"ZELAL ÖZER (HKR)",null,null,null,null,null,null,null,null,null,null,null,null,null,null,null,0,0,null,null,null,""]
[null,null,null,"",null,null,null,0,0,null,null,119,""]
[238,129,null,"",146,0,null,null,null,null,null,null,null,null,null,null,null,null,124]
[239,129,18,"",18,"ESMA SULTAN SARI (SKR)",null,null,null,null,null,null,null,null,0,0,null,null,null,""]
[null,null,null,"",null,null,null,0,0,null,null,120,""]
[240,18,null,"",239,0]
[241,31,null,"",31,"EYLÜL YALÇINKAYA (KST)",null,null,null,null,null,null,null,null,null,null,null,null,null,null,null,null,null,null,null,null,null,null,null,null,null,null,null,""]
[null,null,null,"",null,null,null,0,0,null,null,121,""]
[242,129,31,"",226,0,null,null,null,null,null,null,null,null,null,null,null,null,125,""]
[243,129,null,"",98,"NEHİR HASPOLATLI (YLV)",null,null,null,null,null,null,null,null,0,0,null,null,null,null,null,null,null,null,null,127]
[null,null,null,"",null,null,null,0,0,null,null,122,""]
[244,65,null,"",159,0]
[245,65,null,"",95,"ESLEM BAYKUT (SMS)",null,null,null,null,null,null,null,null,null,null,null,null,null,null,null,0,0,null,null,null,""]
[null,null,null,"",null,null,null,0,0,null,null,123,"",null,null,null,null,null,null,null,null,null,null,null,null,null,null,null,null,null,null,null,128]
[246,129,null,"E15",162,0,null,null,null,null,null,null,null,null,null,null,null,null,126]
[247,129,50,"",34,"ECE MASAL KAYA (ADN)",null,null,null,null,null,null,null,null,0,0,null,null,null,""]
[null,null,null,"",null,null,null,0,0,null,null,124,""]
[248,50,null,"",223,0]
[249,63,999,"",63,"AYŞE YAREN KAŞKA (AMS)",null,null,null,null,null,null,null,null,null,null,null,null,null,null,null,null,null,null,null,null,null,null,null,0,0]
[null,null,null,"",null,null,null,0,0,null,null,125,""]
[250,129,999,"",194,0,null,null,null,null,null,null,null,null,null,null,null,null,127,""]
[251,129,999,"",66,"SİDELYA YILDIRIM (MĞL)",null,null,null,null,null,null,null,null,0,0,null,null,null,null,null,null,null,null,null,128]
[null,null,null,"",null,null,null,0,0,null,null,126,""]
[252,65,999,"",191,0]
[253,65,999,"",127,0,null,null,null,null,null,null,null,null,null,null,null,null,null,null,null,0,0,null,null,null,""]
[null,null,null,"",null,null,null,0,0,null,null,127,""]
[254,129,999,"",130,0,null,null,null,null,null,null,null,null,null,null,null,null,128]
[255,129,999,"",255,0,null,null,null,null,null,null,null,null,0,0,null,null,null,""]
[null,null,null,"",null,null,null,0,0,null,null,128,""]
[256,2,null,"",2,"ARMİN AYDIN (İST)"]
[]
[]
[1,1,0,null,1,"ELA SU YÖNTER (ANK)"]
[null,null,null,null,null,null,null,null,null,null,null,1,{"$f":"F390","v":"ELA SU YÖNTER (ANK)"}]
[2,65,1,"E64",999,"BYE",null,null,null,null,null,null,null,null,null,null,null,null,65,{"$f":"F390","v":"ELA SU YÖNTER (ANK)"}]
[3,65,33,"E32",999,"BYE",null,null,null,null,null,null,null,null,0,0,null,null,null,null,null,null,null,null,null,97]
[null,null,null,null,null,null,null,null,null,null,null,2,""]
[4,33,0,null,999,"BYE"]
[5,33,0,null,41,"UMAY ŞAHİN (İST)",null,null,null,null,null,null,null,null,null,null,null,null,null,null,null,"3",0,null,null,null,{"$f":"F390","v":"ELA SU YÖNTER (ANK)"}]
[null,null,null,null,null,null,null,0,3,null,null,3,"BURCU AL (KNY)",null,null,null,null,null,null,null,null,null,null,null,null,null,null,null,null,null,null,null,113]
[6,65,49,"E16",42,"BURCU AL (KNY)",null,null,null,null,null,null,null,null,null,null,null,null,66]
[7,65,17,"E48",43,"BEREN SU ZER (ÇRM)",null,null,null,null,null,null,null,null,3,2,null,null,null,"BURCU AL (KNY)"]
[null,null,null,null,null,null,null,1,3,null,null,4,"İLKİM EYLÜL YEKREK (MĞL)"]
[8,17,0,null,32,"İLKİM EYLÜL YEKREK (MĞL)"]
[9,17,0,null,17,"ZEYNEP KALKAN (HTY)",null,null,null,null,null,null,null,null,null,null,null,null,null,null,null,null,null,null,null,null,null,null,null,0,0]
[null,null,null,null,null,null,null,3,0,null,null,5,"ZEYNEP KALKAN (HTY)"]
[10,65,25,"E40",44,"ZEYNEP ELİF ÜNSAL (AMS)",null,null,null,null,null,null,null,null,null,null,null,null,67,"ZEYNEP KALKAN (HTY)"]
[11,65,57,"E8",45,"FERİDE MELİKE HAMAL (DNZ)",null,null,null,null,null,null,null,null,3,0,null,null,null,null,null,null,null,null,null,98]
[null,null,null,null,null,null,null,3,2,null,null,6,"FERİDE MELİKE HAMAL (DNZ)"]
[12,33,0,null,33,"NİHAN BERA KOÇER (NVŞ)"]
[13,33,0,null,46,"ZÜMRA KALKAN (AMS)",null,null,null,null,null,null,null,null,null,null,null,null,null,null,null,2,3,null,null,null,"NİSA ÜZÜMCÜ (BTM)"]
[null,null,null,null,null,null,null,1,3,null,null,7,"ELA TOPRAK TOKATLI (KNY)"]
[14,65,41,"E24",47,"ELA TOPRAK TOKATLI (KNY)",null,null,null,null,null,null,null,null,null,null,null,null,68]
[15,65,9,"E56",48,"ELİF NUR KOÇ (ÇRM)",null,null,null,null,null,null,null,null,0,3,null,null,null,"NİSA ÜZÜMCÜ (BTM)"]
[null,null,null,null,null,null,null,1,3,null,null,8,"NİSA ÜZÜMCÜ (BTM)"]
[16,9,0,null,16,"NİSA ÜZÜMCÜ (BTM)"]
[17,9,0,null,9,"ELİF DURU BECER (ÇRM)"]
[null,null,null,null,null,null,null,3,0,null,null,9,"ELİF DURU BECER (ÇRM)"]
[18,65,13,"E52",49,"ŞEVVAL ÖZDEMİR (İST)",null,null,null,null,null,null,null,null,null,null,null,null,69,"ELİF DURU BECER (ÇRM)"]
[19,65,45,"E20",124,"EBRAR TOZLU (AMS)",null,null,null,null,null,null,null,null,3,0,null,null,null,null,null,null,null,null,null,99]
[null,null,null,null,null,null,null,3,0,null,null,10,"EBRAR TOZLU (AMS)"]
[20,33,0,null,51,"ÖYKÜ DENİZ ERKOÇ (ÇRM)"]
[21,33,0,null,40,"EYLÜL ECE BECER (ÇRM)",null,null,null,null,null,null,null,null,null,null,null,null,null,null,null,3,0,null,null,null,"ELİF DURU BECER (ÇRM)"]
[null,null,null,null,null,null,null,0,3,null,null,11,"DEFNE ZEYNEP KELES (AMS)",null,null,null,null,null,null,null,null,null,null,null,null,null,null,null,null,null,null,null,114]
[22,65,61,"E4",108,"DEFNE ZEYNEP KELES (AMS)",null,null,null,null,null,null,null,null,null,null,null,null,70]
[23,65,29,"E36",53,"ARMİN ŞEKER (ÇRM)",null,null,null,null,null,null,null,null,0,3,null,null,null,"RANA ZEREN KÖSE (İST)"]
[null,null,null,null,null,null,null,0,3,null,null,12,"RANA ZEREN KÖSE (İST)"]
[24,17,0,null,24,"RANA ZEREN KÖSE (İST)"]
[25,17,0,null,25,"FEYZA KOÇER (KYS)",null,null,null,null,null,null,null,null,null,null,null,null,null,null,null,null,null,null,null,null,null,null,null,0,0]
[null,null,null,null,null,null,null,3,0,null,null,13,"FEYZA KOÇER (KYS)"]
[26,65,21,"E44",54,"TALİA VURAL (KRL)",null,null,null,null,null,null,null,null,null,null,null,null,71,"FEYZA KOÇER (KYS)"]
[27,65,53,"E12",55,"ASLI ATEŞ (DYB)",null,null,null,null,null,null,null,null,3,0,null,null,null,null,null,null,null,null,null,100]
[null,null,null,null,null,null,null,1,3,null,null,14,"ELİF ASYA TAVAN (KNY)"]
[28,33,0,null,56,"ELİF ASYA TAVAN (KNY)"]
[29,33,0,null,999,"BYE",null,null,null,null,null,null,null,null,null,null,null,null,null,null,null,0,3,null,null,null,"MEDİNE İREM TÜRKAN (BTM)"]
[null,null,null,null,null,null,null,null,null,null,null,15,""]
[30,65,37,"E28",999,"BYE",null,null,null,null,null,null,null,null,null,null,null,null,72]
[31,65,5,"E60",999,"BYE",null,null,null,null,null,null,null,null,0,0,null,null,null,"MEDİNE İREM TÜRKAN (BTM)"]
[null,null,null,null,null,null,null,null,null,null,null,16,"MEDİNE İREM TÜRKAN (BTM)"]
[32,5,0,null,8,"MEDİNE İREM TÜRKAN (BTM)"]
[33,5,0,null,5,"BELİNAY DAVUŞ (KST)"]
[null,null,null,null,null,null,null,null,null,null,null,17,"BELİNAY DAVUŞ (KST)"]
[34,65,7,"E58",999,"BYE",null,null,null,null,null,null,null,null,null,null,null,null,73,"BELİNAY DAVUŞ (KST)"]
[35,65,39,"E26",999,"BYE",null,null,null,null,null,null,null,null,0,0,null,null,null,null,null,null,null,null,null,101]
[null,null,null,null,null,null,null,null,null,null,null,18,""]
[36,33,0,null,999,"BYE"]
[37,33,0,null,57,"ELİF SU ERKOÇAK (ÇRM)",null,null,null,null,null,null,null,null,null,null,null,null,null,null,null,3,0,null,null,null,"BELİNAY DAVUŞ (KST)"]
[null,null,null,null,null,null,null,0,3,null,null,19,"FİRDEVS NUR BİNGÖL (YLV)",null,null,null,null,null,null,null,null,null,null,null,null,null,null,null,null,null,null,null,115]
[38,65,55,"E10",114,"FİRDEVS NUR BİNGÖL (YLV)",null,null,null,null,null,null,null,null,null,null,null,null,74]
[39,65,23,"E42",59,"ZEYNEP ÇAM (MĞL)",null,null,null,null,null,null,null,null,3,0,null,null,null,"FİRDEVS NUR BİNGÖL (YLV)"]
[null,null,null,null,null,null,null,3,0,null,null,20,"ZEYNEP ÇAM (MĞL)"]
[40,17,0,null,28,"ECRİN ATASEVER (MRD)"]
[41,17,0,null,21,"DURU YAVAŞCAOĞLU (YLV)",null,null,null,null,null,null,null,null,null,null,null,null,null,null,null,null,null,null,null,null,null,null,null,0,0]
[null,null,null,null,null,null,null,3,1,null,null,21,"DURU YAVAŞCAOĞLU (YLV)"]
[42,65,31,"E34",60,"ELVİN ŞİMAL BIÇAK (GRS)",null,null,null,null,null,null,null,null,null,null,null,null,75,"DURU YAVAŞCAOĞLU (YLV)"]
[43,65,63,"E2",106,"MİRA DİNÇ (ANK)",null,null,null,null,null,null,null,null,3,0,null,null,null,null,null,null,null,null,null,102]
[null,null,null,null,null,null,null,3,0,null,null,22,"MİRA DİNÇ (ANK)"]
[44,33,0,null,37,"DEFNE TURAN (YLV)"]
[45,33,0,null,62,"ÖZÜM MİRAY ÖZ (KRK)",null,null,null,null,null,null,null,null,null,null,null,null,null,null,null,1,3,null,null,null,"BUĞLEM SENA ÇALIŞKAN (SKR)"]
[null,null,null,null,null,null,null,0,3,null,null,23,"LİVA ÇEVİK (KKTC)"]
[46,65,47,"E18",122,"LİVA ÇEVİK (KKTC)",null,null,null,null,null,null,null,null,null,null,null,null,76]
[47,65,15,"E50",64,"ÖYKÜ KUBİLAY (KRL)",null,null,null,null,null,null,null,null,0,3,null,null,null,"BUĞLEM SENA ÇALIŞKAN (SKR)"]
[null,null,null,null,null,null,null,0,3,null,null,24,"BUĞLEM SENA ÇALIŞKAN (SKR)"]
[48,9,0,null,12,"BUĞLEM SENA ÇALIŞKAN (SKR)"]
[49,9,0,null,13,"CEYDA DÖKMECİ (KNY)"]
[null,null,null,null,null,null,null,3,1,null,null,25,"CEYDA DÖKMECİ (KNY)"]
[50,65,11,"E54",65,"DİLARA AYGÖRMEZ (ANK)",null,null,null,null,null,null,null,null,null,null,null,null,77,"CEYDA DÖKMECİ (KNY)"]
[51,65,43,"E22",126,"IRMAK PİŞKİNOĞLU (KRL)",null,null,null,null,null,null,null,null,3,2,null,null,null,null,null,null,null,null,null,103]
[null,null,null,null,null,null,null,3,0,null,null,26,"IRMAK PİŞKİNOĞLU (KRL)"]
[52,33,0,null,67,"ÖMÜR GÜVEN (BRS)"]
[53,33,0,null,36,"HAVİN MUTLU (MRD)",null,null,null,null,null,null,null,null,null,null,null,null,null,null,null,3,1,null,null,null,"CEYDA DÖKMECİ (KNY)"]
[null,null,null,null,null,null,null,3,2,null,null,27,"HAVİN MUTLU (MRD)",null,null,null,null,null,null,null,null,null,null,null,null,null,null,null,null,null,null,null,116]
[54,65,59,"E6",68,"IRMAK BURAKMAK (DYB)",null,null,null,null,null,null,null,null,null,null,null,null,78]
[55,65,27,"E38",69,"MELİSA ALPAR (BTM)",null,null,null,null,null,null,null,null,0,3,null,null,null,"HAFSA YURTERİ (İZM)"]
[null,null,null,null,null,null,null,0,3,null,null,28,"HAFSA YURTERİ (İZM)"]
[56,17,0,null,20,"HAFSA YURTERİ (İZM)"]
[57,17,0,null,29,"ATİYE ÖZER (ADN)",null,null,null,null,null,null,null,null,null,null,null,null,null,null,null,null,null,null,null,null,null,null,null,0,0]
[null,null,null,null,null,null,null,3,0,null,null,29,"ATİYE ÖZER (ADN)"]
[58,65,19,"E46",70,"ZEHRA NİL DEMİRCAN (İST)",null,null,null,null,null,null,null,null,null,null,null,null,79,"ATİYE ÖZER (ADN)"]
[59,65,51,"E14",118,"ECRİN FİDAN (BRS)",null,null,null,null,null,null,null,null,3,0,null,null,null,null,null,null,null,null,null,104]
[null,null,null,null,null,null,null,3,0,null,null,30,"ECRİN FİDAN (BRS)"]
[60,33,0,null,72,"BERRA DEMİR (İST)"]
[61,33,0,null,999,"BYE",null,null,null,null,null,null,null,null,null,null,null,null,null,null,null,0,3,null,null,null,"DURU BERİL TOK (YLV)"]
[null,null,null,null,null,null,null,null,null,null,null,31,""]
[62,65,35,"E30",999,"BYE",null,null,null,null,null,null,null,null,null,null,null,null,80]
[63,65,3,"E62",999,"BYE",null,null,null,null,null,null,null,null,0,0,null,null,null,"DURU BERİL TOK (YLV)"]
[null,null,null,null,null,null,null,null,null,null,null,32,"DURU BERİL TOK (YLV)"]
[64,3,0,null,4,"DURU BERİL TOK (YLV)"]
[65,3,0,null,3,"EMİNE AYDINAY (BRS)"]
[null,null,null,null,null,null,null,null,null,null,null,33,"EMİNE AYDINAY (BRS)"]
[66,65,4,"E61",999,"BYE",null,null,null,null,null,null,null,null,null,null,null,null,81,"EMİNE AYDINAY (BRS)"]
[67,65,36,"E29",999,"BYE",null,null,null,null,null,null,null,null,0,0,null,null,null,null,null,null,null,null,null,105]
[null,null,null,null,null,null,null,null,null,null,null,34,""]
[68,33,0,null,999,"BYE"]
[69,33,0,null,73,"AYÇA SU DÖŞ (ADN)",null,null,null,null,null,null,null,null,null,null,null,null,null,null,null,3,0,null,null,null,"EMİNE AYDINAY (BRS)"]
[null,null,null,null,null,null,null,0,3,null,null,35,"CEREN BUDAK (ADN)",null,null,null,null,null,null,null,null,null,null,null,null,null,null,null,null,null,null,null,117]
[70,65,52,"E13",74,"CEREN BUDAK (ADN)",null,null,null,null,null,null,null,null,null,null,null,null,82]
[71,65,20,"E45",75,"BERAY ZEYNEP ÇALIŞKAN (SKR)",null,null,null,null,null,null,null,null,3,0,null,null,null,"CEREN BUDAK (ADN)"]
[null,null,null,null,null,null,null,3,0,null,null,36,"BERAY ZEYNEP ÇALIŞKAN (SKR)"]
[72,17,0,null,30,"ASMİN YAĞMAHAN (BTM)"]
[73,17,0,null,19,"ASİYE TUĞÇE KENAR (KNY)",null,null,null,null,null,null,null,null,null,null,null,null,null,null,null,null,null,null,null,null,null,null,null,0,0]
[null,null,null,null,null,null,null,3,2,null,null,37,"ASİYE TUĞÇE KENAR (KNY)"]
[74,65,28,"E37",74,"CEREN BUDAK (ADN)",null,null,null,null,null,null,null,null,null,null,null,null,83,"ASİYE TUĞÇE KENAR (KNY)"]
[75,65,60,"E5",109,"ELİS ŞAHAN (İST)",null,null,null,null,null,null,null,null,3,2,null,null,null,null,null,null,null,null,null,106]
[null,null,null,null,null,null,null,0,3,null,null,38,"ZEYNEP ÖZÇELİK (İST)"]
[76,33,0,null,35,"ZEYNEP ÖZÇELİK (İST)"]
[77,33,0,null,78,"ELİF ALAGÖZ (ORD)",null,null,null,null,null,null,null,null,null,null,null,null,null,null,null,2,3,null,null,null,"AYŞE NAR ALPTEKİN (İST)"]
[null,null,null,null,null,null,null,0,3,null,null,39,"GİZEM ÇİĞİL (ADN)"]
[78,65,44,"E21",79,"GİZEM ÇİĞİL (ADN)",null,null,null,null,null,null,null,null,null,null,null,null,84]
[79,65,12,"E53",80,"EDA ALAŞ (BTM)",null,null,null,null,null,null,null,null,0,3,null,null,null,"AYŞE NAR ALPTEKİN (İST)"]
[null,null,null,null,null,null,null,0,3,null,null,40,"AYŞE NAR ALPTEKİN (İST)"]
[80,9,0,null,14,"AYŞE NAR ALPTEKİN (İST)"]
[81,9,0,null,11,"DERİN MÜLAZIM (ÇRM)"]
[null,null,null,null,null,null,null,3,0,null,null,41,"DERİN MÜLAZIM (ÇRM)"]
[82,65,16,"E49",81,"LEYLANUR ATASEVER (MRD)",null,null,null,null,null,null,null,null,null,null,null,null,85,"DERİN MÜLAZIM (ÇRM)"]
[83,65,48,"E17",121,"AZRA USTA (YLV)",null,null,null,null,null,null,null,null,3,1,null,null,null,null,null,null,null,null,null,107]
[null,null,null,null,null,null,null,3,0,null,null,42,"AZRA USTA (YLV)"]
[84,33,0,null,83,"SARA AĞILDAY (MRD)"]
[85,33,0,null,38,"BEREN BOZKURT (ADN)",null,null,null,null,null,null,null,null,null,null,null,null,null,null,null,0,3,null,null,null,"EDA MORAL (İST)"]
[null,null,null,null,null,null,null,0,3,null,null,43,"HAYRİYE EDA KOCADAŞ (İST)",null,null,null,null,null,null,null,null,null,null,null,null,null,null,null,null,null,null,null,118]
[86,65,64,"E1",84,"HAYRİYE EDA KOCADAŞ (İST)",null,null,null,null,null,null,null,null,null,null,null,null,86]
[87,65,32,"E33",85,"DEFNE ANIK (SNP)",null,null,null,null,null,null,null,null,1,3,null,null,null,"EDA MORAL (İST)"]
[null,null,null,null,null,null,null,0,3,null,null,44,"EDA MORAL (İST)"]
[88,17,0,null,22,"EDA MORAL (İST)"]
[89,17,0,null,27,"ESMA KAMER SÜT (KYS)",null,null,null,null,null,null,null,null,null,null,null,null,null,null,null,null,null,null,null,null,null,null,null,0,0]
[null,null,null,null,null,null,null,0,3,null,null,45,"NİSA GÜN (AMS)"]
[90,65,24,"E41",89,"NİSA GÜN (AMS)",null,null,null,null,null,null,null,null,null,null,null,null,87,"NİSA GÜN (AMS)"]
[91,65,56,"E9",87,"EYLÜL DEMİRTAŞ (MĞL)",null,null,null,null,null,null,null,null,3,0,null,null,null,null,null,null,null,null,null,108]
[null,null,null,null,null,null,null,0,3,null,null,46,"ECRİN KAHRAMAN (KYS)"]
[92,33,0,null,88,"ECRİN KAHRAMAN (KYS)"]
[93,33,0,null,999,"BYE",null,null,null,null,null,null,null,null,null,null,null,null,null,null,null,0,3,null,null,null,"ZEYNEP DURAN (İST)"]
[null,null,null,null,null,null,null,null,null,null,null,47,""]
[94,65,40,"E25",999,"BYE",null,null,null,null,null,null,null,null,null,null,null,null,88]
[95,65,8,"E57",999,"BYE",null,null,null,null,null,null,null,null,0,0,null,null,null,"ZEYNEP DURAN (İST)"]
[null,null,null,null,null,null,null,null,null,null,null,48,"ZEYNEP DURAN (İST)"]
[96,5,0,null,6,"ZEYNEP DURAN (İST)"]
[97,5,0,null,7,"AYBİGE FERİDE ÜSTÜNDAĞ (MĞL)"]
[null,null,null,null,null,null,null,null,null,null,null,49,"AYBİGE FERİDE ÜSTÜNDAĞ (MĞL)"]
[98,65,6,"E59",999,"BYE",null,null,null,null,null,null,null,null,null,null,null,null,89,"AYBİGE FERİDE ÜSTÜNDAĞ (MĞL)"]
[99,65,38,"E27",999,"BYE",null,null,null,null,null,null,null,null,0,0,null,null,null,null,null,null,null,null,null,109]
[null,null,null,null,null,null,null,null,null,null,null,50,""]
[100,33,0,null,999,"BYE"]
[101,33,0,null,86,"DENİZ BERRA BAYRAM (KYS)",null,null,null,null,null,null,null,null,null,null,null,null,null,null,null,3,2,null,null,null,"AYBİGE FERİDE ÜSTÜNDAĞ (MĞL)"]
[null,null,null,null,null,null,null,1,3,null,null,51,"MERVE TUŞEK (DYB)",null,null,null,null,null,null,null,null,null,null,null,null,null,null,null,null,null,null,null,119]
[102,65,54,"E11",115,"MERVE TUŞEK (DYB)",null,null,null,null,null,null,null,null,null,null,null,null,90]
[103,65,22,"E43",93,"YAĞMUR ALPAR (BTM)",null,null,null,null,null,null,null,null,3,0,null,null,null,"MERVE TUŞEK (DYB)"]
[null,null,null,null,null,null,null,0,3,null,null,52,"İPEK UĞUR (İST)"]
[104,17,0,null,26,"İPEK UĞUR (İST)"]
[105,17,0,null,23,"BURCU ASEL TUNCER (ÇRM)",null,null,null,null,null,null,null,null,null,null,null,null,null,null,null,null,null,null,null,null,null,null,null,0,0]
[null,null,null,null,null,null,null,3,0,null,null,53,"BURCU ASEL TUNCER (ÇRM)"]
[106,65,30,"E35",92,"ASYA BOLAT (AMS)",null,null,null,null,null,null,null,null,null,null,null,null,91,"BURCU ASEL TUNCER (ÇRM)"]
[107,65,62,"E3",91,"ADA GARİP (İST)",null,null,null,null,null,null,null,null,3,0,null,null,null,null,null,null,null,null,null,110]
[null,null,null,null,null,null,null,0,3,null,null,54,"HAFSA TORBALI (KNY)"]
[108,33,0,null,39,"HAFSA TORBALI (KNY)"]
[109,33,0,null,94,"ÖZÜM ÖZEL (KKTC)",null,null,null,null,null,null,null,null,null,null,null,null,null,null,null,0,3,null,null,null,"ŞEVVAL ALAŞ (BTM)"]
[null,null,null,null,null,null,null,3,0,null,null,55,"ÖZÜM ÖZEL (KKTC)"]
[110,65,46,"E19",95,"ESLEM BAYKUT (SMS)",null,null,null,null,null,null,null,null,null,null,null,null,92]
[111,65,14,"E51",96,"ARNİSA ŞEKER (ÇRM)",null,null,null,null,null,null,null,null,2,3,null,null,null,"ŞEVVAL ALAŞ (BTM)"]
[null,null,null,null,null,null,null,0,3,null,null,56,"ŞEVVAL ALAŞ (BTM)"]
[112,9,0,null,10,"ŞEVVAL ALAŞ (BTM)"]
[113,9,0,null,15,"BERRA BAHTİYAR (SKR)"]
[null,null,null,null,null,null,null,3,0,null,null,57,"BERRA BAHTİYAR (SKR)"]
[114,65,10,"E55",97,"ECE NAZ AÇIKGÖZ (KRL)",null,null,null,null,null,null,null,null,null,null,null,null,93,"BERRA BAHTİYAR (SKR)"]
[115,65,42,"E23",98,"NEHİR HASPOLATLI (YLV)",null,null,null,null,null,null,null,null,3,0,null,null,null,null,null,null,null,null,null,111]
[null,null,null,null,null,null,null,0,3,null,null,58,"AHSEN BEYZA BENER (İST)"]
[116,33,0,null,99,"AHSEN BEYZA BENER (İST)"]
[117,33,0,null,34,"ECE MASAL KAYA (ADN)",null,null,null,null,null,null,null,null,null,null,null,null,null,null,null,1,3,null,null,null,"ESMA SULTAN SARI (SKR)"]
[null,null,null,null,null,null,null,1,3,null,null,59,"MASAL ÇAYIR (SNP)",null,null,null,null,null,null,null,null,null,null,null,null,null,null,null,null,null,null,null,120]
[118,65,58,"E7",100,"MASAL ÇAYIR (SNP)",null,null,null,null,null,null,null,null,null,null,null,null,94]
[119,65,26,"E39",101,"ZEHRA ÖZBİLGİ (BYB)",null,null,null,null,null,null,null,null,0,3,null,null,null,"ESMA SULTAN SARI (SKR)"]
[null,null,null,null,null,null,null,0,3,null,null,60,"ESMA SULTAN SARI (SKR)"]
[120,17,0,null,18,"ESMA SULTAN SARI (SKR)"]
[121,17,0,null,31,"EYLÜL YALÇINKAYA (KST)",null,null,null,null,null,null,null,null,null,null,null,null,null,null,null,null,null,null,null,null,null,null,null,0,0]
[null,null,null,null,null,null,null,0,3,null,null,61,"ZEYNEP POLAT (GZT)"]
[122,65,18,"E47",102,"ZEYNEP POLAT (GZT)",null,null,null,null,null,null,null,null,null,null,null,null,95,""]
[123,65,50,"E15",119,"SÜEDA SİVAS (AMS)",null,null,null,null,null,null,null,null,0,0,null,null,null,null,null,null,null,null,null,112]
[null,null,null,null,null,null,null,3,0,null,null,62,"SÜEDA SİVAS (AMS)"]
[124,33,0,null,104,"BERİTAN ERSÖZ (HKR)"]
[125,33,0,null,999,"BYE",null,null,null,null,null,null,null,null,null,null,null,null,null,null,null,0,3,null,null,null,"ARMİN AYDIN (İST)"]
[null,null,null,null,null,null,null,null,null,null,null,63,""]
[126,65,34,"E31",999,"BYE",null,null,null,null,null,null,null,null,null,null,null,null,96]
[127,65,2,"E63",999,"BYE",null,null,null,null,null,null,null,null,0,0,null,null,null,"ARMİN AYDIN (İST)"]
[null,null,null,null,null,null,null,null,null,null,null,64,"ARMİN AYDIN (İST)"]
[128,2,0,null,2,"ARMİN AYDIN (İST)"]
[]
[]
[1,1,0," ",1,"ELA SU YÖNTER (ANK)"]
[null,null,null,null,null,null,null,3,0,null,null,1,"ELA SU YÖNTER (ANK)"]
[2,33,1,"E32",999,"BYE",null,null,null,null,null,null,null,null,null,null,null,null,33,""]
[3,33,17,"E16",48,"ELİF NUR KOÇ (ÇRM)",null,null,null,null,null,null,null,null,0,0,null,null,null,null,null,null,null,null,null,49]
[null,null,null,"",null,null,null,0,0,null,null,2,""]
[4,17,0,"",32,"İLKİM EYLÜL YEKREK (MĞL)"]
[5,17,0,"",17,"ZEYNEP KALKAN (HTY)",null,null,null,null,null,null,null,null,null,null,null,null,null,null,null,0,0,null,null,null,""]
[null,null,null,"",null,null,null,0,0,null,null,3,""]
[6,33,25,"E8",33,"NİHAN BERA KOÇER (NVŞ)",null,null,null,null,null,null,null,null,null,null,null,null,34]
[7,33,9,"E24",49,"ŞEVVAL ÖZDEMİR (İST)",null,null,null,null,null,null,null,null,0,0,null,null,null,""]
[null,null,null,"",null,null,null,0,0,null,null,4,""]
[8,9," ","",16,"NİSA ÜZÜMCÜ (BTM)"]
[9,9,0,"",9,"ELİF DURU BECER (ÇRM)"]
[null,null,null,"",null,null,null,0,0,null,null,5,""]
[10,33,13,"E20",56,"ELİF ASYA TAVAN (KNY)",null,null,null,null,null,null,null,null,null,null,null,null,35,""]
[11,33,29,"E4",40,"EYLÜL ECE BECER (ÇRM)",null,null,null,null,null,null,null,null,0,0,null,null,null,null,null,null,null,null,null,50]
[null,null,null,"",null,null,null,0,0,null,null,6,""]
[12,17,0,"",24,"RANA ZEREN KÖSE (İST)"]
[13,17,0,"",25,"FEYZA KOÇER (KYS)",null,null,null,null,null,null,null,null,null,null,null,null,null,null,null,0,0,null,null,null,""]
[null,null,null,"",null,null,null,0,0,null,null,7,""]
[14,33,21,"E12",41,"UMAY ŞAHİN (İST)",null,null,null,null,null,null,null,null,null,null,null,null,36]
[15,33,5,"E28",999,"BYE",null,null,null,null,null,null,null,null,0,0,null,null,null,""]
[null,null,null,"",null,null,null,0,3,null,null,8,"MEDİNE İREM TÜRKAN (BTM)"]
[16,5," ","",8,"MEDİNE İREM TÜRKAN (BTM)"]
[17,5,0,"",5,"BELİNAY DAVUŞ (KST)"]
[null,null,null,"",null,null,null,3,0,null,null,9,"BELİNAY DAVUŞ (KST)"]
[18,33,7,"E26",999,"BYE",null,null,null,null,null,null,null,null,null,null,null,null,37,""]
[19,33,23,"E10",44,"ZEYNEP ELİF ÜNSAL (AMS)",null,null,null,null,null,null,null,null,0,0,null,null,null,null,null,null,null,null,null,51]
[null,null,null,"",null,null,null,0,0,null,null,10,""]
[20,17,0,"",28,"ECRİN ATASEVER (MRD)"]
[21,17,0,"",21,"DURU YAVAŞCAOĞLU (YLV)",null,null,null,null,null,null,null,null,null,null,null,null,null,null,null,0,0,null,null,null,""]
[null,null,null,"",null,null,null,0,0,null,null,11,""]
[22,33,31,"E2",37,"DEFNE TURAN (YLV)",null,null,null,null,null,null,null,null,null,null,null,null,38]
[23,33,15,"E18",53,"ARMİN ŞEKER (ÇRM)",null,null,null,null,null,null,null,null,0,0,null,null,null,""]
[null,null,null,"",null,null,null,0,0,null,null,12,""]
[24,9," ","",12,"BUĞLEM SENA ÇALIŞKAN (SKR)"]
[25,9,0,"",13,"CEYDA DÖKMECİ (KNY)"]
[null,null,null,"",null,null,null,0,0,null,null,13,""]
[26,33,11,"E22",52,"İPEK ÖZTÜRK (ÇRM)",null,null,null,null,null,null,null,null,null,null,null,null,39,""]
[27,33,27,"E6",36,"HAVİN MUTLU (MRD)",null,null,null,null,null,null,null,null,0,0,null,null,null,null,null,null,null,null,null,52]
[null,null,null,"",null,null,null,0,0,null,null,14,""]
[28,17,0,"",20,"HAFSA YURTERİ (İZM)"]
[29,17,0,"",29,"ATİYE ÖZER (ADN)",null,null,null,null,null,null,null,null,null,null,null,null,null,null,null,0,0,null,null,null,""]
[null,null,null,"",null,null,null,0,0,null,null,15,""]
[30,33,19,"E14",45,"FERİDE MELİKE HAMAL (DNZ)",null,null,null,null,null,null,null,null,null,null,null,null,40]
[31,33,3,"E30",999,"BYE",null,null,null,null,null,null,null,null,0,0,null,null,null,""]
[null,null,null,"",null,null,null,0,3,null,null,16,"DURU BERİL TOK (YLV)"]
[32,3," ","",4,"DURU BERİL TOK (YLV)"]
[33,3,0,"",3,"EMİNE AYDINAY (BRS)"]
[null,null,null,"",null,null,null,3,0,null,null,17,"EMİNE AYDINAY (BRS)"]
[34,33,4,"E29",999,"BYE",null,null,null,null,null,null,null,null,null,null,null,null,41,""]
[35,33,20,"E13",46,"ZÜMRA KALKAN (AMS)",null,null,null,null,null,null,null,null,0,0,null,null,null,null,null,null,null,null,null,53]
[null,null,null,"",null,null,null,0,0,null,null,18,""]
[36,17,0,"",30,"ASMİN YAĞMAHAN (BTM)"]
[37,17,0,"",19,"ASİYE TUĞÇE KENAR (KNY)",null,null,null,null,null,null,null,null,null,null,null,null,null,null,null,0,0,null,null,null,""]
[null,null,null,"",null,null,null,0,0,null,null,19,""]
[38,33,28,"E5",35,"ZEYNEP ÖZÇELİK (İST)",null,null,null,null,null,null,null,null,null,null,null,null,42]
[39,33,12,"E21",51,"ÖYKÜ DENİZ ERKOÇ (ÇRM)",null,null,null,null,null,null,null,null,0,0,null,null,null,""]
[null,null,null,"",null,null,null,0,0,null,null,20,""]
[40,9," ","",14,"AYŞE NAR ALPTEKİN (İST)"]
[41,9,0,"",11,"DERİN MÜLAZIM (ÇRM)"]
[null,null,null,"",null,null,null,0,0,null,null,21,""]
[42,33,16,"E17",54,"TALİA VURAL (KRL)",null,null,null,null,null,null,null,null,null,null,null,null,43,""]
[43,33,0,"E1",38,"BEREN BOZKURT (ADN)",null,null,null,null,null,null,null,null,0,0,null,null,null,null,null,null,null,null,null,54]
[null,null,null,"",null,null,null,0,0,null,null,22,""]
[44,17,0,"",22,"EDA MORAL (İST)"]
[45,17,0,"",27,"ESMA KAMER SÜT (KYS)",null,null,null,null,null,null,null,null,null,null,null,null,null,null,null,0,0,null,null,null,""]
[null,null,null,"",null,null,null,0,0,null,null,23,""]
[46,33,24,"E9",43,"BEREN SU ZER (ÇRM)",null,null,null,null,null,null,null,null,null,null,null,null,44]
[47,33,8,"E25",999,"BYE",null,null,null,null,null,null,null,null,0,0,null,null,null,""]
[null,null,null,"",null,null,null,0,3,null,null,24,"ZEYNEP DURAN (İST)"]
[48,5," ","",6,"ZEYNEP DURAN (İST)"]
[49,5,0,"",7,"AYBİGE FERİDE ÜSTÜNDAĞ (MĞL)"]
[null,null,null,"",null,null,null,3,0,null,null,25,"AYBİGE FERİDE ÜSTÜNDAĞ (MĞL)"]
[50,33,6,"E27",999,"BYE",null,null,null,null,null,null,null,null,null,null,null,null,45,""]
[51,33,22,"E11",42,"BURCU AL (KNY)",null,null,null,null,null,null,null,null,0,0,null,null,null,null,null,null,null,null,null,55]
[null,null,null,"",null,null,null,0,0,null,null,26,""]
[52,17,0,"",26,"İPEK UĞUR (İST)"]
[53,17,0,"",23,"BURCU ASEL TUNCER (ÇRM)",null,null,null,null,null,null,null,null,null,null,null,null,null,null,null,0,0,null,null,null,""]
[null,null,null,"",null,null,null,0,0,null,null,27,""]
[54,33,14,"E3",39,"HAFSA TORBALI (KNY)",null,null,null,null,null,null,null,null,null,null,null,null,46]
[55,33,8,"E19",55,"ASLI ATEŞ (DYB)",null,null,null,null,null,null,null,null,0,0,null,null,null,""]
[null,null,null,"",null,null,null,0,0,null,null,28,""]
[56,9," ","",10,"ŞEVVAL ALAŞ (BTM)"]
[57,9,0,"",15,"BERRA BAHTİYAR (SKR)"]
[null,null,null,"",null,null,null,0,0,null,null,29,""]
[58,33,10,"E23",50,"ZEYNEP ELA ÇELİK (ÇRM)",null,null,null,null,null,null,null,null,null,null,null,null,47,""]
[59,33,26,"E7",34,"ECE MASAL KAYA (ADN)",null,null,null,null,null,null,null,null,0,0,null,null,null,null,null,null,null,null,null,56]
[null,null,null,"",null,null,null,0,0,null,null,30,""]
[60,17,0,"",18,"ESMA SULTAN SARI (SKR)"]
[61,17,0,"",31,"EYLÜL YALÇINKAYA (KST)",null,null,null,null,null,null,null,null,null,null,null,null,null,null,null,0,0,null,null,null,""]
[null,null,null,"",null,null,null,0,0,null,null,31,""]
[62,33,18,"E15",47,"ELA TOPRAK TOKATLI (KNY)",null,null,null,null,null,null,null,null,null,null,null,null,48]
[63,33,2,"E31",999,"BYE",null,null,null,null,null,null,null,null,0,0,null,null,null,""]
[null,null,null,null,null,null,null,0,3,null,null,32,"ARMİN AYDIN (İST)"]
[64,2," "," ",2,"ARMİN AYDIN (İST)"]

{"sheet":"Ana Tablo","index":5,"n_rows":98,"n_cols":79,"rows_kept":98,"cut":false,"hidden":false,"merged":[[4,8,4,14],[5,1,5,7],[6,1,6,7],[6,29,6,35],[7,8,7,14],[0,1,0,7],[1,8,1,14],[2,1,2,7],[3,1,3,7],[3,15,3,21],[0,24,4,50],[13,8,13,14],[14,1,14,7],[15,1,15,7],[15,15,15,21],[16,8,16,14],[8,1,8,7],[8,15,8,21],[9,1,9,7],[10,8,10,14],[11,1,11,7],[12,1,12,7],[21,1,21,7],[22,8,22,14],[23,1,23,7],[24,1,24,7],[24,64,24,70],[17,1,17,7],[17,29,17,35],[18,1,18,7],[18,22,18,28],[19,8,19,14],[20,1,20,7],[20,15,20,21],[30,1,30,7],[31,8,31,14],[31,29,31,35],[32,1,32,7],[32,15,32,21],[33,1,33,7],[25,8,25,14],[26,1,26,7],[27,1,27,7],[27,15,27,21],[28,8,28,14],[29,1,29,7],[39,1,39,7],[39,15,39,21],[40,8,40,14],[41,1,41,7],[42,1,42,7],[42,29,42,35],[34,8,34,14],[35,1,35,7],[36,1,36,7],[37,8,37,14],[38,1,38,7],[49,15,49,21],[50,8,50,14],[50,22,50,28],[50,36,50,42],[43,8,43,14],[44,1,44,7],[44,15,44,21],[45,1,45,7],[46,8,46,14],[47,1,47,7],[55,15,55,21],[56,8,56,14],[56,29,56,35],[56,71,56,77],[57,15,57,21],[51,15,51,21],[51,50,51,56],[52,8,52,14],[52,29,52,35],[53,15,53,21],[54,8,54,14],[54,22,54,28],[54,43,54,49],[61,15,61,21],[62,8,62,14],[62,22,62,28],[62,64,62,70],[63,15,63,21],[58,8,58,14],[58,22,58,28],[58,36,58,42],[59,15,59,21],[60,8,60,14],[60,29,60,35],[67,15,67,21],[68,8,68,14],[68,29,68,35],[68,50,68,56],[69,15,69,21],[70,8,70,14],[70,22,70,28],[64,8,64,14],[64,29,64,35],[64,43,64,49],[65,15,65,21],[66,8,66,14],[66,22,66,28],[66,36,66,42],[74,8,74,14],[74,22,74,28],[74,36,74,42],[74,57,74,63],[75,15,75,21],[75,50,75,56],[70,57,70,63],[71,15,71,21],[71,43,71,49],[72,8,72,14],[72,29,72,35],[73,15,73,21],[73,50,73,56],[79,15,79,21],[79,43,79,49],[80,8,80,14],[80,36,80,42],[80,50,80,56],[81,43,81,49],[76,8,76,14],[76,29,76,35],[76,57,76,63],[77,15,77,21],[77,43,77,49],[78,8,78,14],[78,22,78,28],[78,50,78,56],[97,43,97,49],[90,29,90,35],[91,29,91,35],[91,43,91,49],[92,36,92,42],[93,29,93,35],[93,43,93,49],[86,43,86,49],[48,29,48,35],[48,43,48,49],[88,29,88,35],[88,43,88,49],[89,36,89,42],[82,36,82,42],[83,36,83,42],[84,43,84,49],[85,36,85,42],[94,36,94,42],[95,43,95,49],[96,36,96,42],[87,50,87,56],[89,50,89,56],[83,50,83,56],[85,50,85,56],[60,57,60,63],[54,64,54,70],[48,57,48,63],[38,71,38,77],[37,50,37,56],[12,50,12,56]]}
[1,"ELA SU YÖNTER (ANK)",null,null,null,null,null,null,null,null,null,null,null,null,null,null,null,null,null,null,null,null,null,null,"TÜRKİYE MASA TENİSİ FEDERASYONU\nİsmail Eren ALICI Küçükler Ferdi-Takım Türkiye Şampiyonası                                                                                                                                                                                          TEK KIZ [ 09-13 Nisan 2025 ÇORUM ] [ Ana Tablo ]"]
[null,null,null,3,0,"Y1",null,1,"ELA SU YÖNTER (ANK)"]
[2,"BURCU AL (KNY)",null,null,null,null,null,null,null,null,null,null,null,null,17]
[3,"ZEYNEP KALKAN (HTY)",null,null,null,null,null,null,null,null,3,0,"Y17",null,null,"ELA SU YÖNTER (ANK)"]
[null,null,null,2,3,"Y2",null,2,"NİSA ÜZÜMCÜ (BTM)",null,null,null,null,null,null,null,null,null,null,null,null,33]
[4,"NİSA ÜZÜMCÜ (BTM)"]
[5,"ELİF DURU BECER (ÇRM)",null,null,null,null,null,null,null,null,null,null,null,null,null,null,null,3,0,"Y25",null,null,null,null,null,null,null,null,null,"ELA SU YÖNTER (ANK)"]
[null,null,null,3,0,"Y3",null,3,"ELİF DURU BECER (ÇRM)",null,null,null,null,null,null,null,null,null,null,null,null,null,null,null,null,null,null,null,null,null,null,null,null,null,null,49]
[6,"RANA ZEREN KÖSE (İST)",null,null,null,null,null,null,null,null,null,null,null,null,18,"ELİF DURU BECER (ÇRM)"]
[7,"FEYZA KOÇER (KYS)",null,null,null,null,null,null,null,null,3,2,"Y18"]
[null,null,null,0,3,"Y4",null,4,"MEDİNE İREM TÜRKAN (BTM)"]
[8,"MEDİNE İREM TÜRKAN (BTM)"]
[9,"BELİNAY DAVUŞ (KST)",null,null,null,null,null,null,null,null,null,null,null,null,null,null,null,null,null,null,null,null,null,null,null,null,null,null,null,null,null,3,1,"Y29",null,null,null,null,null,null,null,null,null,null,null,null,null,null,null,null,"ELA SU YÖNTER (ANK)"]
[null,null,null,3,0,"Y5",null,5,"BELİNAY DAVUŞ (KST)",null,null,null,null,null,null,null,null,null,null,null,null,null,null,null,null,null,null,null,null,null,null,null,null,null,null,null,null,null,null,null,null,null,null,null,null,null,null,null,null,null,null,null,null,null,null,null,68]
[10,"FİRDEVS NUR BİNGÖL (YLV)",null,null,null,null,null,null,null,null,null,null,null,null,19]
[11,"DURU YAVAŞCAOĞLU (YLV)",null,null,null,null,null,null,null,null,3,0,"Y19",null,null,"BELİNAY DAVUŞ (KST)"]
[null,null,null,1,3,"Y6",null,6,"BUĞLEM SENA ÇALIŞKAN (SKR)",null,null,null,null,null,null,null,null,null,null,null,null,34]
[12,"BUĞLEM SENA ÇALIŞKAN (SKR)",null,null,null,null,null,null,null,null,null,null,null,null,null,null,null,null,null,null,null,null,null,null,null,null,null,null,null,"DURU BERİL TOK (YLV)"]
[13,"CEYDA DÖKMECİ (KNY)",null,null,null,null,null,null,null,null,null,null,null,null,null,null,null,0,3,"Y26"]
[null,null,null,3,1,"Y7",null,7,"CEYDA DÖKMECİ (KNY)"]
[14,"HAFSA YURTERİ (İZM)",null,null,null,null,null,null,null,null,null,null,null,null,20,"DURU BERİL TOK (YLV)"]
[15,"ATİYE ÖZER (ADN)",null,null,null,null,null,null,null,null,0,3,"Y20"]
[null,null,null,0,3,"Y8",null,8,"DURU BERİL TOK (YLV)"]
[16,"DURU BERİL TOK (YLV)"]
[17,"EMİNE AYDINAY (BRS)",null,null,null,null,null,null,null,null,null,null,null,null,null,"CEYDA DÖKMECİ (KNY)",null,null,null,null,null,null,null,null,null,null,null,null,null,null,null,null,null,null,null,null,null,null,null,null,null,null,null,null,null,null,null,null,null,null,null,null,3,0,"Y31",null,null,null,null,null,null,null,null,null,"ELA SU YÖNTER (ANK)"]
[null,null,null,3,0,"Y9",null,9,"EMİNE AYDINAY (BRS)",null,null,null,null,null,null,null,null,null,null,null,null,null,null,null,null,null,null,null,null,null,null,null,null,null,null,null,null,null,null,null,null,null,null,null,null,null,null,null,null,null,null,null,null,null,null,null,null,null,null,null,null,null,null,null,null,null,null,null,null,null,72]
[18,"CEREN BUDAK (ADN)",null,null,null,null,null,null,null,null,null,null,null,null,21]
[19,"ASİYE TUĞÇE KENAR (KNY)",null,null,null,null,null,null,null,null,3,0,"Y21",null,null,"EMİNE AYDINAY (BRS)"]
[null,null,null,2,3,"Y10",null,10,"AYŞE NAR ALPTEKİN (İST)",null,null,null,null,null,null,null,null,null,null,null,null,35]
[20,"AYŞE NAR ALPTEKİN (İST)"]
[21,"DERİN MÜLAZIM (ÇRM)",null,null,null,null,null,null,null,null,null,null,null,null,null,null,null,1,3,"Y27"]
[null,null,null,0,3,"Y11",null,11,"EDA MORAL (İST)",null,null,null,null,null,null,null,null,null,null,null,null,null,null,null,null,null,null,null,null,"ZEYNEP DURAN (İST)"]
[22,"EDA MORAL (İST)",null,null,null,null,null,null,null,null,null,null,null,null,22,"ZEYNEP DURAN (İST)",null,null,null,null,null,null,null,null,null,null,null,null,null,null,null,null,null,null,null,50]
[23,"NİSA GÜN (AMS)",null,null,null,null,null,null,null,null,2,3,"Y22"]
[null,null,null,0,3,"Y12",null,12,"ZEYNEP DURAN (İST)"]
[24,"ZEYNEP DURAN (İST)"]
[25,"AYBİGE FERİDE ÜSTÜNDAĞ (MĞL)"]
[null,null,null,3,2,"Y13",null,13,"AYBİGE FERİDE ÜSTÜNDAĞ (MĞL)",null,null,null,null,null,null,null,null,null,null,null,null,null,null,null,null,null,null,null,null,null,null,3,0,"Y30",null,null,null,null,null,null,null,null,null,null,null,null,null,null,null,null,"ZEYNEP DURAN (İST)"]
[26,"MERVE TUŞEK (DYB)",null,null,null,null,null,null,null,null,null,null,null,null,23,null,null,null,null,null,null,null,null,null,null,null,null,null,null,null,null,null,null,null,null,null,null,null,null,null,null,null,null,null,null,null,null,null,null,null,null,null,null,null,null,null,null,null,null,null,null,null,null,null,null,null,3,0,"Y32",null,null,"ELA SU YÖNTER (ANK)",null,null,null,null,null,null,"1."]
[27,"BURCU ASEL TUNCER (ÇRM)",null,null,null,null,null,null,null,null,1,3,"Y23",null,null,"ŞEVVAL ALAŞ (BTM)"]
[null,null,null,0,3,"Y14",null,14,"ŞEVVAL ALAŞ (BTM)",null,null,null,null,null,null,null,null,null,null,null,null,36]
[28,"ŞEVVAL ALAŞ (BTM)"]
[29,"BERRA BAHTİYAR (SKR)",null,null,null,null,null,null,null,null,null,null,null,null,null,null,null,3,2,"Y28",null,null,null,null,null,null,null,null,null,"ŞEVVAL ALAŞ (BTM)"]
[null,null,null,1,3,"Y15",null,15,"ESMA SULTAN SARI (SKR)"]
[30,"ESMA SULTAN SARI (SKR)",null,null,null,null,null,null,null,null,null,null,null,null,24,"ARMİN AYDIN (İST)"]
[31,"ZEYNEP POLAT (GZT)",null,null,null,null,null,null,null,null,1,3,"Y24"]
[null,null,null,0,3,"Y16",null,16,"ARMİN AYDIN (İST)"]
[32,"ARMİN AYDIN (İST)"]
[null,null,null,null,null,null,null,null,null,null,null,null,null,null,null,null,null,null,null,null,null,null,null,null,null,null,null,null,"Y25","ELİF DURU BECER (ÇRM)",null,null,null,null,null,null,null,null,null,null,null,null,"Y30","ŞEVVAL ALAŞ (BTM)",null,null,null,null,null,null,null,null,null,null,null,null,"Y31","ZEYNEP DURAN (İST)"]
[null,null,null,null,null,null,null,null,null,null,null,null,null,null,"Y24","ESMA SULTAN SARI (SKR)",null,null,null,null,null,null,null,null,null,null,null,null,null,null,null,null,null,null,null,51,null,null,null,null,null,null,null,null,null,null,null,null,null,63,null,null,null,null,null,null,null,null,null,null,null,null,null,71]
[null,null,null,null,null,null,null,"Y1","BURCU AL (KNY)",null,null,null,null,null,null,null,null,3,0,"YE",null,37,"ESMA SULTAN SARI (SKR)",null,null,null,null,null,null,null,null,0,3,"Y37",null,null,"AYBİGE FERİDE ÜSTÜNDAĞ (MĞL)"]
[null,null,null,null,null,null,null,null,null,null,1,3,"Y.Elenir",null,25,"ZEYNEP KALKAN (HTY)",null,null,null,null,null,null,null,null,null,null,null,null,45,null,null,null,null,null,null,null,null,null,null,null,null,null,57,null,null,null,null,null,null,null,"BELİNAY DAVUŞ (KST)"]
[null,null,null,null,null,null,null,"Y2","ZEYNEP KALKAN (HTY)",null,null,null,null,null,null,null,null,null,null,null,null,null,null,null,null,0,3,"Y33",null,"AYBİGE FERİDE ÜSTÜNDAĞ (MĞL)",null,null,null,null,null,null,null,null,null,null,null,null,null,null,null,1,3,"Y43",null,null,null,null,null,null,null,null,69]
[null,null,null,null,null,null,null,null,null,null,null,null,null,null,"Y23","AYBİGE FERİDE ÜSTÜNDAĞ (MĞL)"]
[null,null,null,null,null,null,null,"Y3","RANA ZEREN KÖSE (İST)",null,null,null,null,null,null,null,null,3,0,"YE",null,38,"AYBİGE FERİDE ÜSTÜNDAĞ (MĞL)",null,null,null,null,null,null,null,null,null,null,null,null,null,null,null,null,null,null,null,null,"BELİNAY DAVUŞ (KST)",null,null,null,null,null,null,null,null,null,null,null,null,null,null,null,null,3,1,"Y46",null,"ZEYNEP DURAN (İST)"]
[null,null,null,null,null,null,null,null,null,null,1,3,"YE",null,26,"FEYZA KOÇER (KYS)",null,null,null,null,null,null,null,null,null,null,null,null,null,null,null,null,null,null,null,null,null,null,0,3,"Y41"]
[null,null,null,null,null,null,null,"Y4","FEYZA KOÇER (KYS)",null,null,null,null,null,null,null,null,null,null,null,null,null,null,null,null,null,null,null,"Y26","BELİNAY DAVUŞ (KST)",null,null,null,null,null,null,null,null,null,null,null,null,null,null,null,null,null,null,null,null,null,null,null,null,null,null,null,null,null,null,null,null,null,null,null,null,null,null,null,null,"Y32","ZEYNEP DURAN (İST)",null,null,null,null,null,null,"2."]
[null,null,null,null,null,null,null,null,null,null,null,null,null,null,"Y22","EDA MORAL (İST)",null,null,null,null,null,null,null,null,null,null,null,null,null,null,null,null,null,null,null,52]
[null,null,null,null,null,null,null,"Y5","FİRDEVS NUR BİNGÖL (YLV)",null,null,null,null,null,null,null,null,3,1,"YE",null,39,"EDA MORAL (İST)",null,null,null,null,null,null,null,null,3,0,"Y38",null,null,"BELİNAY DAVUŞ (KST)"]
[null,null,null,null,null,null,null,null,null,null,2,3,"YE",null,27,"DURU YAVAŞCAOĞLU (YLV)",null,null,null,null,null,null,null,null,null,null,null,null,46]
[null,null,null,null,null,null,null,"Y6","DURU YAVAŞCAOĞLU (YLV)",null,null,null,null,null,null,null,null,null,null,null,null,null,null,null,null,0,3,"Y34",null,"HAFSA YURTERİ (İZM)",null,null,null,null,null,null,null,null,null,null,null,null,null,null,null,null,null,null,null,null,null,null,3,2,"Y45",null,null,"BELİNAY DAVUŞ (KST)"]
[null,null,null,null,null,null,null,null,null,null,null,null,null,null,"Y21","AYŞE NAR ALPTEKİN (İST)"]
[null,null,null,null,null,null,null,"Y7","HAFSA YURTERİ (İZM)",null,null,null,null,null,null,null,null,0,3,"YE",null,40,"HAFSA YURTERİ (İZM)",null,null,null,null,null,null,null,null,null,null,null,null,null,null,null,null,null,null,null,null,null,null,null,null,null,null,null,null,null,null,null,null,null,null,null,null,null,null,null,null,"Y46","BELİNAY DAVUŞ (KST)",null,null,null,null,null,null,"3."]
[null,null,null,null,null,null,null,null,null,null,3,1,"YE",null,28,"HAFSA YURTERİ (İZM)"]
[null,null,null,null,null,null,null,"Y8","ATİYE ÖZER (ADN)",null,null,null,null,null,null,null,null,null,null,null,null,null,null,null,null,null,null,null,"Y27","EMİNE AYDINAY (BRS)",null,null,null,null,null,null,null,null,null,null,null,null,"Y29","DURU BERİL TOK (YLV)"]
[null,null,null,null,null,null,null,null,null,null,null,null,null,null,"Y20","CEYDA DÖKMECİ (KNY)",null,null,null,null,null,null,null,null,null,null,null,null,null,null,null,null,null,null,null,53,null,null,null,null,null,null,null,null,null,null,null,null,null,64]
[null,null,null,null,null,null,null,"Y9","CEREN BUDAK (ADN)",null,null,null,null,null,null,null,null,3,0,"YE",null,41,"CEYDA DÖKMECİ (KNY)",null,null,null,null,null,null,null,null,3,0,"Y39",null,null,"EMİNE AYDINAY (BRS)"]
[null,null,null,null,null,null,null,null,null,null,0,3,"YE",null,29,"ASİYE TUĞÇE KENAR (KNY)",null,null,null,null,null,null,null,null,null,null,null,null,47]
[null,null,null,null,null,null,null,"Y10","ASİYE TUĞÇE KENAR (KNY)",null,null,null,null,null,null,null,null,null,null,null,null,null,null,null,null,3,2,"Y35",null,"CEYDA DÖKMECİ (KNY)",null,null,null,null,null,null,null,null,null,null,null,null,58,null,null,2,3,"Y44",null,null,"EMİNE AYDINAY (BRS)"]
[null,null,null,null,null,null,null,null,null,null,null,null,null,null,"Y19","BUĞLEM SENA ÇALIŞKAN (SKR)"]
[null,null,null,null,null,null,null,"Y11","DERİN MÜLAZIM (ÇRM)",null,null,null,null,null,null,null,null,0,3,"YE",null,42,"DERİN MÜLAZIM (ÇRM)",null,null,null,null,null,null,null,null,null,null,null,null,null,null,null,null,null,null,null,null,null,null,null,null,null,null,null,null,null,null,null,null,null,"Y45","EMİNE AYDINAY (BRS)",null,null,null,null,null,null,"4."]
[null,null,null,null,null,null,null,null,null,null,3,0,"YE",null,30,"DERİN MÜLAZIM (ÇRM)",null,null,null,null,null,null,null,null,null,null,null,null,null,null,null,null,null,null,null,null,null,null,3,2,"Y42",null,null,"EMİNE AYDINAY (BRS)"]
[null,null,null,null,null,null,null,"Y12","NİSA GÜN (AMS)",null,null,null,null,null,null,null,null,null,null,null,null,null,null,null,null,null,null,null,"Y28","ARMİN AYDIN (İST)"]
[null,null,null,null,null,null,null,null,null,null,null,null,null,null,"Y18","MEDİNE İREM TÜRKAN (BTM)",null,null,null,null,null,null,null,null,null,null,null,null,null,null,null,null,null,null,null,54,null,null,null,null,null,null,null,null,null,null,null,null,null,"Y43","ŞEVVAL ALAŞ (BTM)"]
[null,null,null,null,null,null,null,"Y13","MERVE TUŞEK (DYB)",null,null,null,null,null,null,null,null,3,2,"YE",null,43,"MEDİNE İREM TÜRKAN (BTM)",null,null,null,null,null,null,null,null,3,0,"Y40",null,null,"ARMİN AYDIN (İST)",null,null,null,null,null,null,null,null,null,null,null,null,null,null,null,3,2,"Y56",null,70,"ŞEVVAL ALAŞ (BTM)",null,null,null,null,null,null,"5."]
[null,null,null,null,null,null,null,null,null,null,1,3,"YE",null,31,"BURCU ASEL TUNCER (ÇRM)",null,null,null,null,null,null,null,null,null,null,null,null,48,null,null,null,null,null,null,null,null,null,null,null,null,null,null,null,null,null,null,null,null,"Y44","DURU BERİL TOK (YLV)"]
[null,null,null,null,null,null,null,"Y14","BURCU ASEL TUNCER (ÇRM)",null,null,null,null,null,null,null,null,null,null,null,null,null,null,null,null,3,0,"Y36",null,"MEDİNE İREM TÜRKAN (BTM)",null,null,null,null,null,null,null,null,null,null,null,null,null,null,null,null,null,null,null,null,null,null,null,null,null,null,"Y56","DURU BERİL TOK (YLV)",null,null,null,null,null,null,"6."]
[null,null,null,null,null,null,null,null,null,null,null,null,null,null,"Y17","NİSA ÜZÜMCÜ (BTM)",null,null,null,null,null,null,null,null,null,null,null,null,null,null,null,null,null,null,null,null,null,null,null,null,null,null,"Y41","AYBİGE FERİDE ÜSTÜNDAĞ (MĞL)"]
[null,null,null,null,null,null,null,"Y15","BERRA BAHTİYAR (SKR)",null,null,null,null,null,null,null,null,3,2,"YE",null,44,"NİSA ÜZÜMCÜ (BTM)",null,null,null,null,null,null,null,null,null,null,null,null,null,null,null,null,null,null,null,null,null,null,1,3,"Y53",null,65,"ARMİN AYDIN (İST)",null,null,null,null,null,null,"7."]
[null,null,null,null,null,null,null,null,null,null,3,0,"YE",null,32,"BERRA BAHTİYAR (SKR)",null,null,null,null,null,null,null,null,null,null,null,null,null,null,null,null,null,null,null,null,null,null,null,null,null,null,"Y42","ARMİN AYDIN (İST)"]
[null,null,null,null,null,null,null,"Y16","ZEYNEP POLAT (GZT)",null,null,null,null,null,null,null,null,null,null,null,null,null,null,null,null,null,null,null,null,null,null,null,null,null,null,"Y37","ELİF DURU BECER (ÇRM)",null,null,null,null,null,null,null,null,null,null,null,null,"Y53","AYBİGE FERİDE ÜSTÜNDAĞ (MĞL)",null,null,null,null,null,null,"8."]
[null,null,null,null,null,null,null,null,null,null,null,null,null,null,null,null,null,null,null,null,null,null,null,null,null,null,null,null,null,null,null,null,null,null,null,null,null,null,3,0,"Y49",null,59,"ELİF DURU BECER (ÇRM)"]
[null,null,null,null,null,null,null,null,null,null,null,null,null,null,null,null,null,null,null,null,null,null,null,null,null,null,null,null,null,null,null,null,null,null,null,"Y38","HAFSA YURTERİ (İZM)",null,null,null,null,null,null,null,null,null,null,null,null,66]
[null,null,null,null,null,null,null,null,null,null,null,null,null,null,null,null,null,null,null,null,null,null,null,null,null,null,null,null,null,null,null,null,null,null,null,"Y39","CEYDA DÖKMECİ (KNY)",null,null,null,null,null,null,null,null,1,3,"Y54",null,null,"MEDİNE İREM TÜRKAN (BTM)",null,null,null,null,null,null,"9."]
[null,null,null,null,null,null,null,null,null,null,null,null,null,null,null,null,null,null,null,null,null,null,null,null,null,null,null,null,null,null,null,null,null,null,null,null,null,null,2,3,"Y50",null,60,"MEDİNE İREM TÜRKAN (BTM)"]
[null,null,null,null,null,null,null,null,null,null,null,null,null,null,null,null,null,null,null,null,null,null,null,null,null,null,null,null,null,null,null,null,null,null,null,"Y40","MEDİNE İREM TÜRKAN (BTM)",null,null,null,null,null,null,null,null,null,null,null,null,"Y54","ELİF DURU BECER (ÇRM)",null,null,null,null,null,null,"10."]
[null,null,null,null,null,null,null,null,null,null,null,null,null,null,null,null,null,null,null,null,null,null,null,null,null,null,null,null,null,null,null,null,null,null,null,null,null,null,null,null,null,null,"Y49","HAFSA YURTERİ (İZM)"]
[null,null,null,null,null,null,null,null,null,null,null,null,null,null,null,null,null,null,null,null,null,null,null,null,null,null,null,null,null,null,null,null,null,null,null,null,null,null,null,null,null,null,null,null,null,0,3,"Y55",null,67,"CEYDA DÖKMECİ (KNY)",null,null,null,null,null,null,"11."]
[null,null,null,null,null,null,null,null,null,null,null,null,null,null,null,null,null,null,null,null,null,null,null,null,null,null,null,null,"Y33","ESMA SULTAN SARI (SKR)",null,null,null,null,null,null,null,null,null,null,null,null,"Y50","CEYDA DÖKMECİ (KNY)"]
[null,null,null,null,null,null,null,null,null,null,null,null,null,null,null,null,null,null,null,null,null,null,null,null,null,null,null,null,null,null,null,2,3,"Y47",null,55,"EDA MORAL (İST)",null,null,null,null,null,null,null,null,null,null,null,null,"Y55","HAFSA YURTERİ (İZM)",null,null,null,null,null,null,"12."]
[null,null,null,null,null,null,null,null,null,null,null,null,null,null,null,null,null,null,null,null,null,null,null,null,null,null,null,null,"Y34","EDA MORAL (İST)",null,null,null,null,null,null,null,null,null,null,null,null,61]
[null,null,null,null,null,null,null,null,null,null,null,null,null,null,null,null,null,null,null,null,null,null,null,null,null,null,null,null,"Y35","DERİN MÜLAZIM (ÇRM)",null,null,null,null,null,null,null,null,1,3,"Y51",null,null,"DERİN MÜLAZIM (ÇRM)",null,null,null,null,null,null,"13."]
[null,null,null,null,null,null,null,null,null,null,null,null,null,null,null,null,null,null,null,null,null,null,null,null,null,null,null,null,null,null,null,3,1,"Y48",null,56,"DERİN MÜLAZIM (ÇRM)"]
[null,null,null,null,null,null,null,null,null,null,null,null,null,null,null,null,null,null,null,null,null,null,null,null,null,null,null,null,"Y36","NİSA ÜZÜMCÜ (BTM)",null,null,null,null,null,null,null,null,null,null,null,null,"Y51","EDA MORAL (İST)",null,null,null,null,null,null,"14."]
[null,null,null,null,null,null,null,null,null,null,null,null,null,null,null,null,null,null,null,null,null,null,null,null,null,null,null,null,null,null,null,null,null,null,null,"Y47","ESMA SULTAN SARI (SKR)"]
[null,null,null,null,null,null,null,null,null,null,null,null,null,null,null,null,null,null,null,null,null,null,null,null,null,null,null,null,null,null,null,null,null,null,null,null,null,null,2,3,"Y52",null,62,"NİSA ÜZÜMCÜ (BTM)",null,null,null,null,null,null,"15."]
[null,null,null,null,null,null,null,null,null,null,null,null,null,null,null,null,null,null,null,null,null,null,null,null,null,null,null,null,null,null,null,null,null,null,null,"Y48","NİSA ÜZÜMCÜ (BTM)"]
[null,null,null,null,null,null,null,null,null,null,null,null,null,null,null,null,null,null,null,null,null,null,null,null,null,null,null,null,null,null,null,null,null,null,null,null,null,null,null,null,null,null,"Y52","ESMA SULTAN SARI (SKR)",null,null,null,null,null,null,"16."]

{"sheet":"16DE","index":6,"n_rows":63,"n_cols":1217,"rows_kept":63,"cut":false,"hidden":true,"merged":[[1,85,1,86],[1,75,1,76],[1,77,1,78],[1,79,1,80],[1,81,1,82],[1,83,1,84],[59,22,59,28],[60,29,60,35],[61,22,61,28],[37,43,37,49],[49,22,49,28],[49,36,49,42],[46,36,46,42],[47,22,47,28],[48,29,48,35],[34,43,34,49],[29,43,29,49],[18,57,18,63],[25,57,25,63],[0,24,3,48],[6,22,6,28],[62,29,62,35],[54,15,54,21],[55,29,55,35],[56,15,56,21],[57,22,57,28],[58,15,58,21],[58,29,58,35],[50,29,50,35],[51,36,51,42],[52,15,52,21],[52,29,52,35],[53,22,53,28],[53,36,53,42],[39,8,39,14],[39,43,39,49],[40,29,40,35],[41,36,41,42],[42,29,42,35],[43,22,43,28],[43,36,43,42],[44,29,44,35],[45,22,45,28],[38,15,38,21],[38,36,38,42],[33,8,33,14],[33,22,33,28],[33,36,33,42],[34,15,34,21],[36,15,36,21],[36,36,36,42],[37,8,37,14],[37,22,37,28],[35,8,35,14],[35,29,35,35],[30,15,30,21],[30,50,30,55],[31,8,31,14],[31,29,31,35],[32,15,32,21],[26,15,26,21],[27,8,27,14],[27,29,27,35],[28,15,28,21],[29,8,29,14],[29,22,29,28],[20,1,20,7],[20,15,20,21],[21,1,21,7],[22,8,22,14],[23,1,23,7],[23,29,23,35],[24,15,24,21],[24,50,24,56],[25,8,25,14],[25,22,25,28],[25,36,25,42],[19,8,19,14],[19,43,19,49],[12,50,12,56],[13,8,13,14],[14,1,14,7],[15,1,15,7],[15,15,15,21],[16,8,16,14],[12,1,12,7],[17,1,17,7],[17,22,17,28],[18,1,18,7],[18,22,18,28],[8,1,8,7],[8,15,8,21],[9,1,9,7],[10,8,10,14],[11,1,11,7],[7,8,7,14],[0,1,0,7],[1,8,1,14],[2,1,2,7],[3,1,3,7],[3,15,3,21],[4,8,4,14],[5,1,5,7],[6,1,6,7]]}
[1,{"$f":"IF(Katılım!AU1=2,Eleme!#REF!,IF(Katılım!AU1=3,Eleme!#REF!,IF(Katılım!AU1=4,Eleme!#REF!,IF(Katılım!AU1=5,Eleme!#REF!,IF(Katılım!AU1=6,Eleme!#REF!)))))","v":{"$error":"#REF!"}},null,null,null,null,null,null,null,null,null,null,null,null,null,null,null,null,null,null,null,null,null,null,{"$f":"Katılım!AC1&\" \"&Katılım!AE3","v":"TÜRKİYE MASA TENİSİ FEDERASYONU\nİsmail Eren ALICI Küçükler Ferdi-Takım Türkiye Şampiyonası                                                                                                                                                                                          TEK KIZ [ 09-13 Nisan 2025 ÇORUM ] [ Ana Tablo ]"},null,null,null,null,null,null,null,null,null,null,null,null,null,null,null,null,null,null,null,null,null,null,null,null,null,null,null,null,null,null,null,null,null,null,null,null,null,null,null,null,null,null,null,null,null,null,null,null,null,null,null,null,null,null,null,null,null,null,null,null,null,null,null,null,null,null,null,null,null,null,null,null,null,null,null,null,null,null,"1st Round",6]
[null,null,null,{"$f":"CH3","v":0},{"$f":"CI3","v":0},"Y1",null,1,{"$f":"IF(AND(D2=0,E2=0),\"\",IF(D2>E2,B1,B3))","v":""},null,null,null,null,null,null,null,null,null,null,null,null,null,null,null,null,null,null,null,null,null,null,null,null,null,null,null,null,null,null,null,null,null,null,null,null,null,null,null,null,null,null,null,null,null,null,null,null,null,null,null,null,null,null,null,null,null,null,null,"#","Date","Time","Table","Competition","Player A","Player B","Set1",null,"Set2",null,"Set3",null,"Set4",null,"Set5",null,"Result",null,null,null,null,null,null,null,null,null,null,null,null,null,null,null,null,null,"2sn Round"]
[2,{"$f":"IF(Katılım!AU1=2,Eleme!#REF!,IF(Katılım!AU1=3,Eleme!#REF!,IF(Katılım!AU1=4,Eleme!#REF!,IF(Katılım!AU1=5,Eleme!#REF!,IF(Katılım!AU1=6,Eleme!#REF!)))))","v":{"$error":"#REF!"}},null,null,null,null,null,null,null,null,null,null,null,null,9,null,null,null,null,null,null,null,null,null,null,null,null,null,null,null,null,null,null,null,null,null,null,null,null,null,null,null,null,null,null,null,null,null,null,null,null,null,null,null,null,null,null,null,null,null,null,null,null,null,null,null,null,null,1,null,null,null,null,{"$f":"B1","v":{"$error":"#REF!"}},{"$f":"B3","v":{"$error":"#REF!"}},null,null,null,null,null,null,null,null,null,null,null,null,null,null,null,null,null,null,null,null,null,null,null,null,null,null,null,null,"3th Round"]
[3,{"$f":"IF(Katılım!AU1=2,Eleme!#REF!,IF(Katılım!AU1=3,Eleme!#REF!,IF(Katılım!AU1=4,Eleme!#REF!,IF(Katılım!AU1=5,Eleme!#REF!,IF(Katılım!AU1=6,Eleme!#REF!)))))","v":{"$error":"#REF!"}},null,null,null,null,null,null,null,null,{"$f":"CH11","v":0},{"$f":"CI11","v":0},"Y9",null,null,{"$f":"IF(AND(K4=0,L4=0),\"\",IF(K4>L4,I2,I5))","v":""},null,null,null,null,null,null,null,null,null,null,null,null,null,null,null,null,null,null,null,null,null,null,null,null,null,null,null,null,null,null,null,null,null,null,null,null,null,null,null,null,null,null,null,null,null,null,null,null,null,null,null,null,2,null,null,null,null,{"$f":"B4","v":{"$error":"#REF!"}},{"$f":"B6","v":{"$error":"#REF!"}},null,null,null,null,null,null,null,null,null,null,null,null,null,null,null,null,null,null,null,null,null,null,null,null,null,null,null,null,"4th Round"]
[null,null,null,{"$f":"CH4","v":0},{"$f":"CI4","v":0},"Y2",null,2,{"$f":"IF(AND(D5=0,E5=0),\"\",IF(D5>E5,B4,B6))","v":""},null,null,null,null,null,null,null,null,null,null,null,null,17,null,null,null,null,null,null,null,null,null,null,null,null,null,null,null,null,null,null,null,null,null,null,null,null,null,null,null,null,null,null,null,null,null,null,null,null,null,null,null,null,null,null,null,null,null,null,3,null,null,null,null,{"$f":"B7","v":{"$error":"#REF!"}},{"$f":"B9","v":{"$error":"#REF!"}},null,null,null,null,null,null,null,null,null,null,null,null,null,null,null,null,null,null,null,null,null,null,null,null,null,null,null,null,"5th Round"]
[4,{"$f":"IF(Katılım!AU1=2,Eleme!#REF!,IF(Katılım!AU1=3,Eleme!#REF!,IF(Katılım!AU1=4,Eleme!#REF!,IF(Katılım!AU1=5,Eleme!#REF!,IF(Katılım!AU1=6,Eleme!#REF!)))))","v":{"$error":"#REF!"}},null,null,null,null,null,null,null,null,null,null,null,null,null,null,null,null,null,null,null,null,null,null,null,null,null,null,null,null,null,null,null,null,null,null,null,null,null,null,null,null,null,null,null,null,null,null,null,null,null,null,null,null,null,null,null,null,null,null,null,null,null,null,null,null,null,null,4,null,null,null,null,{"$f":"B10","v":{"$error":"#REF!"}},{"$f":"B12","v":{"$error":"#REF!"}},null,null,null,null,null,null,null,null,null,null,null,null,null,null,null,null,null,null,null,null,null,null,null,null,null,null,null,null,"6th Round"]
[5,{"$f":"IF(Katılım!AU1=2,Eleme!#REF!,IF(Katılım!AU1=3,Eleme!#REF!,IF(Katılım!AU1=4,Eleme!#REF!,IF(Katılım!AU1=5,Eleme!#REF!,IF(Katılım!AU1=6,Eleme!#REF!)))))","v":{"$error":"#REF!"}},null,null,null,null,null,null,null,null,null,null,null,null,null,null,null,{"$f":"CH19","v":0},{"$f":"CI19","v":0},"Y17",null,null,{"$f":"IF(AND(R7=0,S7=0),\"\",IF(R7>S7,P4,P9))","v":""},null,null,null,null,null,null,null,null,null,null,null,null,null,null,null,null,null,null,null,null,null,null,null,null,null,null,null,null,null,null,null,null,null,null,null,null,null,null,null,null,null,null,null,null,null,5,null,null,null,null,{"$f":"B13","v":{"$error":"#REF!"}},{"$f":"B15","v":{"$error":"#REF!"}},null,null,null,null,null,null,null,null,null,null,null,null,null,null,null,null,null,null,null,null,null,null,null,null,null,null,null,null,"7th Round"]
[null,null,null,{"$f":"CH5","v":0},{"$f":"CI5","v":0},"Y3",null,3,{"$f":"IF(AND(D8=0,E8=0),\"\",IF(D8>E8,B7,B9))","v":""},null,null,null,null,null,null,null,null,null,null,null,null,null,null,null,null,null,null,null,25,null,null,null,null,null,null,null,null,null,null,null,null,null,null,null,null,null,null,null,null,null,null,null,null,null,null,null,null,null,null,null,null,null,null,null,null,null,null,null,6,null,null,null,null,{"$f":"B16","v":{"$error":"#REF!"}},{"$f":"B18","v":{"$error":"#REF!"}},null,null,null,null,null,null,null,null,null,null,null,null,null,null,null,null,null,null,null,null,null,null,null,null,null,null,null,null,"8th Round"]
[6,{"$f":"IF(Katılım!AU1=2,Eleme!#REF!,IF(Katılım!AU1=3,Eleme!#REF!,IF(Katılım!AU1=4,Eleme!#REF!,IF(Katılım!AU1=5,Eleme!#REF!,IF(Katılım!AU1=6,Eleme!#REF!)))))","v":{"$error":"#REF!"}},null,null,null,null,null,null,null,null,null,null,null,null,10,{"$f":"IF(AND(K10=0,L10=0),\"\",IF(K10>L10,I8,I11))","v":""},null,null,null,null,null,null,null,null,null,null,null,null,null,null,null,null,null,null,null,null,null,null,null,null,null,null,null,null,null,null,null,null,null,null,null,null,null,null,null,null,null,null,null,null,null,null,null,null,null,null,null,null,7,null,null,null,null,{"$f":"B19","v":{"$error":"#REF!"}},{"$f":"B21","v":{"$error":"#REF!"}}]
[7,{"$f":"IF(Katılım!AU1=2,Eleme!#REF!,IF(Katılım!AU1=3,Eleme!#REF!,IF(Katılım!AU1=4,Eleme!#REF!,IF(Katılım!AU1=5,Eleme!#REF!,IF(Katılım!AU1=6,Eleme!#REF!)))))","v":{"$error":"#REF!"}},null,null,null,null,null,null,null,null,{"$f":"CH12","v":0},{"$f":"CI12","v":0},"Y10",null,null,null,null,null,null,null,null,null,null,null,null,null,null,null,null,null,null,null,null,null,null,null,null,null,null,null,null,null,null,null,null,null,null,null,null,null,null,null,null,null,null,null,null,null,null,null,null,null,null,null,null,null,null,null,8,null,null,null,null,{"$f":"B22","v":{"$error":"#REF!"}},{"$f":"B24","v":{"$error":"#REF!"}}]
[null,null,null,{"$f":"CH6","v":0},{"$f":"CI6","v":0},"Y4",null,4,{"$f":"IF(AND(D11=0,E11=0),\"\",IF(D11>E11,B10,B12))","v":""},null,null,null,null,null,null,null,null,null,null,null,null,null,null,null,null,null,null,null,null,null,null,null,null,null,null,null,null,null,null,null,null,null,null,null,null,null,null,null,null,null,null,null,null,null,null,null,null,null,null,null,null,null,null,null,null,null,null,null,9,null,null,null,null,{"$f":"I2","v":""},{"$f":"I5","v":""}]
[8,{"$f":"IF(Katılım!AU1=2,Eleme!#REF!,IF(Katılım!AU1=3,Eleme!#REF!,IF(Katılım!AU1=4,Eleme!#REF!,IF(Katılım!AU1=5,Eleme!#REF!,IF(Katılım!AU1=6,Eleme!#REF!)))))","v":{"$error":"#REF!"}},null,null,null,null,null,null,null,null,null,null,null,null,null,null,null,null,null,null,null,null,null,null,null,null,null,null,null,null,null,null,null,null,null,null,null,null,null,null,null,null,null,null,null,null,null,null,null,null,null,null,null,null,null,null,null,null,null,null,null,null,null,null,null,null,null,null,10,null,null,null,null,{"$f":"I8","v":""},{"$f":"I11","v":""}]
[9,{"$f":"IF(Katılım!AU1=2,Eleme!#REF!,IF(Katılım!AU1=3,Eleme!#REF!,IF(Katılım!AU1=4,Eleme!#REF!,IF(Katılım!AU1=5,Eleme!#REF!,IF(Katılım!AU1=6,Eleme!#REF!)))))","v":{"$error":"#REF!"}},null,null,null,null,null,null,null,null,null,null,null,null,null,null,null,null,null,null,null,null,null,null,{"$f":"CH27","v":0},{"$f":"+CI27","v":0},"Y25",null,null,null,null,null,null,null,null,null,null,null,null,null,null,null,null,null,null,null,null,null,null,null,{"$f":"IF(AND(Y13=0,Z13=0),\"\",IF(Y13>Z13,W7,W18))","v":""},null,null,null,null,null,null,null,null,null,null,null,null,null,null,null,null,null,11,null,null,null,null,{"$f":"I14","v":""},{"$f":"I17","v":""}]
[null,null,null,{"$f":"CH7","v":0},{"$f":"CI7","v":0},"Y5",null,5,{"$f":"IF(AND(D14=0,E14=0),\"\",IF(D14>E14,B13,B15))","v":""},null,null,null,null,null,null,null,null,null,null,null,null,null,null,null,null,null,null,null,null,null,null,null,null,null,null,null,null,null,null,null,null,null,null,null,null,null,null,null,null,null,null,null,null,null,null,null,40,null,null,null,null,null,null,null,null,null,null,null,12,null,null,null,null,{"$f":"I20","v":""},{"$f":"I23","v":""}]
[10,{"$f":"IF(Katılım!AU1=2,Eleme!#REF!,IF(Katılım!AU1=3,Eleme!#REF!,IF(Katılım!AU1=4,Eleme!#REF!,IF(Katılım!AU1=5,Eleme!#REF!,IF(Katılım!AU1=6,Eleme!#REF!)))))","v":{"$error":"#REF!"}},null,null,null,null,null,null,null,null,null,null,null,null,11,null,null,null,null,null,null,null,null,null,null,null,null,null,null,null,null,null,null,null,null,null,null,null,null,null,null,null,null,null,null,null,null,null,null,null,null,null,null,null,null,null,null,null,null,null,null,null,null,null,null,null,null,null,13,null,null,null,null,{"$f":"I26","v":""},{"$f":"I28","v":""}]
[11,{"$f":"IF(Katılım!AU1=2,Eleme!#REF!,IF(Katılım!AU1=3,Eleme!#REF!,IF(Katılım!AU1=4,Eleme!#REF!,IF(Katılım!AU1=5,Eleme!#REF!,IF(Katılım!AU1=6,Eleme!#REF!)))))","v":{"$error":"#REF!"}},null,null,null,null,null,null,null,null,{"$f":"CH13","v":0},{"$f":"CI13","v":0},"Y11",null,null,{"$f":"IF(AND(K16=0,L16=0),\"\",IF(K16>L16,I14,I17))","v":""},null,null,null,null,null,null,null,null,null,null,null,null,null,null,null,null,null,null,null,null,null,null,null,null,null,null,null,null,null,null,null,null,null,null,null,null,null,null,null,null,null,null,null,null,null,null,null,null,null,null,null,null,14,null,null,null,null,{"$f":"I30","v":""},{"$f":"I32","v":""}]
[null,null,null,{"$f":"CH8","v":0},{"$f":"CI8","v":0},"Y6",null,6,{"$f":"IF(AND(D17=0,E17=0),\"\",IF(D17>E17,B16,B18))","v":""},null,null,null,null,null,null,null,null,null,null,null,null,18,null,null,null,null,null,null,null,null,null,null,null,null,null,null,null,null,null,null,null,null,null,null,null,null,null,null,null,null,null,null,null,null,null,null,null,null,null,null,null,null,null,null,null,null,null,null,15,null,null,null,null,{"$f":"I34","v":""},{"$f":"I36","v":""}]
[12,{"$f":"IF(Katılım!AU1=2,Eleme!#REF!,IF(Katılım!AU1=3,Eleme!#REF!,IF(Katılım!AU1=4,Eleme!#REF!,IF(Katılım!AU1=5,Eleme!#REF!,IF(Katılım!AU1=6,Eleme!#REF!)))))","v":{"$error":"#REF!"}},null,null,null,null,null,null,null,null,null,null,null,null,null,null,null,null,null,null,null,null,{"$f":"IF(AND(R19=0,S19=0),\"\",IF(R19>S19,P16,P21))","v":""},null,null,null,null,null,null,null,null,null,null,null,null,null,null,null,null,null,null,null,null,null,null,null,null,null,null,null,null,null,null,null,null,null,null,null,null,null,null,null,null,null,null,null,null,null,16,null,null,null,null,{"$f":"I38","v":""},{"$f":"I40","v":""}]
[13,{"$f":"IF(Katılım!AU1=2,Eleme!#REF!,IF(Katılım!AU1=3,Eleme!#REF!,IF(Katılım!AU1=4,Eleme!#REF!,IF(Katılım!AU1=5,Eleme!#REF!,IF(Katılım!AU1=6,Eleme!#REF!)))))","v":{"$error":"#REF!"}},null,null,null,null,null,null,null,null,null,null,null,null,null,null,null,{"$f":"CH20","v":0},{"$f":"CI20","v":0},"Y18",null,null,null,null,null,null,null,null,null,null,null,null,null,null,null,null,null,null,null,null,null,null,null,null,null,null,null,null,null,null,null,null,{"$f":"CH42","v":0},{"$f":"CI42","v":0},"Y40",null,null,{"$f":"IF(AND(BA19=0,BB19=0),\"\",IF(BA19>BB19,AY13,AY25))","v":""},null,null,null,null,null,null,"1.",null,null,null,17,null,null,null,null,{"$f":"P4","v":""},{"$f":"P9","v":""}]
[null,null,null,{"$f":"CH9","v":0},{"$f":"CI9","v":0},"Y7",null,7,{"$f":"IF(AND(D20=0,E20=0),\"\",IF(D20>E20,B19,B21))","v":""},null,null,null,null,null,null,null,null,null,null,null,null,null,null,null,null,null,null,null,null,null,null,null,null,null,null,null,null,null,null,null,null,null,"Y25",{"$f":"IF(AND(Y13=0,Z13=0),\"\",IF(Y13<Z13,W7,W18))","v":""},null,null,null,null,null,null,null,null,null,null,null,null,null,null,null,null,null,null,null,null,null,null,null,null,18,null,null,null,null,{"$f":"P16","v":""},{"$f":"P21","v":""}]
[14,{"$f":"IF(Katılım!AU1=2,Eleme!#REF!,IF(Katılım!AU1=3,Eleme!#REF!,IF(Katılım!AU1=4,Eleme!#REF!,IF(Katılım!AU1=5,Eleme!#REF!,IF(Katılım!AU1=6,Eleme!#REF!)))))","v":{"$error":"#REF!"}},null,null,null,null,null,null,null,null,null,null,null,null,12,{"$f":"IF(AND(K22=0,L22=0),\"\",IF(K22>L22,I20,I23))","v":""},null,null,null,null,null,null,null,null,null,null,null,null,null,null,null,null,null,null,null,null,null,null,null,null,null,null,null,null,null,null,null,null,null,39,null,null,null,null,null,null,null,null,null,null,null,null,null,null,null,null,null,null,19,null,null,null,null,{"$f":"P25","v":""},{"$f":"P27","v":""}]
[15,{"$f":"IF(Katılım!AU1=2,Eleme!#REF!,IF(Katılım!AU1=3,Eleme!#REF!,IF(Katılım!AU1=4,Eleme!#REF!,IF(Katılım!AU1=5,Eleme!#REF!,IF(Katılım!AU1=6,Eleme!#REF!)))))","v":{"$error":"#REF!"}},null,null,null,null,null,null,null,null,{"$f":"CH14","v":0},{"$f":"CI14","v":0},"Y12",null,null,null,null,null,null,null,null,null,null,null,null,null,null,null,null,null,null,null,null,null,null,null,null,null,null,null,null,null,null,null,null,null,null,null,null,null,null,null,null,null,null,null,null,null,null,null,null,null,null,null,null,null,null,null,20,null,null,null,null,{"$f":"P29","v":""},{"$f":"P31","v":""}]
[null,null,null,{"$f":"CH10","v":0},{"$f":"CI10","v":0},"Y8",null,8,{"$f":"IF(AND(D23=0,E23=0),\"\",IF(D23>E23,B22,B24))","v":""},null,null,null,null,null,null,null,null,null,null,null,null,null,null,null,null,null,null,null,null,null,null,null,null,null,null,null,null,null,null,null,null,null,null,null,null,null,null,null,null,null,null,null,null,null,null,null,null,null,null,null,null,null,null,null,null,null,null,null,21,null,null,null,null,{"$f":"P33","v":""},{"$f":"P35","v":""}]
[16,{"$f":"IF(Katılım!AU1=2,Eleme!#REF!,IF(Katılım!AU1=3,Eleme!#REF!,IF(Katılım!AU1=4,Eleme!#REF!,IF(Katılım!AU1=5,Eleme!#REF!,IF(Katılım!AU1=6,Eleme!#REF!)))))","v":{"$error":"#REF!"}},null,null,null,null,null,null,null,null,null,null,null,null,null,null,null,null,null,null,null,null,null,null,null,null,null,null,"Y18",{"$f":"IF(AND(R19=0,S19=0),\"\",IF(R19<S19,P16,P21))","v":""},null,null,null,null,null,null,null,null,null,null,null,null,null,null,null,null,null,null,null,null,null,null,null,null,null,null,null,null,null,null,null,null,null,null,null,null,null,null,22,null,null,null,null,{"$f":"P37","v":""},{"$f":"P39","v":""}]
[null,null,null,null,null,null,null,null,null,null,null,null,null,null,"Y12",{"$f":"IF(AND(K22=0,L22=0),\"\",IF(K22<L22,I20,I23))","v":""},null,null,null,null,null,null,null,null,null,null,null,null,null,null,null,null,null,null,null,32,null,null,null,null,null,null,null,null,null,{"$f":"CH41","v":0},{"$f":"+CI41","v":0},"Y39",null,null,{"$f":"IF(AND(AT25=0,AU25=0),\"\",IF(AT25>AU25,AR20,AR30))","v":""},null,null,null,null,null,null,null,null,null,null,null,null,null,null,null,null,null,23,null,null,null,null,{"$f":"P53","v":""},{"$f":"P55","v":""},null,null,null,null,null,null,null,null,null,null,null,null,null,null,null,null,null,null,null,null,null,null,null,null,null,null,null,null,null,null,null,null,null,null,null,null,null,null,null,null,null,null,null,null,null,null,null,null,null,null,null,null,null,null,null,null,null,null,null,null,null,null,null,null,null,null,null,null,null,null,null,null,null,null,null,null,null,null,null,null,null,null,null,null,null,null,null,null,null,null,null,null,null,null,null,null,null,null,null,null,null,null,null,null,null,null,null,null,null,null,null,null,null,null,null,null,null,null,null,null,null,null,null,null,null,null,null,null,null,null,null,null,null,null,null,null,null,null,null,null,null,null,null,null,null,null,null,null,null,null,null,null,null,null,null,null,null,null,null,null,null,null,null,null,null,null,null,null,null,null,null,null,null,null,null,null,null,null,null,null,null,null,null,null,null,null,null,null,null,null,null,null,null,null,null,null,null,null,null,null,null,null,null,null,null,null,null,null,null,null,null,null,null,null,null,null,null,null,null,null,null,null,null,null,null,null,null,null,null,null,null,null,null,null,null,null,null,null,null,null,null,null,null,null,null,null,null,null,null,null,null,null,null,null,null,null,null,null,null,null,null,null,null,null,null,null,null,null,null,null,null,null,null,null,null,null,null,null,null,null,null,null,null,null,null,null,null,null,null,null,null,null,null,null,null,null,null,null,null,null,null,null,null,null,null,null,null,null,null,null,null,null,null,null,null,null,null,null,null,null,null,null,null,null,null,null,null,null,null,null,null,null,null,null,null,null,null,null,null,null,null,null,null,null,null,null,null,null,null,null,null,null,null,null,null,null,null,null,null,null,null,null,null,null,null,null,null,null,null,null,null,null,null,null,null,null,null,null,null,null,null,null,null,null,null,null,null,null,null,null,null,null,null,null,null,null,null,null,null,null,null,null,null,null,null,null,null,null,null,null,null,null,null,null,null,null,null,null,null,null,null,null,null,null,null,null,null,null,null,null,null,null,null,null,null,null,null,null,null,null,null,null,null,null,null,null,null,null,null,null,null,null,null,null,null,null,null,null,null,null,null,null,null,null,null,null,null,null,null,null,null,null,null,null,null,null,null,null,null,null,null,null,null,null,null,null,null,null,null,null,null,null,null,null,null,null,null,null,null,null,null,null,null,null,null,null,null,null,null,null,null,null,null,null,null,null,null,null,null,null,null,null,null,null,null,null,null,null,null,null,null,null,null,null,null,null,null,null,null,null,null,null,null,null,null,null,null,null,null,null,null,null,null,null,null,null,null,null,null,null,null,null,null,null,null,null,null,null,null,null,null,null,null,null,null,null,null,null,null,null,null,null,null,null,null,null,null,null,null,null,null,null,null,null,null,null,null,null,null,null,null,null,null,null,null,null,null,null,null,null,null,null,null,null,null,null,null,null,null,null,null,null,null,null,null,null,null,null,null,null,null,null,null,null,null,null,null,null,null,null,null,null,null,null,null,null,null,null,null,null,null,null,null,null,null,null,null,null,null,null,null,null,null,null,null,null,null,null,null,null,null,null,null,null,null,null,null,null,null,null,null,null,null,null,null,null,null,null,null,null,null,null,null,null,null,null,null,null,null,null,null,null,null,null,null,null,null,null,null,null,null,null,null,null,null,null,null,null,null,null,null,null,null,null,null,null,null,null,null,null,null,null,null,null,null,null,null,null,null,null,null,null,null,null,null,null,null,null,null,null,null,null,null,null,null,null,null,null,null,null,null,null,null,null,null,null,null,null,null,null,null,null,null,null,null,null,null,null,null,null,null,null,null,null,null,null,null,null,null,null,null,null,null,null,null,null,null,null,null,null,null,null,null,null,null,null,null,null,null,null,null,null,null,null,null,null,null,null,null,null,null,null,null,null,null,null,null,null,null,null,null,null,null,null,null,null,null,null,null,null,null,null,null,null,null,null,null,null,null,null,null,null,null,null,null,null,null,null,null,null,null,null,null,null,null,null,null,null,null,null,null,null,null,null,null,null,null,null,null,null,null,null,null,null,null,null,null,null,null,null,null,null,null,null,null,null,null,null,null,null,null,null,null,null,null,null,null,null,null,null,null,null,null,null,null,null,null,null,null,null,null,null,null,null,null,null,null,null,null,null,null,null,null,null,null,null,null,null,null,null,null,null,null,null,null,null,null,null,null,null,null,null,null,null,null,null,null,null,null,null,null,null,null,null,null,null,null,null,null,null,null,null,null,null,null,null,null,null,null,null,null,null,null,null,null,null,null,null,null,null,null,null,null,null,null,null,null,null,null,null,null,null,null,null,null,null,null,null,null,null,null,null,null,null,null,null,null,null,null,null,null,null,null,null,null,null,null,null,null,null,null,null,null,null,null,null,null,null,null,null,null,null,null,null,null,null,null,null,null,null,null,null,null,null,null,null,null,null,null,null,null,null,null,null,null,null,null,null,null,null,null,null,null,null,null,null,null,null,null,null,null,null,null,null,null,null,null,null,null,null,null,null,null,null,null,null,null,null,null,null,null,null,null,null,null,null,null,null,null,null,null,null,null,null,null,null,null,null,null,null,null,null,null,null,null,null,null,null,null,null,null,null,null,null,null,null,null,null,null,null,null,0]
[null,null,null,null,null,null,null,"Y1",{"$f":"IF(AND(D2=0,E2=0),\"\",IF(D2<E2,B1,B3))","v":""},null,null,null,null,null,null,null,null,{"$f":"CH21","v":0},{"$f":"CI21","v":0},"Y19",null,19,{"$f":"IF(AND(R26=0,S26=0),\"\",IF(R26>S26,P25,P27))","v":""},null,null,null,null,null,null,null,null,{"$f":"CH34","v":0},{"$f":"+CI34","v":0},"Y32",null,null,{"$f":"IF(AND(AF26=0,AG26=0),\"\",IF(AF26>AG26,AD24,AD28))","v":""},null,null,null,null,null,null,null,null,null,null,null,null,null,null,null,null,null,null,null,"Y40",{"$f":"IF(AND(BA19=0,BB19=0),\"\",IF(BA19<BB19,AY13,AY25))","v":""},null,null,null,null,null,null,"2.",null,null,null,24,null,null,null,null,{"$f":"P57","v":""},{"$f":"P59","v":""}]
[null,null,null,null,null,null,null,null,null,null,{"$f":"CH15","v":0},{"$f":"CI15","v":0},"Y13",null,13,{"$f":"IF(AND(K27=0,L27=0),\"\",IF(K27>L27,I26,I28))","v":""},null,null,null,null,null,null,null,null,null,null,null,null,26,null,null,null,null,null,null,null,null,null,null,null,null,null,37,null,null,null,null,null,null,null,null,null,null,null,null,null,null,null,null,null,null,null,null,null,null,null,null,null,25,null,null,null,null,{"$f":"W7","v":""},{"$f":"W18","v":""}]
[null,null,null,null,null,null,null,"Y2",{"$f":"IF(AND(D5=0,E5=0),\"\",IF(D5<E5,B4,B6))","v":""},null,null,null,null,null,null,null,null,null,null,null,null,null,null,null,{"$f":"CH28","v":0},{"$f":"+CI28","v":0},"Y26",null,null,{"$f":"IF(AND(Y28=0,Z28=0),\"\",IF(Y28>Z28,W26,W30))","v":""},null,null,null,null,null,null,null,null,null,null,null,null,null,null,null,null,null,null,null,null,null,null,null,null,null,null,null,null,null,null,null,null,null,null,null,null,null,null,26,null,null,null,null,{"$f":"W26","v":""},{"$f":"W30","v":""}]
[null,null,null,null,null,null,null,null,null,null,null,null,null,null,"Y11",{"$f":"IF(AND(K16=0,L16=0),\"\",IF(K16<L16,I14,I17))","v":""},null,null,null,null,null,null,null,null,null,null,null,null,null,null,null,null,null,null,null,null,null,null,null,null,null,null,null,null,null,null,null,null,null,null,null,null,null,null,null,null,null,null,null,null,null,null,null,null,null,null,null,null,27,null,null,null,null,{"$f":"W34","v":""},{"$f":"W38","v":""}]
[null,null,null,null,null,null,null,"Y3",{"$f":"IF(AND(D8=0,E8=0),\"\",IF(D8<E8,B7,B9))","v":""},null,null,null,null,null,null,null,null,{"$f":"CH22","v":0},{"$f":"CI22","v":0},"Y20",null,20,{"$f":"IF(AND(R30=0,S30=0),\"\",IF(R30>S30,P29,P31))","v":""},null,null,null,null,null,null,null,null,null,null,null,null,null,null,null,{"$f":"CH39","v":0},{"$f":"+CI39","v":0},"Y37",null,null,{"$f":"IF(AND(AM30=0,AN30=0),\"\",IF(AM30>AN30,AK26,AK34))","v":""},null,null,null,null,null,null,null,null,null,null,null,null,null,null,null,null,null,null,null,null,null,null,null,null,28,null,null,null,null,{"$f":"W44","v":""},{"$f":"W46","v":""}]
[null,null,null,null,null,null,null,null,null,null,{"$f":"CH16","v":0},{"$f":"CI16","v":0},"Y14",null,14,{"$f":"IF(AND(K31=0,L31=0),\"\",IF(K31>L31,I30,I32))","v":""},null,null,null,null,null,null,null,null,null,null,null,null,null,null,null,null,null,null,null,null,null,null,null,null,null,null,null,null,null,null,null,null,null,"Y39",{"$f":"IF(AND(AT25=0,AU25=0),\"\",IF(AT25<AU25,AR20,AR30))","v":""},null,null,null,null,null,"3.",null,null,null,null,null,null,null,null,null,null,null,29,null,null,null,null,{"$f":"W48","v":""},{"$f":"W50","v":""}]
[null,null,null,null,null,null,null,"Y4",{"$f":"IF(AND(D11=0,E11=0),\"\",IF(D11<E11,B10,B12))","v":""},null,null,null,null,null,null,null,null,null,null,null,null,null,null,null,null,null,null,null,"Y17",{"$f":"IF(AND(R7=0,S7=0),\"\",IF(R7<S7,P4,P9))","v":""},null,null,null,null,null,null,null,null,null,null,null,null,null,null,null,null,null,null,null,null,null,null,null,null,null,null,null,null,null,null,null,null,null,null,null,null,null,null,30,null,null,null,null,{"$f":"W54","v":""},{"$f":"W58","v":""}]
[null,null,null,null,null,null,null,null,null,null,null,null,null,null,"Y10",{"$f":"IF(AND(K10=0,L10=0),\"\",IF(K10<L10,I8,I11))","v":""},null,null,null,null,null,null,null,null,null,null,null,null,null,null,null,null,null,null,null,33,null,null,null,null,null,null,null,null,null,null,null,null,null,null,null,null,null,null,null,null,null,null,null,null,null,null,null,null,null,null,null,null,31,null,null,null,null,{"$f":"W60","v":""},{"$f":"W62","v":""}]
[null,null,null,null,null,null,null,"Y5",{"$f":"IF(AND(D14=0,E14=0),\"\",IF(D14<E14,B13,B15))","v":""},null,null,null,null,null,null,null,null,{"$f":"CH23","v":0},{"$f":"CI23","v":0},"Y21",null,21,{"$f":"IF(AND(R34=0,S34=0),\"\",IF(R34>S34,P33,P35))","v":""},null,null,null,null,null,null,null,null,{"$f":"CH35","v":0},{"$f":"+CI35","v":0},"Y33",null,null,{"$f":"IF(AND(AF34=0,AG34=0),\"\",IF(AF34>AG34,AD32,AD36))","v":""},null,null,null,null,null,null,null,null,null,null,null,null,null,null,null,null,null,null,null,null,null,null,null,null,null,null,null,null,null,null,null,32,null,null,null,null,{"$f":"AD24","v":""},{"$f":"AD28","v":""}]
[null,null,null,null,null,null,null,null,null,null,{"$f":"CH17","v":0},{"$f":"CI17","v":0},"Y15",null,15,{"$f":"IF(AND(K35=0,L35=0),\"\",IF(K35>L35,I34,I36))","v":""},null,null,null,null,null,null,null,null,null,null,null,null,27,null,null,null,null,null,null,null,null,null,null,null,null,null,"Y37",{"$f":"IF(AND(AM30=0,AN30=0),\"\",IF(AM30<AN30,AK26,AK34))","v":""},null,null,null,null,null,null,"4.",null,null,null,null,null,null,null,null,null,null,null,null,null,null,null,null,null,33,null,null,null,null,{"$f":"AD32","v":""},{"$f":"AD36","v":""}]
[null,null,null,null,null,null,null,"Y6",{"$f":"IF(AND(D17=0,E17=0),\"\",IF(D17<E17,B16,B18))","v":""},null,null,null,null,null,null,null,null,null,null,null,null,null,null,null,{"$f":"CH29","v":0},{"$f":"+CI29","v":0},"Y27",null,null,{"$f":"IF(AND(Y36=0,Z36=0),\"\",IF(Y36>Z36,W34,W38))","v":""},null,null,null,null,null,null,null,null,null,null,null,null,null,null,null,null,null,null,null,null,null,null,null,null,null,null,null,null,null,null,null,null,null,null,null,null,null,null,34,null,null,null,null,{"$f":"AD41","v":""},{"$f":"AD43","v":""}]
[null,null,null,null,null,null,null,null,null,null,null,null,null,null,"Y9",{"$f":"IF(AND(K4=0,L4=0),\"\",IF(K4<L4,I2,I5))","v":""},null,null,null,null,null,null,null,null,null,null,null,null,null,null,null,null,null,null,null,"Y32",{"$f":"IF(AND(AF26=0,AG26=0),\"\",IF(AF26<AG26,AD24,AD28))","v":""},null,null,null,null,null,null,null,null,null,null,null,null,null,null,null,null,null,null,null,null,null,null,null,null,null,null,null,null,null,null,null,35,null,null,null,null,{"$f":"AD45","v":""},{"$f":"AD49","v":""}]
[null,null,null,null,null,null,null,"Y7",{"$f":"IF(AND(D20=0,E20=0),\"\",IF(D20<E20,B19,B21))","v":""},null,null,null,null,null,null,null,null,{"$f":"CH24","v":0},{"$f":"CI24","v":0},"Y22",null,22,{"$f":"IF(AND(R38=0,S38=0),\"\",IF(R38>S38,P37,P39))","v":""},null,null,null,null,null,null,null,null,null,null,null,null,null,null,null,{"$f":"CH40","v":0},{"$f":"+CI40","v":0},"Y38",null,38,{"$f":"IF(AND(AM38=0,AN38=0),\"\",IF(AM38>AN38,AK37,AK39))","v":""},null,null,null,null,null,null,"5.",null,null,null,null,null,null,null,null,null,null,null,null,null,null,null,null,null,36,null,null,null,null,{"$f":"AD51","v":""},{"$f":"AD53","v":""}]
[null,null,null,null,null,null,null,null,null,null,{"$f":"CH18","v":0},{"$f":"CI18","v":0},"Y16",null,16,{"$f":"IF(AND(K39=0,L39=0),\"\",IF(K39>L39,I38,I40))","v":""},null,null,null,null,null,null,null,null,null,null,null,null,null,null,null,null,null,null,null,"Y33",{"$f":"IF(AND(AF34=0,AG34=0),\"\",IF(AF34<AG34,AD32,AD36))","v":""},null,null,null,null,null,null,null,null,null,null,null,null,null,null,null,null,null,null,null,null,null,null,null,null,null,null,null,null,null,null,null,37,null,null,null,null,{"$f":"AK26","v":""},{"$f":"AK34","v":""}]
[null,null,null,null,null,null,null,"Y8",{"$f":"IF(AND(D23=0,E23=0),\"\",IF(D23<E23,B22,B24))","v":""},null,null,null,null,null,null,null,null,null,null,null,null,null,null,null,null,null,null,null,null,null,null,null,null,null,null,null,null,null,null,null,null,null,"Y38",{"$f":"IF(AND(AM38=0,AN38=0),\"\",IF(AM38<AN38,AK37,AK39))","v":""},null,null,null,null,null,null,"6.",null,null,null,null,null,null,null,null,null,null,null,null,null,null,null,null,null,38,null,null,null,null,{"$f":"AK37","v":""},{"$f":"AK39","v":""}]
[null,null,null,null,null,null,null,null,null,null,null,null,null,null,null,null,null,null,null,null,null,null,null,null,null,null,null,null,"Y26",{"$f":"IF(AND(Y28=0,Z28=0),\"\",IF(Y28<Z28,W26,W30))","v":""},null,null,null,null,null,null,null,null,null,null,null,null,null,null,null,null,null,null,null,null,null,null,null,null,null,null,null,null,null,null,null,null,null,null,null,null,null,null,39,null,null,null,null,{"$f":"AR20","v":""},{"$f":"AR30","v":""}]
[null,null,null,null,null,null,null,null,null,null,null,null,null,null,null,null,null,null,null,null,null,null,null,null,null,null,null,null,null,null,null,{"$f":"CH36","v":0},{"$f":"+CI36","v":0},"Y34",null,34,{"$f":"IF(AND(AF42=0,AG42=0),\"\",IF(AF42>AG42,AD41,AD43))","v":""},null,null,null,null,null,null,"7.",null,null,null,null,null,null,null,null,null,null,null,null,null,null,null,null,null,null,null,null,null,null,null,null,40,null,null,null,null,{"$f":"AY13","v":""},{"$f":"AY25","v":""}]
[null,null,null,null,null,null,null,null,null,null,null,null,null,null,null,null,null,null,null,null,null,null,null,null,null,null,null,null,"Y27",{"$f":"IF(AND(Y36=0,Z36=0),\"\",IF(Y36<Z36,W34,W38))","v":""}]
[null,null,null,null,null,null,null,null,null,null,null,null,null,null,null,null,null,null,null,null,null,"Y19",{"$f":"IF(AND(R26=0,S26=0),\"\",IF(R26<S26,P25,P27))","v":""},null,null,null,null,null,null,null,null,null,null,null,null,"Y34",{"$f":"IF(AND(AF42=0,AG42=0),\"\",IF(AF42<AG42,AD41,AD43))","v":""},null,null,null,null,null,null,"8."]
[null,null,null,null,null,null,null,null,null,null,null,null,null,null,null,null,null,null,null,null,null,null,null,null,{"$f":"CH30","v":0},{"$f":"+CI30","v":0},"Y28",null,28,{"$f":"IF(AND(Y45=0,Z45=0),\"\",IF(Y45>Z45,W44,W46))","v":""}]
[null,null,null,null,null,null,null,null,null,null,null,null,null,null,null,null,null,null,null,null,null,"Y20",{"$f":"IF(AND(R30=0,S30=0),\"\",IF(R30<S30,P29,P31))","v":""},null,null,null,null,null,null,null,null,null,null,null,null,35]
[null,null,null,null,null,null,null,null,null,null,null,null,null,null,null,null,null,null,null,null,null,null,null,null,null,null,null,null,null,null,null,{"$f":"CH37","v":0},{"$f":"+CI37","v":0},"Y35",null,null,{"$f":"IF(AND(AF47=0,AG47=0),\"\",IF(AF47>AG47,AD45,AD49))","v":""},null,null,null,null,null,null,"9."]
[null,null,null,null,null,null,null,null,null,null,null,null,null,null,null,null,null,null,null,null,null,"Y21",{"$f":"IF(AND(R34=0,S34=0),\"\",IF(R34<S34,P33,P35))","v":""}]
[null,null,null,null,null,null,null,null,null,null,null,null,null,null,null,null,null,null,null,null,null,null,null,null,{"$f":"CH31","v":0},{"$f":"+CI31","v":0},"Y29",null,29,{"$f":"IF(AND(Y49=0,Z49=0),\"\",IF(Y49>Z49,W48,W50))","v":""}]
[null,null,null,null,null,null,null,null,null,null,null,null,null,null,null,null,null,null,null,null,null,"Y22",{"$f":"IF(AND(R38=0,S38=0),\"\",IF(R38<S38,P37,P39))","v":""},null,null,null,null,null,null,null,null,null,null,null,null,"Y35",{"$f":"IF(AND(AF47=0,AG47=0),\"\",IF(AF47<AG47,AD45,AD49))","v":""},null,null,null,null,null,null,"10."]
[null,null,null,null,null,null,null,null,null,null,null,null,null,null,null,null,null,null,null,null,null,null,null,null,null,null,null,null,"Y28",{"$f":"IF(AND(Y45=0,Z45=0),\"\",IF(Y45<Z45,W44,W46))","v":""}]
[null,null,null,null,null,null,null,null,null,null,null,null,null,null,null,null,null,null,null,null,null,null,null,null,null,null,null,null,null,null,null,{"$f":"CH38","v":0},{"$f":"+CI38","v":0},"Y36",null,36,{"$f":"IF(AND(AF52=0,AG52=0),\"\",IF(AF52>AG52,AD51,AD53))","v":""},null,null,null,null,null,null,"11."]
[null,null,null,null,null,null,null,null,null,null,null,null,null,null,"Y13",{"$f":"IF(AND(K27=0,L27=0),\"\",IF(K27<L27,I26,I28))","v":""},null,null,null,null,null,null,null,null,null,null,null,null,"Y29",{"$f":"IF(AND(Y49=0,Z49=0),\"\",IF(Y49<Z49,W48,W50))","v":""}]
[null,null,null,null,null,null,null,null,null,null,null,null,null,null,null,null,null,{"$f":"CH25","v":0},{"$f":"CI25","v":0},"Y23",null,23,{"$f":"IF(AND(R54=0,S54=0),\"\",IF(R54>S54,P53,P55))","v":""},null,null,null,null,null,null,null,null,null,null,null,null,"Y36",{"$f":"IF(AND(AF52=0,AG52=0),\"\",IF(AF52<AG52,AD51,AD53))","v":""},null,null,null,null,null,null,"12."]
[null,null,null,null,null,null,null,null,null,null,null,null,null,null,"Y14",{"$f":"IF(AND(K31=0,L31=0),\"\",IF(K31<L31,I30,I32))","v":""},null,null,null,null,null,null,null,null,null,null,null,null,30]
[null,null,null,null,null,null,null,null,null,null,null,null,null,null,null,null,null,null,null,null,null,null,null,null,{"$f":"CH32","v":0},{"$f":"+CI32","v":0},"Y30",null,null,{"$f":"IF(AND(Y56=0,Z56=0),\"\",IF(Y56>Z56,W54,W58))","v":""},null,null,null,null,null,null,"13."]
[null,null,null,null,null,null,null,null,null,null,null,null,null,null,"Y15",{"$f":"IF(AND(K35=0,L35=0),\"\",IF(K35<L35,I34,I36))","v":""}]
[null,null,null,null,null,null,null,null,null,null,null,null,null,null,null,null,null,{"$f":"CH26","v":0},{"$f":"CI26","v":0},"Y24",null,24,{"$f":"IF(AND(R58=0,S58=0),\"\",IF(R58>S58,P57,P59))","v":""}]
[null,null,null,null,null,null,null,null,null,null,null,null,null,null,"Y16",{"$f":"IF(AND(K39=0,L39=0),\"\",IF(K39<L39,I38,I40))","v":""},null,null,null,null,null,null,null,null,null,null,null,null,"Y30",{"$f":"IF(AND(Y56=0,Z56=0),\"\",IF(Y56<Z56,W54,W58))","v":""},null,null,null,null,null,null,"14."]
[null,null,null,null,null,null,null,null,null,null,null,null,null,null,null,null,null,null,null,null,null,"Y23",{"$f":"IF(AND(R54=0,S54=0),\"\",IF(R54<S54,P53,P55))","v":""}]
[null,null,null,null,null,null,null,null,null,null,null,null,null,null,null,null,null,null,null,null,null,null,null,null,{"$f":"CH33","v":0},{"$f":"+CI33","v":0},"Y31",null,31,{"$f":"IF(AND(Y61=0,Z61=0),\"\",IF(Y61>Z61,W60,W62))","v":""},null,null,null,null,null,null,"15."]
[null,null,null,null,null,null,null,null,null,null,null,null,null,null,null,null,null,null,null,null,null,"Y24",{"$f":"IF(AND(R58=0,S58=0),\"\",IF(R58<S58,P57,P59))","v":""}]
[null,null,null,null,null,null,null,null,null,null,null,null,null,null,null,null,null,null,null,null,null,null,null,null,null,null,null,null,"Y31",{"$f":"IF(AND(Y61=0,Z61=0),\"\",IF(Y61<Z61,W60,W62))","v":""},null,null,null,null,null,null,"16."]

{"sheet":"SIRALAMA","index":7,"n_rows":37,"n_cols":14,"rows_kept":37,"cut":false,"hidden":false,"merged":[[0,0,1,5],[2,1,2,4]]}
["TÜRKİYE MASA TENİSİ FEDERASYONU\nİsmail Eren ALICI Küçükler Ferdi-Takım Türkiye Şampiyonası                                                                                                                                                                                          09-13 Nisan 2025 ÇORUM ",null,null,null,null,null,null,null,null,null,null,null,"32 (DE)",1]
[null,null,null,null,null,null,null,null,null,null,null,null,"16 (DE)"]
[null,"TEK KIZ SIRALAMA",null,null,null,null,null,null,null,null,null,null,"-------"]
[]
[null,"Sıra","Sporcu Adı-Soyadı","Kulübü","İli"]
[null,1,"ELA SU YÖNTER (ANK)","ŞAFAKTEPE","ANKARA"]
[null,2,"ZEYNEP DURAN (İST)","FENERBAHÇE SPOR KULÜBÜ","İSTANBUL"]
[null,3,"BELİNAY DAVUŞ (KST)","KASTAMONU MTSK","KASTAMONU"]
[null,4,"EMİNE AYDINAY (BRS)","BURSA B. ŞEH. BLD. SPOR","BURSA"]
[null,5,"ŞEVVAL ALAŞ (BTM)","1955 BATMAN BLD. SPOR","BATMAN"]
[null,6,"DURU BERİL TOK (YLV)","YALOVA BLD. GENÇLİK SPOR","YALOVA"]
[null,7,"ARMİN AYDIN (İST)","FENERBAHÇE SPOR KULÜBÜ","İSTANBUL"]
[null,8,"AYBİGE FERİDE ÜSTÜNDAĞ (MĞL)","MUĞLA B. ŞEHİR BLD.","MUĞLA"]
[null,9,"MEDİNE İREM TÜRKAN (BTM)","1955 BATMAN BLD. SPOR","BATMAN"]
[null,10,"ELİF DURU BECER (ÇRM)","ARENA SPOR","ÇORUM"]
[null,11,"CEYDA DÖKMECİ (KNY)","SELÇUKLU BLD. SPOR","KONYA"]
[null,12,"HAFSA YURTERİ (İZM)","MAVİ EGE SPOR","İZMİR"]
[null,13,"DERİN MÜLAZIM (ÇRM)","ARENA SPOR","ÇORUM"]
[null,14,"EDA MORAL (İST)","İSTANBUL DSİ SPOR","İSTANBUL"]
[null,15,"NİSA ÜZÜMCÜ (BTM)","1955 BATMAN BLD. SPOR","BATMAN"]
[null,16,"ESMA SULTAN SARI (SKR)","HENDEK OLİMPİK SPOR","SAKARYA"]
[null,17,"ZEYNEP KALKAN (HTY)","HATAY SPOR","HATAY"]
[null,17,"FEYZA KOÇER (KYS)","KOCASİNAN BLD.SPOR","KAYSERİ"]
[null,17,"DURU YAVAŞCAOĞLU (YLV)","YALOVA BLD. GENÇLİK SPOR","YALOVA"]
[null,17,"AYŞE NAR ALPTEKİN (İST)","İTÜ GVO SK","İSTANBUL"]
[null,17,"ASİYE TUĞÇE KENAR (KNY)","SELÇUKLU BLD. SPOR","KONYA"]
[null,17,"BUĞLEM SENA ÇALIŞKAN (SKR)","HENDEK OLİMPİK SPOR","SAKARYA"]
[null,17,"BURCU ASEL TUNCER (ÇRM)","ARENA SPOR","ÇORUM"]
[null,17,"BERRA BAHTİYAR (SKR)","HENDEK OLİMPİK SPOR","SAKARYA"]
[null,25,"BURCU AL (KNY)","KARATAY BLD. SPOR","KONYA"]
[null,25,"RANA ZEREN KÖSE (İST)","PENDİK BELEDİYE SPOR KULÜBÜ","İSTANBUL"]
[null,25,"FİRDEVS NUR BİNGÖL (YLV)","YALOVA BLD. GENÇLİK SPOR","YALOVA"]
[null,25,"ATİYE ÖZER (ADN)","ÇİLTAR MTSK","ADANA"]
[null,25,"CEREN BUDAK (ADN)","ÇİLTAR MTSK","ADANA"]
[null,25,"NİSA GÜN (AMS)","KUTLUBEY OKULLARI","AMASYA"]
[null,25,"MERVE TUŞEK (DYB)","SİLVAN MTSK","DİYARBAKIR"]
[null,25,"ZEYNEP POLAT (GZT)","ŞAHİNBEY BLD. GSK","GAZİANTEP"]